{"text_format":"1","workbook":"xlsx","n_sheets":5,"sheets":["input","input_save","vldata","ken","kenkijun"],"not_rendered":{"charts":0,"images":0,"macros":1,"external_links":0,"defined_names":18,"comments":0,"pivot_tables":0},"unopened":[],"bounds":{"document_bytes":16777216,"sheet_cells":100000,"rows_first":2000,"rows_last":500,"rows_between":2000,"halvings":0,"cell_chars":16384,"cell_head_chars":4096},"cells_cut":0,"cells_raw":0,"read":"whole","date_system":"1900"}

{"sheet":"input","index":0,"n_rows":77,"n_cols":79,"rows_kept":77,"cut":false,"hidden":false,"merged":[[10,15,11,20],[15,13,15,24],[15,25,15,33],[3,7,3,9],[7,12,7,13],[8,12,8,13],[4,8,5,15],[10,12,10,13],[11,12,11,13]]}
[null,{"$f":"$K$8*100+$K$9","v":{"$error":"#VALUE!"}},null,null,null,null,null,{"$f":"$K$8","v":"▼"},null,null,{"$f":"$K$9","v":"▼"},null,{"$f":"IF(COUNTBLANK($M$18:$M$77)<60,1,IF(COUNTBLANK($M$18:$M$77)=60,2))","v":2},null,{"$f":"IF(AND(30-COUNTBLANK($M$18:$M$47)=$K$11,30-COUNTBLANK($M$48:$M$77)=$K$12),1,2)","v":1},null,{"$f":"30-COUNTBLANK($M$18:$M$47)","v":0},{"$f":"30-COUNTBLANK($M$48:$M$77)","v":0}]
[]
[]
[]
[]
[]
[]
[null,null,null,null,null,null,null,null,null,"学年","▼"]
[null,null,null,null,null,null,null,null,null,"学級","▼"]
[]
[null,{"$f":"30-COUNTBLANK($M$18:$M$47)","v":0},null,null,null,null,null,null,null,"男子",0,null,{"$f":"IF(SUM($K$11:$K$12)=0,\"\",IF(O4=1,\"\",\"男子\"&$K$11&\"人　\"&\"女子\"&$K$12&\"人の\"))","v":""},null,null,{"$f":"IF(COUNTBLANK($M$18:$M$77)=60,\"まず氏名欄の入力を行って下さい！\",IF($O$1=1,\"全員の氏名の入力が完了してます\",IF(OR($K$11<(30-COUNTBLANK($M$18:$M$47)),$K$12<(30-COUNTBLANK($M$48:$M$77))),\"氏名の数が多くなっています！\",IF(OR($K$11>(30-COUNTBLANK($M$18:$M$47)),$K$12>(30-COUNTBLANK($M$48:$M$77))),\"氏名の未入力があります！\",IF(OR($K$11-(30-COUNTBLANK($M$18:$M$47))<0,$K$11-(30-COUNTBLANK($M$18:$M$47))>0),\"男子の入力した氏名の数が違います！\",IF(OR($K$12-(30-COUNTBLANK($M$48:$M$77))<0,$K$12-COUNTBLANK($M$48:$M$77)>0),\"女子の入力した氏名の数が違います\",\"\"))))))","v":"まず氏名欄の入力を行って下さい！"}]
[null,null,null,null,null,null,null,null,null,"女子",0,null,{"$f":"IF(SUM($K$11:$K$12)=0,\"\",IF(O4=1,\"\",\"氏名の入力が必要です！\"))","v":""}]
[null,null,null,null,null,null,null,null,null,"計",{"$f":"SUM(K11:K12)","v":0}]
[]
[null,null,null,null,null,null,null,null,null,null,null,null,"※氏名欄に名前を入力していないのに児童データが表示されているときは、氏名欄に空白が入っていますので、空白を削除して下さい。"]
[null,null,null,null,null,null,null,null,null,"児童データ",null,null,"※氏名欄が空白の場合、\n　エラーで動作しません。","アンケートデータ入力",null,null,null,null,null,null,null,null,null,null,null,"測定種目結果入力"]
[null,"ID",null,null,null,null,"学齢","学年","組","性別\n番号","整理\n番号","性別","氏名\n水色は男子\nピンクは女子","Q4","Q5","Q6","Q7","Q8","Q9","Q11","Q12","Q13","Q14","Q15","Q16","握力\n(kg)","上体\n起こ し\n(回)","長座\n体前屈\n(cm)","反復\n横とび\n(回)","持久走\n（中高のみ）","２０ｍ\nシャトルラン(回)","５０ｍ走\n(秒)","立ち幅とび\n(cm)","ソフト\nボール\n投げ\n(m)"]
[1,{"$f":"IF(M18=\"\",\"\",H18*100000+I18*1000+J18*100+K18)","v":""},null,null,null,null,{"$f":"IF(M18=\"\",\"\",VLOOKUP($H$1,vldata!$A$2:$B$7,2))","v":""},{"$f":"IF(M18=\"\",\"\",$H$1)","v":""},{"$f":"IF(M18=\"\",\"\",$K$1)","v":""},{"$f":"IF(M18=\"\",\"\",1)","v":""},{"$f":"IF(M18=\"\",\"\",A18)","v":""},{"$f":"IF(M18=\"\",\"\",\"男子\")","v":""},null,null,null,null,null,null,null,null,null,null,null,null,null,null,null,null,null,null,null,null,null,null,null,null,null,null,null,null,null,null,null,null,null,null,null,null,null,null,null,null,null,null,null,null,null,null,null,null,null,null,null,null,null,null,null,{"$f":"kenkijun!B2","v":"男子"}]
[2,"",null,null,null,null,{"$f":"IF(M19=\"\",\"\",VLOOKUP($H$1,vldata!$A$2:$B$7,2))","v":""},"","","","","",null,null,null,null,null,null,null,null,null,null,null,null,null,null,null,null,null,null,null,null,null,null,null,null,null,null,null,null,null,null,null,null,null,null,null,null,null,null,null,null,null,null,null,null,null,null,null,null,null,null,null,null,null,null,null,{"$f":"kenkijun!A3","v":"学年"},{"$f":"kenkijun!B3","v":"握力"},{"$f":"kenkijun!C3","v":"上体"},{"$f":"kenkijun!D3","v":"長座"},{"$f":"kenkijun!E3","v":"反復"},{"$f":"kenkijun!F3","v":"持久走"},{"$f":"kenkijun!G3","v":"シャ"},{"$f":"kenkijun!H3","v":"50m"},{"$f":"kenkijun!I3","v":"立幅"},{"$f":"kenkijun!J3","v":"ソフ"},{"$f":"kenkijun!K3","v":"全体"},{"$f":"kenkijun!L3","v":"最高"}]
[3,"",null,null,null,null,{"$f":"IF(M20=\"\",\"\",VLOOKUP($H$1,vldata!$A$2:$B$7,2))","v":""},"","","","","",null,null,null,null,null,null,null,null,null,null,null,null,null,null,null,null,null,null,null,null,null,null,null,null,null,null,null,null,null,null,null,null,null,null,null,null,null,null,null,null,null,null,null,null,null,null,null,null,null,null,null,null,null,null,null,{"$f":"kenkijun!A4","v":1},{"$f":"kenkijun!B4","v":0},{"$f":"kenkijun!C4","v":0},{"$f":"kenkijun!D4","v":0},{"$f":"kenkijun!E4","v":0},null,{"$f":"kenkijun!G4","v":0},{"$f":"kenkijun!H4","v":0},{"$f":"kenkijun!I4","v":0},{"$f":"kenkijun!J4","v":0},{"$f":"kenkijun!K4","v":0}]
[4,"",null,null,null,null,{"$f":"IF(M21=\"\",\"\",VLOOKUP($H$1,vldata!$A$2:$B$7,2))","v":""},"","","","","",null,null,null,null,null,null,null,null,null,null,null,null,null,null,null,null,null,null,null,null,null,null,null,null,null,null,null,null,null,null,null,null,null,null,null,null,null,null,null,null,null,null,null,null,null,null,null,null,null,null,null,null,null,null,null,{"$f":"kenkijun!A5","v":2},{"$f":"kenkijun!B5","v":0},{"$f":"kenkijun!C5","v":0},{"$f":"kenkijun!D5","v":0},{"$f":"kenkijun!E5","v":0},null,{"$f":"kenkijun!G5","v":0},{"$f":"kenkijun!H5","v":0},{"$f":"kenkijun!I5","v":0},{"$f":"kenkijun!J5","v":0},{"$f":"kenkijun!K5","v":0}]
[5,"",null,null,null,null,{"$f":"IF(M22=\"\",\"\",VLOOKUP($H$1,vldata!$A$2:$B$7,2))","v":""},"","","","","",null,null,null,null,null,null,null,null,null,null,null,null,null,null,null,null,null,null,null,null,null,null,null,null,null,null,null,null,null,null,null,null,null,null,null,null,null,null,null,null,null,null,null,null,null,null,null,null,null,null,null,null,null,null,null,{"$f":"kenkijun!A6","v":3},{"$f":"kenkijun!B6","v":0},{"$f":"kenkijun!C6","v":0},{"$f":"kenkijun!D6","v":0},{"$f":"kenkijun!E6","v":0},null,{"$f":"kenkijun!G6","v":0},{"$f":"kenkijun!H6","v":0},{"$f":"kenkijun!I6","v":0},{"$f":"kenkijun!J6","v":0},{"$f":"kenkijun!K6","v":0}]
[6,"",null,null,null,null,{"$f":"IF(M23=\"\",\"\",VLOOKUP($H$1,vldata!$A$2:$B$7,2))","v":""},"","","","","",null,null,null,null,null,null,null,null,null,null,null,null,null,null,null,null,null,null,null,null,null,null,null,null,null,null,null,null,null,null,null,null,null,null,null,null,null,null,null,null,null,null,null,null,null,null,null,null,null,null,null,null,null,null,null,{"$f":"kenkijun!A7","v":4},{"$f":"kenkijun!B7","v":19.007999999999999},{"$f":"kenkijun!C7","v":26.242999999999999},{"$f":"kenkijun!D7","v":42.933},{"$f":"kenkijun!E7","v":48.53},null,{"$f":"kenkijun!G7","v":70.247},{"$f":"kenkijun!H7","v":8.0790000000000006},{"$f":"kenkijun!I7","v":177.608},{"$f":"kenkijun!J7","v":30.268999999999998},{"$f":"kenkijun!K7","v":60.706000000000003}]
[7,"",null,null,null,null,{"$f":"IF(M24=\"\",\"\",VLOOKUP($H$1,vldata!$A$2:$B$7,2))","v":""},"","","","","",null,null,null,null,null,null,null,null,null,null,null,null,null,null,null,null,null,null,null,null,null,null,null,null,null,null,null,null,null,null,null,null,null,null,null,null,null,null,null,null,null,null,null,null,null,null,null,null,null,null,null,null,null,null,null,{"$f":"kenkijun!A8","v":5},{"$f":"kenkijun!B8","v":22.215999999999998},{"$f":"kenkijun!C8","v":28.218000000000004},{"$f":"kenkijun!D8","v":45.311999999999998},{"$f":"kenkijun!E8","v":52.679000000000002},null,{"$f":"kenkijun!G8","v":82.340999999999994},{"$f":"kenkijun!H8","v":7.729000000000001},{"$f":"kenkijun!I8","v":187},{"$f":"kenkijun!J8","v":35.152000000000001},{"$f":"kenkijun!K8","v":66.956999999999994}]
[8,"",null,null,null,null,{"$f":"IF(M25=\"\",\"\",VLOOKUP($H$1,vldata!$A$2:$B$7,2))","v":""},"","","","","",null,null,null,null,null,null,null,null,null,null,null,null,null,null,null,null,null,null,null,null,null,null,null,null,null,null,null,null,null,null,null,null,null,null,null,null,null,null,null,null,null,null,null,null,null,null,null,null,null,null,null,null,null,null,null,{"$f":"kenkijun!A9","v":6},{"$f":"kenkijun!B9","v":26.779},{"$f":"kenkijun!C9","v":29.423000000000002},{"$f":"kenkijun!D9","v":47.143999999999998},{"$f":"kenkijun!E9","v":55.573999999999998},null,{"$f":"kenkijun!G9","v":94.064999999999998},{"$f":"kenkijun!H9","v":7.363999999999999},{"$f":"kenkijun!I9","v":200.732},{"$f":"kenkijun!J9","v":40.753},{"$f":"kenkijun!K9","v":73.194000000000003}]
[9,"",null,null,null,null,{"$f":"IF(M26=\"\",\"\",VLOOKUP($H$1,vldata!$A$2:$B$7,2))","v":""},"","","","","",null,null,null,null,null,null,null,null,null,null,null,null,null,null,null,null,null,null,null,null,null,null,null,null,null,null,null,null,null,null,null,null,null,null,null,null,null,null,null,null,null,null,null,null,null,null,null,null,null,null,null,null,null,null,null,{"$f":"kenkijun!A10","v":1},{"$f":"kenkijun!B10","v":0},{"$f":"kenkijun!C10","v":0},{"$f":"kenkijun!D10","v":0},{"$f":"kenkijun!E10","v":0},null,{"$f":"kenkijun!G10","v":0},{"$f":"kenkijun!H10","v":0},{"$f":"kenkijun!I10","v":0},{"$f":"kenkijun!J10","v":0},{"$f":"kenkijun!K10","v":0},{"$f":"kenkijun!L10","v":"最低"}]
[10,"",null,null,null,null,{"$f":"IF(M27=\"\",\"\",VLOOKUP($H$1,vldata!$A$2:$B$7,2))","v":""},"","","","","",null,null,null,null,null,null,null,null,null,null,null,null,null,null,null,null,null,null,null,null,null,null,null,null,null,null,null,null,null,null,null,null,null,null,null,null,null,null,null,null,null,null,null,null,null,null,null,null,null,null,null,null,null,null,null,{"$f":"kenkijun!A11","v":2},{"$f":"kenkijun!B11","v":0},{"$f":"kenkijun!C11","v":0},{"$f":"kenkijun!D11","v":0},{"$f":"kenkijun!E11","v":0},null,{"$f":"kenkijun!G11","v":0},{"$f":"kenkijun!H11","v":0},{"$f":"kenkijun!I11","v":0},{"$f":"kenkijun!J11","v":0},{"$f":"kenkijun!K11","v":0}]
[11,"",null,null,null,null,{"$f":"IF(M28=\"\",\"\",VLOOKUP($H$1,vldata!$A$2:$B$7,2))","v":""},"","","","","",null,null,null,null,null,null,null,null,null,null,null,null,null,null,null,null,null,null,null,null,null,null,null,null,null,null,null,null,null,null,null,null,null,null,null,null,null,null,null,null,null,null,null,null,null,null,null,null,null,null,null,null,null,null,null,{"$f":"kenkijun!A12","v":3},{"$f":"kenkijun!B12","v":0},{"$f":"kenkijun!C12","v":0},{"$f":"kenkijun!D12","v":0},{"$f":"kenkijun!E12","v":0},null,{"$f":"kenkijun!G12","v":0},{"$f":"kenkijun!H12","v":0},{"$f":"kenkijun!I12","v":0},{"$f":"kenkijun!J12","v":0},{"$f":"kenkijun!K12","v":0}]
[12,"",null,null,null,null,{"$f":"IF(M29=\"\",\"\",VLOOKUP($H$1,vldata!$A$2:$B$7,2))","v":""},"","","","","",null,null,null,null,null,null,null,null,null,null,null,null,null,null,null,null,null,null,null,null,null,null,null,null,null,null,null,null,null,null,null,null,null,null,null,null,null,null,null,null,null,null,null,null,null,null,null,null,null,null,null,null,null,null,null,{"$f":"kenkijun!A13","v":4},{"$f":"kenkijun!B13","v":7.39},{"$f":"kenkijun!C13","v":4.8199999999999985},{"$f":"kenkijun!D13","v":14.850000000000001},{"$f":"kenkijun!E13","v":20.04},null,{"$f":"kenkijun!G13","v":0.28000000000000114},{"$f":"kenkijun!H13","v":11.89},{"$f":"kenkijun!I13","v":103.83000000000001},{"$f":"kenkijun!J13","v":4.1099999999999994},{"$f":"kenkijun!K13","v":29.33}]
[13,"",null,null,null,null,{"$f":"IF(M30=\"\",\"\",VLOOKUP($H$1,vldata!$A$2:$B$7,2))","v":""},"","","","","",null,null,null,null,null,null,null,null,null,null,null,null,null,null,null,null,null,null,null,null,null,null,null,null,null,null,null,null,null,null,null,null,null,null,null,null,null,null,null,null,null,null,null,null,null,null,null,null,null,null,null,null,null,null,null,{"$f":"kenkijun!A14","v":5},{"$f":"kenkijun!B14","v":8.23},{"$f":"kenkijun!C14","v":6.24},{"$f":"kenkijun!D14","v":15.489999999999998},{"$f":"kenkijun!E14","v":24.3},null,{"$f":"kenkijun!G14","v":5.2700000000000031},{"$f":"kenkijun!H14","v":11.540000000000001},{"$f":"kenkijun!I14","v":107.44999999999999},{"$f":"kenkijun!J14","v":5.3299999999999983},{"$f":"kenkijun!K14","v":33.25}]
[14,"",null,null,null,null,{"$f":"IF(M31=\"\",\"\",VLOOKUP($H$1,vldata!$A$2:$B$7,2))","v":""},"","","","","",null,null,null,null,null,null,null,null,null,null,null,null,null,null,null,null,null,null,null,null,null,null,null,null,null,null,null,null,null,null,null,null,null,null,null,null,null,null,null,null,null,null,null,null,null,null,null,null,null,null,null,null,null,null,null,{"$f":"kenkijun!A15","v":6},{"$f":"kenkijun!B15","v":9.1300000000000026},{"$f":"kenkijun!C15","v":9.11},{"$f":"kenkijun!D15","v":17.47},{"$f":"kenkijun!E15","v":27.75},null,{"$f":"kenkijun!G15","v":11.369999999999997},{"$f":"kenkijun!H15","v":10.989999999999998},{"$f":"kenkijun!I15","v":116.51999999999998},{"$f":"kenkijun!J15","v":6.75},{"$f":"kenkijun!K15","v":38.71}]
[15,"",null,null,null,null,{"$f":"IF(M32=\"\",\"\",VLOOKUP($H$1,vldata!$A$2:$B$7,2))","v":""},"","","","","",null,null,null,null,null,null,null,null,null,null,null,null,null,null,null,null,null,null,null,null,null,null,null,null,null,null,null,null,null,null,null,null,null,null,null,null,null,null,null,null,null,null,null,null,null,null,null,null,null,null,null,null,null,null,null,{"$f":"kenkijun!A16","v":1},{"$f":"kenkijun!B16","v":2},{"$f":"kenkijun!C16","v":3},{"$f":"kenkijun!D16","v":4},{"$f":"kenkijun!E16","v":5},{"$f":"kenkijun!F16","v":6},{"$f":"kenkijun!G16","v":7},{"$f":"kenkijun!H16","v":8},{"$f":"kenkijun!I16","v":9},{"$f":"kenkijun!J16","v":10},{"$f":"kenkijun!K16","v":11}]
[16,"",null,null,null,null,{"$f":"IF(M33=\"\",\"\",VLOOKUP($H$1,vldata!$A$2:$B$7,2))","v":""},"","","","","",null,null,null,null,null,null,null,null,null,null,null,null,null,null,null,null,null,null,null,null,null,null,null,null,null,null,null,null,null,null,null,null,null,null,null,null,null,null,null,null,null,null,null,null,null,null,null,null,null,null,null,null,null,null,null,{"$f":"kenkijun!B17","v":"女子"}]
[17,"",null,null,null,null,{"$f":"IF(M34=\"\",\"\",VLOOKUP($H$1,vldata!$A$2:$B$7,2))","v":""},"","","","","",null,null,null,null,null,null,null,null,null,null,null,null,null,null,null,null,null,null,null,null,null,null,null,null,null,null,null,null,null,null,null,null,null,null,null,null,null,null,null,null,null,null,null,null,null,null,null,null,null,null,null,null,null,null,null,{"$f":"kenkijun!A18","v":"学年"},{"$f":"kenkijun!B18","v":"握力"},{"$f":"kenkijun!C18","v":"上体"},{"$f":"kenkijun!D18","v":"長座"},{"$f":"kenkijun!E18","v":"反復"},{"$f":"kenkijun!F18","v":"持久走"},{"$f":"kenkijun!G18","v":"シャ"},{"$f":"kenkijun!H18","v":"50m"},{"$f":"kenkijun!I18","v":"立幅"},{"$f":"kenkijun!J18","v":"ソフ"},{"$f":"kenkijun!K18","v":"全体"},{"$f":"kenkijun!L18","v":"最高"}]
[18,"",null,null,null,null,{"$f":"IF(M35=\"\",\"\",VLOOKUP($H$1,vldata!$A$2:$B$7,2))","v":""},"","","","","",null,null,null,null,null,null,null,null,null,null,null,null,null,null,null,null,null,null,null,null,null,null,null,null,null,null,null,null,null,null,null,null,null,null,null,null,null,null,null,null,null,null,null,null,null,null,null,null,null,null,null,null,null,null,null,{"$f":"kenkijun!A19","v":1},{"$f":"kenkijun!B19","v":0},{"$f":"kenkijun!C19","v":0},{"$f":"kenkijun!D19","v":0},{"$f":"kenkijun!E19","v":0},null,{"$f":"kenkijun!G19","v":0},{"$f":"kenkijun!H19","v":0},{"$f":"kenkijun!I19","v":0},{"$f":"kenkijun!J19","v":0},{"$f":"kenkijun!K19","v":0}]
[19,"",null,null,null,null,{"$f":"IF(M36=\"\",\"\",VLOOKUP($H$1,vldata!$A$2:$B$7,2))","v":""},"","","","","",null,null,null,null,null,null,null,null,null,null,null,null,null,null,null,null,null,null,null,null,null,null,null,null,null,null,null,null,null,null,null,null,null,null,null,null,null,null,null,null,null,null,null,null,null,null,null,null,null,null,null,null,null,null,null,{"$f":"kenkijun!A20","v":2},{"$f":"kenkijun!B20","v":0},{"$f":"kenkijun!C20","v":0},{"$f":"kenkijun!D20","v":0},{"$f":"kenkijun!E20","v":0},null,{"$f":"kenkijun!G20","v":0},{"$f":"kenkijun!H20","v":0},{"$f":"kenkijun!I20","v":0},{"$f":"kenkijun!J20","v":0},{"$f":"kenkijun!K20","v":0}]
[20,"",null,null,null,null,{"$f":"IF(M37=\"\",\"\",VLOOKUP($H$1,vldata!$A$2:$B$7,2))","v":""},"","","","","",null,null,null,null,null,null,null,null,null,null,null,null,null,null,null,null,null,null,null,null,null,null,null,null,null,null,null,null,null,null,null,null,null,null,null,null,null,null,null,null,null,null,null,null,null,null,null,null,null,null,null,null,null,null,null,{"$f":"kenkijun!A21","v":3},{"$f":"kenkijun!B21","v":0},{"$f":"kenkijun!C21","v":0},{"$f":"kenkijun!D21","v":0},{"$f":"kenkijun!E21","v":0},null,{"$f":"kenkijun!G21","v":0},{"$f":"kenkijun!H21","v":0},{"$f":"kenkijun!I21","v":0},{"$f":"kenkijun!J21","v":0},{"$f":"kenkijun!K21","v":0}]
[21,"",null,null,null,null,{"$f":"IF(M38=\"\",\"\",VLOOKUP($H$1,vldata!$A$2:$B$7,2))","v":""},"","","","","",null,null,null,null,null,null,null,null,null,null,null,null,null,null,null,null,null,null,null,null,null,null,null,null,null,null,null,null,null,null,null,null,null,null,null,null,null,null,null,null,null,null,null,null,null,null,null,null,null,null,null,null,null,null,null,{"$f":"kenkijun!A22","v":4},{"$f":"kenkijun!B22","v":18.474},{"$f":"kenkijun!C22","v":24.594999999999999},{"$f":"kenkijun!D22","v":46.8},{"$f":"kenkijun!E22","v":45.896999999999998},null,{"$f":"kenkijun!G22","v":55.822999999999993},{"$f":"kenkijun!H22","v":8.5019999999999989},{"$f":"kenkijun!I22","v":167.745},{"$f":"kenkijun!J22","v":18.919},{"$f":"kenkijun!K22","v":61.582000000000008}]
[22,"",null,null,null,null,{"$f":"IF(M39=\"\",\"\",VLOOKUP($H$1,vldata!$A$2:$B$7,2))","v":""},"","","","","",null,null,null,null,null,null,null,null,null,null,null,null,null,null,null,null,null,null,null,null,null,null,null,null,null,null,null,null,null,null,null,null,null,null,null,null,null,null,null,null,null,null,null,null,null,null,null,null,null,null,null,null,null,null,null,{"$f":"kenkijun!A23","v":5},{"$f":"kenkijun!B23","v":22.231999999999999},{"$f":"kenkijun!C23","v":26.042999999999999},{"$f":"kenkijun!D23","v":49.927999999999997},{"$f":"kenkijun!E23","v":50.411000000000001},null,{"$f":"kenkijun!G23","v":67.765000000000001},{"$f":"kenkijun!H23","v":8.14},{"$f":"kenkijun!I23","v":178.29300000000001},{"$f":"kenkijun!J23","v":22.923000000000002},{"$f":"kenkijun!K23","v":68.686999999999998}]
[23,"",null,null,null,null,{"$f":"IF(M40=\"\",\"\",VLOOKUP($H$1,vldata!$A$2:$B$7,2))","v":""},"","","","","",null,null,null,null,null,null,null,null,null,null,null,null,null,null,null,null,null,null,null,null,null,null,null,null,null,null,null,null,null,null,null,null,null,null,null,null,null,null,null,null,null,null,null,null,null,null,null,null,null,null,null,null,null,null,null,{"$f":"kenkijun!A24","v":6},{"$f":"kenkijun!B24","v":25.454999999999998},{"$f":"kenkijun!C24","v":26.988},{"$f":"kenkijun!D24","v":52.217999999999996},{"$f":"kenkijun!E24","v":52.558},null,{"$f":"kenkijun!G24","v":75.322000000000003},{"$f":"kenkijun!H24","v":7.8609999999999998},{"$f":"kenkijun!I24","v":188.24599999999998},{"$f":"kenkijun!J24","v":26.143000000000001},{"$f":"kenkijun!K24","v":73.67}]
[24,"",null,null,null,null,{"$f":"IF(M41=\"\",\"\",VLOOKUP($H$1,vldata!$A$2:$B$7,2))","v":""},"","","","","",null,null,null,null,null,null,null,null,null,null,null,null,null,null,null,null,null,null,null,null,null,null,null,null,null,null,null,null,null,null,null,null,null,null,null,null,null,null,null,null,null,null,null,null,null,null,null,null,null,null,null,null,null,null,null,{"$f":"kenkijun!A25","v":1},{"$f":"kenkijun!B25","v":0},{"$f":"kenkijun!C25","v":0},{"$f":"kenkijun!D25","v":0},{"$f":"kenkijun!E25","v":0},null,{"$f":"kenkijun!G25","v":0},{"$f":"kenkijun!H25","v":0},{"$f":"kenkijun!I25","v":0},{"$f":"kenkijun!J25","v":0},{"$f":"kenkijun!K25","v":0},{"$f":"kenkijun!L25","v":"最低"}]
[25,"",null,null,null,null,{"$f":"IF(M42=\"\",\"\",VLOOKUP($H$1,vldata!$A$2:$B$7,2))","v":""},"","","","","",null,null,null,null,null,null,null,null,null,null,null,null,null,null,null,null,null,null,null,null,null,null,null,null,null,null,null,null,null,null,null,null,null,null,null,null,null,null,null,null,null,null,null,null,null,null,null,null,null,null,null,null,null,null,null,{"$f":"kenkijun!A26","v":2},{"$f":"kenkijun!B26","v":0},{"$f":"kenkijun!C26","v":0},{"$f":"kenkijun!D26","v":0},{"$f":"kenkijun!E26","v":0},null,{"$f":"kenkijun!G26","v":0},{"$f":"kenkijun!H26","v":0},{"$f":"kenkijun!I26","v":0},{"$f":"kenkijun!J26","v":0},{"$f":"kenkijun!K26","v":0}]
[26,"",null,null,null,null,{"$f":"IF(M43=\"\",\"\",VLOOKUP($H$1,vldata!$A$2:$B$7,2))","v":""},"","","","","",null,null,null,null,null,null,null,null,null,null,null,null,null,null,null,null,null,null,null,null,null,null,null,null,null,null,null,null,null,null,null,null,null,null,null,null,null,null,null,null,null,null,null,null,null,null,null,null,null,null,null,null,null,null,null,{"$f":"kenkijun!A27","v":3},{"$f":"kenkijun!B27","v":0},{"$f":"kenkijun!C27","v":0},{"$f":"kenkijun!D27","v":0},{"$f":"kenkijun!E27","v":0},null,{"$f":"kenkijun!G27","v":0},{"$f":"kenkijun!H27","v":0},{"$f":"kenkijun!I27","v":0},{"$f":"kenkijun!J27","v":0},{"$f":"kenkijun!K27","v":0}]
[27,"",null,null,null,null,{"$f":"IF(M44=\"\",\"\",VLOOKUP($H$1,vldata!$A$2:$B$7,2))","v":""},"","","","","",null,null,null,null,null,null,null,null,null,null,null,null,null,null,null,null,null,null,null,null,null,null,null,null,null,null,null,null,null,null,null,null,null,null,null,null,null,null,null,null,null,null,null,null,null,null,null,null,null,null,null,null,null,null,null,{"$f":"kenkijun!A28","v":4},{"$f":"kenkijun!B28","v":6.93},{"$f":"kenkijun!C28","v":5.17},{"$f":"kenkijun!D28","v":17.939999999999998},{"$f":"kenkijun!E28","v":19.22},null,{"$f":"kenkijun!G28","v":1.1000000000000014},{"$f":"kenkijun!H28","v":11.98},{"$f":"kenkijun!I28","v":96.52000000000001},{"$f":"kenkijun!J28","v":2.75},{"$f":"kenkijun!K28","v":30.28}]
[28,"",null,null,null,null,{"$f":"IF(M45=\"\",\"\",VLOOKUP($H$1,vldata!$A$2:$B$7,2))","v":""},"","","","","",null,null,null,null,null,null,null,null,null,null,null,null,null,null,null,null,null,null,null,null,null,null,null,null,null,null,null,null,null,null,null,null,null,null,null,null,null,null,null,null,null,null,null,null,null,null,null,null,null,null,null,null,null,null,null,{"$f":"kenkijun!A29","v":5},{"$f":"kenkijun!B29","v":7.95},{"$f":"kenkijun!C29","v":7.2100000000000009},{"$f":"kenkijun!D29","v":19.440000000000001},{"$f":"kenkijun!E29","v":24.03},null,{"$f":"kenkijun!G29","v":5.0500000000000043},{"$f":"kenkijun!H29","v":11.47},{"$f":"kenkijun!I29","v":103.59},{"$f":"kenkijun!J29","v":3.3499999999999996},{"$f":"kenkijun!K29","v":36.090000000000003}]
[29,"",null,null,null,null,{"$f":"IF(M46=\"\",\"\",VLOOKUP($H$1,vldata!$A$2:$B$7,2))","v":""},"","","","","",null,null,null,null,null,null,null,null,null,null,null,null,null,null,null,null,null,null,null,null,null,null,null,null,null,null,null,null,null,null,null,null,null,null,null,null,null,null,null,null,null,null,null,null,null,null,null,null,null,null,null,null,null,null,null,{"$f":"kenkijun!A30","v":6},{"$f":"kenkijun!B30","v":9.73},{"$f":"kenkijun!C30","v":8.3400000000000016},{"$f":"kenkijun!D30","v":21.36},{"$f":"kenkijun!E30","v":26.879999999999995},null,{"$f":"kenkijun!G30","v":7.3900000000000006},{"$f":"kenkijun!H30","v":11.08},{"$f":"kenkijun!I30","v":108.76999999999998},{"$f":"kenkijun!J30","v":3.6099999999999994},{"$f":"kenkijun!K30","v":40.369999999999997}]
[30,"",null,null,null,null,{"$f":"IF(M47=\"\",\"\",VLOOKUP($H$1,vldata!$A$2:$B$7,2))","v":""},"","","","",""]
[1,"",null,null,null,null,{"$f":"IF(M48=\"\",\"\",VLOOKUP($H$1,vldata!$A$2:$B$7,2))","v":""},"","",{"$f":"IF(M48=\"\",\"\",2)","v":""},"",{"$f":"IF(M48=\"\",\"\",\"女子\")","v":""}]
[2,"",null,null,null,null,{"$f":"IF(M49=\"\",\"\",VLOOKUP($H$1,vldata!$A$2:$B$7,2))","v":""},"","","","",""]
[3,{"$f":"IF(M50=\"\",\"\",H50*100000+I50*1000+J50*100+K50)","v":""},null,null,null,null,{"$f":"IF(M50=\"\",\"\",VLOOKUP($H$1,vldata!$A$2:$B$7,2))","v":""},{"$f":"IF(M50=\"\",\"\",$H$1)","v":""},{"$f":"IF(M50=\"\",\"\",$K$1)","v":""},"",{"$f":"IF(M50=\"\",\"\",A50)","v":""},""]
[4,"",null,null,null,null,{"$f":"IF(M51=\"\",\"\",VLOOKUP($H$1,vldata!$A$2:$B$7,2))","v":""},"","","","",""]
[5,"",null,null,null,null,{"$f":"IF(M52=\"\",\"\",VLOOKUP($H$1,vldata!$A$2:$B$7,2))","v":""},"","","","",""]
[6,"",null,null,null,null,{"$f":"IF(M53=\"\",\"\",VLOOKUP($H$1,vldata!$A$2:$B$7,2))","v":""},"","","","",""]
[7,"",null,null,null,null,{"$f":"IF(M54=\"\",\"\",VLOOKUP($H$1,vldata!$A$2:$B$7,2))","v":""},"","","","",""]
[8,"",null,null,null,null,{"$f":"IF(M55=\"\",\"\",VLOOKUP($H$1,vldata!$A$2:$B$7,2))","v":""},"","","","",""]
[9,"",null,null,null,null,{"$f":"IF(M56=\"\",\"\",VLOOKUP($H$1,vldata!$A$2:$B$7,2))","v":""},"","","","",""]
[10,"",null,null,null,null,{"$f":"IF(M57=\"\",\"\",VLOOKUP($H$1,vldata!$A$2:$B$7,2))","v":""},"","","","",""]
[11,"",null,null,null,null,{"$f":"IF(M58=\"\",\"\",VLOOKUP($H$1,vldata!$A$2:$B$7,2))","v":""},"","","","",""]
[12,"",null,null,null,null,{"$f":"IF(M59=\"\",\"\",VLOOKUP($H$1,vldata!$A$2:$B$7,2))","v":""},"","","","",""]
[13,"",null,null,null,null,{"$f":"IF(M60=\"\",\"\",VLOOKUP($H$1,vldata!$A$2:$B$7,2))","v":""},"","","","",""]
[14,"",null,null,null,null,{"$f":"IF(M61=\"\",\"\",VLOOKUP($H$1,vldata!$A$2:$B$7,2))","v":""},"","","","",""]
[15,"",null,null,null,null,{"$f":"IF(M62=\"\",\"\",VLOOKUP($H$1,vldata!$A$2:$B$7,2))","v":""},"","","","",""]
[16,"",null,null,null,null,{"$f":"IF(M63=\"\",\"\",VLOOKUP($H$1,vldata!$A$2:$B$7,2))","v":""},"","","","",""]
[17,"",null,null,null,null,{"$f":"IF(M64=\"\",\"\",VLOOKUP($H$1,vldata!$A$2:$B$7,2))","v":""},"","","","",""]
[18,"",null,null,null,null,{"$f":"IF(M65=\"\",\"\",VLOOKUP($H$1,vldata!$A$2:$B$7,2))","v":""},"","","","",""]
[19,"",null,null,null,null,{"$f":"IF(M66=\"\",\"\",VLOOKUP($H$1,vldata!$A$2:$B$7,2))","v":""},"","","","",""]
[20,"",null,null,null,null,{"$f":"IF(M67=\"\",\"\",VLOOKUP($H$1,vldata!$A$2:$B$7,2))","v":""},"","","","",""]
[21,"",null,null,null,null,{"$f":"IF(M68=\"\",\"\",VLOOKUP($H$1,vldata!$A$2:$B$7,2))","v":""},"","","","",""]
[22,"",null,null,null,null,{"$f":"IF(M69=\"\",\"\",VLOOKUP($H$1,vldata!$A$2:$B$7,2))","v":""},"","","","",""]
[23,"",null,null,null,null,{"$f":"IF(M70=\"\",\"\",VLOOKUP($H$1,vldata!$A$2:$B$7,2))","v":""},"","","","",""]
[24,"",null,null,null,null,{"$f":"IF(M71=\"\",\"\",VLOOKUP($H$1,vldata!$A$2:$B$7,2))","v":""},"","","","",""]
[25,"",null,null,null,null,{"$f":"IF(M72=\"\",\"\",VLOOKUP($H$1,vldata!$A$2:$B$7,2))","v":""},"","","","",""]
[26,"",null,null,null,null,{"$f":"IF(M73=\"\",\"\",VLOOKUP($H$1,vldata!$A$2:$B$7,2))","v":""},"","","","",""]
[27,"",null,null,null,null,{"$f":"IF(M74=\"\",\"\",VLOOKUP($H$1,vldata!$A$2:$B$7,2))","v":""},"","","","",""]
[28,"",null,null,null,null,{"$f":"IF(M75=\"\",\"\",VLOOKUP($H$1,vldata!$A$2:$B$7,2))","v":""},"","","","",""]
[29,"",null,null,null,null,{"$f":"IF(M76=\"\",\"\",VLOOKUP($H$1,vldata!$A$2:$B$7,2))","v":""},"","","","",""]
[30,"",null,null,null,null,{"$f":"IF(M77=\"\",\"\",VLOOKUP($H$1,vldata!$A$2:$B$7,2))","v":""},"","","","",""]

{"sheet":"input_save","index":1,"n_rows":77,"n_cols":79,"rows_kept":77,"cut":false,"hidden":false,"merged":[[10,15,11,20],[15,13,15,24],[15,25,15,33],[3,7,3,9],[7,12,7,13],[8,12,8,13],[4,8,5,15],[10,12,10,13],[11,12,11,13]]}
[null,{"$f":"$K$8*100+$K$9","v":0},null,null,null,null,null,{"$f":"$K$8","v":0},null,null,{"$f":"$K$9","v":0},null,{"$f":"IF(COUNTBLANK($M$18:$M$77)<60,1,IF(COUNTBLANK($M$18:$M$77)=60,2))","v":2},null,{"$f":"IF(AND(30-COUNTBLANK($M$18:$M$47)=$K$11,30-COUNTBLANK($M$48:$M$77)=$K$12),1,2)","v":1},null,{"$f":"30-COUNTBLANK($M$18:$M$47)","v":0},{"$f":"30-COUNTBLANK($M$48:$M$77)","v":0}]
[]
[]
[]
[]
[]
[]
[null,null,null,null,null,null,null,null,null,"学年"]
[null,null,null,null,null,null,null,null,null,"学級"]
[]
[null,{"$f":"30-COUNTBLANK($M$18:$M$47)","v":0},null,null,null,null,null,null,null,"男子",0,null,{"$f":"IF(SUM($K$11:$K$12)=0,\"\",IF(O4=1,\"\",\"男子\"&$K$11&\"人　\"&\"女子\"&$K$12&\"人の\"))","v":""},null,null,{"$f":"IF(COUNTBLANK($M$18:$M$77)=60,\"まず氏名欄の入力を行って下さい！\",IF($O$1=1,\"全員の氏名の入力が完了してます\",IF(OR($K$11<(30-COUNTBLANK($M$18:$M$47)),$K$12<(30-COUNTBLANK($M$48:$M$77))),\"氏名の数が多くなっています！\",IF(OR($K$11>(30-COUNTBLANK($M$18:$M$47)),$K$12>(30-COUNTBLANK($M$48:$M$77))),\"氏名の未入力があります！\",IF(OR($K$11-(30-COUNTBLANK($M$18:$M$47))<0,$K$11-(30-COUNTBLANK($M$18:$M$47))>0),\"男子の入力した氏名の数が違います！\",IF(OR($K$12-(30-COUNTBLANK($M$48:$M$77))<0,$K$12-COUNTBLANK($M$48:$M$77)>0),\"女子の入力した氏名の数が違います\",\"\"))))))","v":"まず氏名欄の入力を行って下さい！"}]
[null,null,null,null,null,null,null,null,null,"女子",0,null,{"$f":"IF(SUM($K$11:$K$12)=0,\"\",IF(O4=1,\"\",\"氏名の入力が必要です！\"))","v":""}]
[null,null,null,null,null,null,null,null,null,"計",{"$f":"SUM(K11:K12)","v":0}]
[]
[null,null,null,null,null,null,null,null,null,null,null,null,"※氏名欄に名前を入力していないのに児童データが表示されているときは、氏名欄に空白が入っていますので、空白を削除して下さい。"]
[null,null,null,null,null,null,null,null,null,"児童データ",null,null,"※氏名欄が空白の場合、\n　エラーで動作しません。","アンケートデータ入力",null,null,null,null,null,null,null,null,null,null,null,"測定種目結果入力"]
[null,"ID",null,null,null,null,"学齢","学年","組","性別\n番号","整理\n番号","性別","氏名\n水色は男子\nピンクは女子","Q4","Q5","Q6","Q7","Q8","Q9","Q11","Q12","Q13","Q14","Q15","Q16","握力\n(kg)","上体\n起こ し\n(回)","長座\n体前屈\n(cm)","反復\n横とび\n(回)","持久走\n（中高のみ）","２０ｍ\nシャトルラン(回)","５０ｍ走\n(秒)","立ち幅とび\n(cm)","ソフト\nボール\n投げ\n(m)"]
[1,{"$f":"IF(M18=\"\",\"\",H18*100000+I18*1000+J18*100+K18)","v":""},null,null,null,null,{"$f":"IF(M18=\"\",\"\",VLOOKUP($H$1,vldata!$A$2:$B$7,2))","v":""},{"$f":"IF(M18=\"\",\"\",$H$1)","v":""},{"$f":"IF(M18=\"\",\"\",$K$1)","v":""},{"$f":"IF(M18=\"\",\"\",1)","v":""},{"$f":"IF(M18=\"\",\"\",A18)","v":""},{"$f":"IF(M18=\"\",\"\",\"男子\")","v":""},null,null,null,null,null,null,null,null,null,null,null,null,null,null,null,null,null,null,null,null,null,null,null,null,null,null,null,null,null,null,null,null,null,null,null,null,null,null,null,null,null,null,null,null,null,null,null,null,null,null,null,null,null,null,null,{"$f":"kenkijun!B2","v":"男子"}]
[2,"",null,null,null,null,{"$f":"IF(M19=\"\",\"\",VLOOKUP($H$1,vldata!$A$2:$B$7,2))","v":""},"","","","","",null,null,null,null,null,null,null,null,null,null,null,null,null,null,null,null,null,null,null,null,null,null,null,null,null,null,null,null,null,null,null,null,null,null,null,null,null,null,null,null,null,null,null,null,null,null,null,null,null,null,null,null,null,null,null,{"$f":"kenkijun!A3","v":"学年"},{"$f":"kenkijun!B3","v":"握力"},{"$f":"kenkijun!C3","v":"上体"},{"$f":"kenkijun!D3","v":"長座"},{"$f":"kenkijun!E3","v":"反復"},{"$f":"kenkijun!F3","v":"持久走"},{"$f":"kenkijun!G3","v":"シャ"},{"$f":"kenkijun!H3","v":"50m"},{"$f":"kenkijun!I3","v":"立幅"},{"$f":"kenkijun!J3","v":"ソフ"},{"$f":"kenkijun!K3","v":"全体"},{"$f":"kenkijun!L3","v":"最高"}]
[3,"",null,null,null,null,{"$f":"IF(M20=\"\",\"\",VLOOKUP($H$1,vldata!$A$2:$B$7,2))","v":""},"","","","","",null,null,null,null,null,null,null,null,null,null,null,null,null,null,null,null,null,null,null,null,null,null,null,null,null,null,null,null,null,null,null,null,null,null,null,null,null,null,null,null,null,null,null,null,null,null,null,null,null,null,null,null,null,null,null,{"$f":"kenkijun!A4","v":1},{"$f":"kenkijun!B4","v":0},{"$f":"kenkijun!C4","v":0},{"$f":"kenkijun!D4","v":0},{"$f":"kenkijun!E4","v":0},null,{"$f":"kenkijun!G4","v":0},{"$f":"kenkijun!H4","v":0},{"$f":"kenkijun!I4","v":0},{"$f":"kenkijun!J4","v":0},{"$f":"kenkijun!K4","v":0}]
[4,"",null,null,null,null,{"$f":"IF(M21=\"\",\"\",VLOOKUP($H$1,vldata!$A$2:$B$7,2))","v":""},"","","","","",null,null,null,null,null,null,null,null,null,null,null,null,null,null,null,null,null,null,null,null,null,null,null,null,null,null,null,null,null,null,null,null,null,null,null,null,null,null,null,null,null,null,null,null,null,null,null,null,null,null,null,null,null,null,null,{"$f":"kenkijun!A5","v":2},{"$f":"kenkijun!B5","v":0},{"$f":"kenkijun!C5","v":0},{"$f":"kenkijun!D5","v":0},{"$f":"kenkijun!E5","v":0},null,{"$f":"kenkijun!G5","v":0},{"$f":"kenkijun!H5","v":0},{"$f":"kenkijun!I5","v":0},{"$f":"kenkijun!J5","v":0},{"$f":"kenkijun!K5","v":0}]
[5,"",null,null,null,null,{"$f":"IF(M22=\"\",\"\",VLOOKUP($H$1,vldata!$A$2:$B$7,2))","v":""},"","","","","",null,null,null,null,null,null,null,null,null,null,null,null,null,null,null,null,null,null,null,null,null,null,null,null,null,null,null,null,null,null,null,null,null,null,null,null,null,null,null,null,null,null,null,null,null,null,null,null,null,null,null,null,null,null,null,{"$f":"kenkijun!A6","v":3},{"$f":"kenkijun!B6","v":0},{"$f":"kenkijun!C6","v":0},{"$f":"kenkijun!D6","v":0},{"$f":"kenkijun!E6","v":0},null,{"$f":"kenkijun!G6","v":0},{"$f":"kenkijun!H6","v":0},{"$f":"kenkijun!I6","v":0},{"$f":"kenkijun!J6","v":0},{"$f":"kenkijun!K6","v":0}]
[6,"",null,null,null,null,{"$f":"IF(M23=\"\",\"\",VLOOKUP($H$1,vldata!$A$2:$B$7,2))","v":""},"","","","","",null,null,null,null,null,null,null,null,null,null,null,null,null,null,null,null,null,null,null,null,null,null,null,null,null,null,null,null,null,null,null,null,null,null,null,null,null,null,null,null,null,null,null,null,null,null,null,null,null,null,null,null,null,null,null,{"$f":"kenkijun!A7","v":4},{"$f":"kenkijun!B7","v":19.007999999999999},{"$f":"kenkijun!C7","v":26.242999999999999},{"$f":"kenkijun!D7","v":42.933},{"$f":"kenkijun!E7","v":48.53},null,{"$f":"kenkijun!G7","v":70.247},{"$f":"kenkijun!H7","v":8.0790000000000006},{"$f":"kenkijun!I7","v":177.608},{"$f":"kenkijun!J7","v":30.268999999999998},{"$f":"kenkijun!K7","v":60.706000000000003}]
[7,"",null,null,null,null,{"$f":"IF(M24=\"\",\"\",VLOOKUP($H$1,vldata!$A$2:$B$7,2))","v":""},"","","","","",null,null,null,null,null,null,null,null,null,null,null,null,null,null,null,null,null,null,null,null,null,null,null,null,null,null,null,null,null,null,null,null,null,null,null,null,null,null,null,null,null,null,null,null,null,null,null,null,null,null,null,null,null,null,null,{"$f":"kenkijun!A8","v":5},{"$f":"kenkijun!B8","v":22.215999999999998},{"$f":"kenkijun!C8","v":28.218000000000004},{"$f":"kenkijun!D8","v":45.311999999999998},{"$f":"kenkijun!E8","v":52.679000000000002},null,{"$f":"kenkijun!G8","v":82.340999999999994},{"$f":"kenkijun!H8","v":7.729000000000001},{"$f":"kenkijun!I8","v":187},{"$f":"kenkijun!J8","v":35.152000000000001},{"$f":"kenkijun!K8","v":66.956999999999994}]
[8,"",null,null,null,null,{"$f":"IF(M25=\"\",\"\",VLOOKUP($H$1,vldata!$A$2:$B$7,2))","v":""},"","","","","",null,null,null,null,null,null,null,null,null,null,null,null,null,null,null,null,null,null,null,null,null,null,null,null,null,null,null,null,null,null,null,null,null,null,null,null,null,null,null,null,null,null,null,null,null,null,null,null,null,null,null,null,null,null,null,{"$f":"kenkijun!A9","v":6},{"$f":"kenkijun!B9","v":26.779},{"$f":"kenkijun!C9","v":29.423000000000002},{"$f":"kenkijun!D9","v":47.143999999999998},{"$f":"kenkijun!E9","v":55.573999999999998},null,{"$f":"kenkijun!G9","v":94.064999999999998},{"$f":"kenkijun!H9","v":7.363999999999999},{"$f":"kenkijun!I9","v":200.732},{"$f":"kenkijun!J9","v":40.753},{"$f":"kenkijun!K9","v":73.194000000000003}]
[9,"",null,null,null,null,{"$f":"IF(M26=\"\",\"\",VLOOKUP($H$1,vldata!$A$2:$B$7,2))","v":""},"","","","","",null,null,null,null,null,null,null,null,null,null,null,null,null,null,null,null,null,null,null,null,null,null,null,null,null,null,null,null,null,null,null,null,null,null,null,null,null,null,null,null,null,null,null,null,null,null,null,null,null,null,null,null,null,null,null,{"$f":"kenkijun!A10","v":1},{"$f":"kenkijun!B10","v":0},{"$f":"kenkijun!C10","v":0},{"$f":"kenkijun!D10","v":0},{"$f":"kenkijun!E10","v":0},null,{"$f":"kenkijun!G10","v":0},{"$f":"kenkijun!H10","v":0},{"$f":"kenkijun!I10","v":0},{"$f":"kenkijun!J10","v":0},{"$f":"kenkijun!K10","v":0},{"$f":"kenkijun!L10","v":"最低"}]
[10,"",null,null,null,null,{"$f":"IF(M27=\"\",\"\",VLOOKUP($H$1,vldata!$A$2:$B$7,2))","v":""},"","","","","",null,null,null,null,null,null,null,null,null,null,null,null,null,null,null,null,null,null,null,null,null,null,null,null,null,null,null,null,null,null,null,null,null,null,null,null,null,null,null,null,null,null,null,null,null,null,null,null,null,null,null,null,null,null,null,{"$f":"kenkijun!A11","v":2},{"$f":"kenkijun!B11","v":0},{"$f":"kenkijun!C11","v":0},{"$f":"kenkijun!D11","v":0},{"$f":"kenkijun!E11","v":0},null,{"$f":"kenkijun!G11","v":0},{"$f":"kenkijun!H11","v":0},{"$f":"kenkijun!I11","v":0},{"$f":"kenkijun!J11","v":0},{"$f":"kenkijun!K11","v":0}]
[11,"",null,null,null,null,{"$f":"IF(M28=\"\",\"\",VLOOKUP($H$1,vldata!$A$2:$B$7,2))","v":""},"","","","","",null,null,null,null,null,null,null,null,null,null,null,null,null,null,null,null,null,null,null,null,null,null,null,null,null,null,null,null,null,null,null,null,null,null,null,null,null,null,null,null,null,null,null,null,null,null,null,null,null,null,null,null,null,null,null,{"$f":"kenkijun!A12","v":3},{"$f":"kenkijun!B12","v":0},{"$f":"kenkijun!C12","v":0},{"$f":"kenkijun!D12","v":0},{"$f":"kenkijun!E12","v":0},null,{"$f":"kenkijun!G12","v":0},{"$f":"kenkijun!H12","v":0},{"$f":"kenkijun!I12","v":0},{"$f":"kenkijun!J12","v":0},{"$f":"kenkijun!K12","v":0}]
[12,"",null,null,null,null,{"$f":"IF(M29=\"\",\"\",VLOOKUP($H$1,vldata!$A$2:$B$7,2))","v":""},"","","","","",null,null,null,null,null,null,null,null,null,null,null,null,null,null,null,null,null,null,null,null,null,null,null,null,null,null,null,null,null,null,null,null,null,null,null,null,null,null,null,null,null,null,null,null,null,null,null,null,null,null,null,null,null,null,null,{"$f":"kenkijun!A13","v":4},{"$f":"kenkijun!B13","v":7.39},{"$f":"kenkijun!C13","v":4.8199999999999985},{"$f":"kenkijun!D13","v":14.850000000000001},{"$f":"kenkijun!E13","v":20.04},null,{"$f":"kenkijun!G13","v":0.28000000000000114},{"$f":"kenkijun!H13","v":11.89},{"$f":"kenkijun!I13","v":103.83000000000001},{"$f":"kenkijun!J13","v":4.1099999999999994},{"$f":"kenkijun!K13","v":29.33}]
[13,"",null,null,null,null,{"$f":"IF(M30=\"\",\"\",VLOOKUP($H$1,vldata!$A$2:$B$7,2))","v":""},"","","","","",null,null,null,null,null,null,null,null,null,null,null,null,null,null,null,null,null,null,null,null,null,null,null,null,null,null,null,null,null,null,null,null,null,null,null,null,null,null,null,null,null,null,null,null,null,null,null,null,null,null,null,null,null,null,null,{"$f":"kenkijun!A14","v":5},{"$f":"kenkijun!B14","v":8.23},{"$f":"kenkijun!C14","v":6.24},{"$f":"kenkijun!D14","v":15.489999999999998},{"$f":"kenkijun!E14","v":24.3},null,{"$f":"kenkijun!G14","v":5.2700000000000031},{"$f":"kenkijun!H14","v":11.540000000000001},{"$f":"kenkijun!I14","v":107.44999999999999},{"$f":"kenkijun!J14","v":5.3299999999999983},{"$f":"kenkijun!K14","v":33.25}]
[14,"",null,null,null,null,{"$f":"IF(M31=\"\",\"\",VLOOKUP($H$1,vldata!$A$2:$B$7,2))","v":""},"","","","","",null,null,null,null,null,null,null,null,null,null,null,null,null,null,null,null,null,null,null,null,null,null,null,null,null,null,null,null,null,null,null,null,null,null,null,null,null,null,null,null,null,null,null,null,null,null,null,null,null,null,null,null,null,null,null,{"$f":"kenkijun!A15","v":6},{"$f":"kenkijun!B15","v":9.1300000000000026},{"$f":"kenkijun!C15","v":9.11},{"$f":"kenkijun!D15","v":17.47},{"$f":"kenkijun!E15","v":27.75},null,{"$f":"kenkijun!G15","v":11.369999999999997},{"$f":"kenkijun!H15","v":10.989999999999998},{"$f":"kenkijun!I15","v":116.51999999999998},{"$f":"kenkijun!J15","v":6.75},{"$f":"kenkijun!K15","v":38.71}]
[15,"",null,null,null,null,{"$f":"IF(M32=\"\",\"\",VLOOKUP($H$1,vldata!$A$2:$B$7,2))","v":""},"","","","","",null,null,null,null,null,null,null,null,null,null,null,null,null,null,null,null,null,null,null,null,null,null,null,null,null,null,null,null,null,null,null,null,null,null,null,null,null,null,null,null,null,null,null,null,null,null,null,null,null,null,null,null,null,null,null,{"$f":"kenkijun!A16","v":1},{"$f":"kenkijun!B16","v":2},{"$f":"kenkijun!C16","v":3},{"$f":"kenkijun!D16","v":4},{"$f":"kenkijun!E16","v":5},{"$f":"kenkijun!F16","v":6},{"$f":"kenkijun!G16","v":7},{"$f":"kenkijun!H16","v":8},{"$f":"kenkijun!I16","v":9},{"$f":"kenkijun!J16","v":10},{"$f":"kenkijun!K16","v":11}]
[16,"",null,null,null,null,{"$f":"IF(M33=\"\",\"\",VLOOKUP($H$1,vldata!$A$2:$B$7,2))","v":""},"","","","","",null,null,null,null,null,null,null,null,null,null,null,null,null,null,null,null,null,null,null,null,null,null,null,null,null,null,null,null,null,null,null,null,null,null,null,null,null,null,null,null,null,null,null,null,null,null,null,null,null,null,null,null,null,null,null,{"$f":"kenkijun!B17","v":"女子"}]
[17,"",null,null,null,null,{"$f":"IF(M34=\"\",\"\",VLOOKUP($H$1,vldata!$A$2:$B$7,2))","v":""},"","","","","",null,null,null,null,null,null,null,null,null,null,null,null,null,null,null,null,null,null,null,null,null,null,null,null,null,null,null,null,null,null,null,null,null,null,null,null,null,null,null,null,null,null,null,null,null,null,null,null,null,null,null,null,null,null,null,{"$f":"kenkijun!A18","v":"学年"},{"$f":"kenkijun!B18","v":"握力"},{"$f":"kenkijun!C18","v":"上体"},{"$f":"kenkijun!D18","v":"長座"},{"$f":"kenkijun!E18","v":"反復"},{"$f":"kenkijun!F18","v":"持久走"},{"$f":"kenkijun!G18","v":"シャ"},{"$f":"kenkijun!H18","v":"50m"},{"$f":"kenkijun!I18","v":"立幅"},{"$f":"kenkijun!J18","v":"ソフ"},{"$f":"kenkijun!K18","v":"全体"},{"$f":"kenkijun!L18","v":"最高"}]
[18,"",null,null,null,null,{"$f":"IF(M35=\"\",\"\",VLOOKUP($H$1,vldata!$A$2:$B$7,2))","v":""},"","","","","",null,null,null,null,null,null,null,null,null,null,null,null,null,null,null,null,null,null,null,null,null,null,null,null,null,null,null,null,null,null,null,null,null,null,null,null,null,null,null,null,null,null,null,null,null,null,null,null,null,null,null,null,null,null,null,{"$f":"kenkijun!A19","v":1},{"$f":"kenkijun!B19","v":0},{"$f":"kenkijun!C19","v":0},{"$f":"kenkijun!D19","v":0},{"$f":"kenkijun!E19","v":0},null,{"$f":"kenkijun!G19","v":0},{"$f":"kenkijun!H19","v":0},{"$f":"kenkijun!I19","v":0},{"$f":"kenkijun!J19","v":0},{"$f":"kenkijun!K19","v":0}]
[19,"",null,null,null,null,{"$f":"IF(M36=\"\",\"\",VLOOKUP($H$1,vldata!$A$2:$B$7,2))","v":""},"","","","","",null,null,null,null,null,null,null,null,null,null,null,null,null,null,null,null,null,null,null,null,null,null,null,null,null,null,null,null,null,null,null,null,null,null,null,null,null,null,null,null,null,null,null,null,null,null,null,null,null,null,null,null,null,null,null,{"$f":"kenkijun!A20","v":2},{"$f":"kenkijun!B20","v":0},{"$f":"kenkijun!C20","v":0},{"$f":"kenkijun!D20","v":0},{"$f":"kenkijun!E20","v":0},null,{"$f":"kenkijun!G20","v":0},{"$f":"kenkijun!H20","v":0},{"$f":"kenkijun!I20","v":0},{"$f":"kenkijun!J20","v":0},{"$f":"kenkijun!K20","v":0}]
[20,"",null,null,null,null,{"$f":"IF(M37=\"\",\"\",VLOOKUP($H$1,vldata!$A$2:$B$7,2))","v":""},"","","","","",null,null,null,null,null,null,null,null,null,null,null,null,null,null,null,null,null,null,null,null,null,null,null,null,null,null,null,null,null,null,null,null,null,null,null,null,null,null,null,null,null,null,null,null,null,null,null,null,null,null,null,null,null,null,null,{"$f":"kenkijun!A21","v":3},{"$f":"kenkijun!B21","v":0},{"$f":"kenkijun!C21","v":0},{"$f":"kenkijun!D21","v":0},{"$f":"kenkijun!E21","v":0},null,{"$f":"kenkijun!G21","v":0},{"$f":"kenkijun!H21","v":0},{"$f":"kenkijun!I21","v":0},{"$f":"kenkijun!J21","v":0},{"$f":"kenkijun!K21","v":0}]
[21,"",null,null,null,null,{"$f":"IF(M38=\"\",\"\",VLOOKUP($H$1,vldata!$A$2:$B$7,2))","v":""},"","","","","",null,null,null,null,null,null,null,null,null,null,null,null,null,null,null,null,null,null,null,null,null,null,null,null,null,null,null,null,null,null,null,null,null,null,null,null,null,null,null,null,null,null,null,null,null,null,null,null,null,null,null,null,null,null,null,{"$f":"kenkijun!A22","v":4},{"$f":"kenkijun!B22","v":18.474},{"$f":"kenkijun!C22","v":24.594999999999999},{"$f":"kenkijun!D22","v":46.8},{"$f":"kenkijun!E22","v":45.896999999999998},null,{"$f":"kenkijun!G22","v":55.822999999999993},{"$f":"kenkijun!H22","v":8.5019999999999989},{"$f":"kenkijun!I22","v":167.745},{"$f":"kenkijun!J22","v":18.919},{"$f":"kenkijun!K22","v":61.582000000000008}]
[22,"",null,null,null,null,{"$f":"IF(M39=\"\",\"\",VLOOKUP($H$1,vldata!$A$2:$B$7,2))","v":""},"","","","","",null,null,null,null,null,null,null,null,null,null,null,null,null,null,null,null,null,null,null,null,null,null,null,null,null,null,null,null,null,null,null,null,null,null,null,null,null,null,null,null,null,null,null,null,null,null,null,null,null,null,null,null,null,null,null,{"$f":"kenkijun!A23","v":5},{"$f":"kenkijun!B23","v":22.231999999999999},{"$f":"kenkijun!C23","v":26.042999999999999},{"$f":"kenkijun!D23","v":49.927999999999997},{"$f":"kenkijun!E23","v":50.411000000000001},null,{"$f":"kenkijun!G23","v":67.765000000000001},{"$f":"kenkijun!H23","v":8.14},{"$f":"kenkijun!I23","v":178.29300000000001},{"$f":"kenkijun!J23","v":22.923000000000002},{"$f":"kenkijun!K23","v":68.686999999999998}]
[23,"",null,null,null,null,{"$f":"IF(M40=\"\",\"\",VLOOKUP($H$1,vldata!$A$2:$B$7,2))","v":""},"","","","","",null,null,null,null,null,null,null,null,null,null,null,null,null,null,null,null,null,null,null,null,null,null,null,null,null,null,null,null,null,null,null,null,null,null,null,null,null,null,null,null,null,null,null,null,null,null,null,null,null,null,null,null,null,null,null,{"$f":"kenkijun!A24","v":6},{"$f":"kenkijun!B24","v":25.454999999999998},{"$f":"kenkijun!C24","v":26.988},{"$f":"kenkijun!D24","v":52.217999999999996},{"$f":"kenkijun!E24","v":52.558},null,{"$f":"kenkijun!G24","v":75.322000000000003},{"$f":"kenkijun!H24","v":7.8609999999999998},{"$f":"kenkijun!I24","v":188.24599999999998},{"$f":"kenkijun!J24","v":26.143000000000001},{"$f":"kenkijun!K24","v":73.67}]
[24,"",null,null,null,null,{"$f":"IF(M41=\"\",\"\",VLOOKUP($H$1,vldata!$A$2:$B$7,2))","v":""},"","","","","",null,null,null,null,null,null,null,null,null,null,null,null,null,null,null,null,null,null,null,null,null,null,null,null,null,null,null,null,null,null,null,null,null,null,null,null,null,null,null,null,null,null,null,null,null,null,null,null,null,null,null,null,null,null,null,{"$f":"kenkijun!A25","v":1},{"$f":"kenkijun!B25","v":0},{"$f":"kenkijun!C25","v":0},{"$f":"kenkijun!D25","v":0},{"$f":"kenkijun!E25","v":0},null,{"$f":"kenkijun!G25","v":0},{"$f":"kenkijun!H25","v":0},{"$f":"kenkijun!I25","v":0},{"$f":"kenkijun!J25","v":0},{"$f":"kenkijun!K25","v":0},{"$f":"kenkijun!L25","v":"最低"}]
[25,"",null,null,null,null,{"$f":"IF(M42=\"\",\"\",VLOOKUP($H$1,vldata!$A$2:$B$7,2))","v":""},"","","","","",null,null,null,null,null,null,null,null,null,null,null,null,null,null,null,null,null,null,null,null,null,null,null,null,null,null,null,null,null,null,null,null,null,null,null,null,null,null,null,null,null,null,null,null,null,null,null,null,null,null,null,null,null,null,null,{"$f":"kenkijun!A26","v":2},{"$f":"kenkijun!B26","v":0},{"$f":"kenkijun!C26","v":0},{"$f":"kenkijun!D26","v":0},{"$f":"kenkijun!E26","v":0},null,{"$f":"kenkijun!G26","v":0},{"$f":"kenkijun!H26","v":0},{"$f":"kenkijun!I26","v":0},{"$f":"kenkijun!J26","v":0},{"$f":"kenkijun!K26","v":0}]
[26,"",null,null,null,null,{"$f":"IF(M43=\"\",\"\",VLOOKUP($H$1,vldata!$A$2:$B$7,2))","v":""},"","","","","",null,null,null,null,null,null,null,null,null,null,null,null,null,null,null,null,null,null,null,null,null,null,null,null,null,null,null,null,null,null,null,null,null,null,null,null,null,null,null,null,null,null,null,null,null,null,null,null,null,null,null,null,null,null,null,{"$f":"kenkijun!A27","v":3},{"$f":"kenkijun!B27","v":0},{"$f":"kenkijun!C27","v":0},{"$f":"kenkijun!D27","v":0},{"$f":"kenkijun!E27","v":0},null,{"$f":"kenkijun!G27","v":0},{"$f":"kenkijun!H27","v":0},{"$f":"kenkijun!I27","v":0},{"$f":"kenkijun!J27","v":0},{"$f":"kenkijun!K27","v":0}]
[27,"",null,null,null,null,{"$f":"IF(M44=\"\",\"\",VLOOKUP($H$1,vldata!$A$2:$B$7,2))","v":""},"","","","","",null,null,null,null,null,null,null,null,null,null,null,null,null,null,null,null,null,null,null,null,null,null,null,null,null,null,null,null,null,null,null,null,null,null,null,null,null,null,null,null,null,null,null,null,null,null,null,null,null,null,null,null,null,null,null,{"$f":"kenkijun!A28","v":4},{"$f":"kenkijun!B28","v":6.93},{"$f":"kenkijun!C28","v":5.17},{"$f":"kenkijun!D28","v":17.939999999999998},{"$f":"kenkijun!E28","v":19.22},null,{"$f":"kenkijun!G28","v":1.1000000000000014},{"$f":"kenkijun!H28","v":11.98},{"$f":"kenkijun!I28","v":96.52000000000001},{"$f":"kenkijun!J28","v":2.75},{"$f":"kenkijun!K28","v":30.28}]
[28,"",null,null,null,null,{"$f":"IF(M45=\"\",\"\",VLOOKUP($H$1,vldata!$A$2:$B$7,2))","v":""},"","","","","",null,null,null,null,null,null,null,null,null,null,null,null,null,null,null,null,null,null,null,null,null,null,null,null,null,null,null,null,null,null,null,null,null,null,null,null,null,null,null,null,null,null,null,null,null,null,null,null,null,null,null,null,null,null,null,{"$f":"kenkijun!A29","v":5},{"$f":"kenkijun!B29","v":7.95},{"$f":"kenkijun!C29","v":7.2100000000000009},{"$f":"kenkijun!D29","v":19.440000000000001},{"$f":"kenkijun!E29","v":24.03},null,{"$f":"kenkijun!G29","v":5.0500000000000043},{"$f":"kenkijun!H29","v":11.47},{"$f":"kenkijun!I29","v":103.59},{"$f":"kenkijun!J29","v":3.3499999999999996},{"$f":"kenkijun!K29","v":36.090000000000003}]
[29,"",null,null,null,null,{"$f":"IF(M46=\"\",\"\",VLOOKUP($H$1,vldata!$A$2:$B$7,2))","v":""},"","","","","",null,null,null,null,null,null,null,null,null,null,null,null,null,null,null,null,null,null,null,null,null,null,null,null,null,null,null,null,null,null,null,null,null,null,null,null,null,null,null,null,null,null,null,null,null,null,null,null,null,null,null,null,null,null,null,{"$f":"kenkijun!A30","v":6},{"$f":"kenkijun!B30","v":9.73},{"$f":"kenkijun!C30","v":8.3400000000000016},{"$f":"kenkijun!D30","v":21.36},{"$f":"kenkijun!E30","v":26.879999999999995},null,{"$f":"kenkijun!G30","v":7.3900000000000006},{"$f":"kenkijun!H30","v":11.08},{"$f":"kenkijun!I30","v":108.76999999999998},{"$f":"kenkijun!J30","v":3.6099999999999994},{"$f":"kenkijun!K30","v":40.369999999999997}]
[30,"",null,null,null,null,{"$f":"IF(M47=\"\",\"\",VLOOKUP($H$1,vldata!$A$2:$B$7,2))","v":""},"","","","",""]
[1,"",null,null,null,null,{"$f":"IF(M48=\"\",\"\",VLOOKUP($H$1,vldata!$A$2:$B$7,2))","v":""},"","",{"$f":"IF(M48=\"\",\"\",2)","v":""},"",{"$f":"IF(M48=\"\",\"\",\"女子\")","v":""}]
[2,"",null,null,null,null,{"$f":"IF(M49=\"\",\"\",VLOOKUP($H$1,vldata!$A$2:$B$7,2))","v":""},"","","","",""]
[3,{"$f":"IF(M50=\"\",\"\",H50*100000+I50*1000+J50*100+K50)","v":""},null,null,null,null,{"$f":"IF(M50=\"\",\"\",VLOOKUP($H$1,vldata!$A$2:$B$7,2))","v":""},{"$f":"IF(M50=\"\",\"\",$H$1)","v":""},{"$f":"IF(M50=\"\",\"\",$K$1)","v":""},"",{"$f":"IF(M50=\"\",\"\",A50)","v":""},""]
[4,"",null,null,null,null,{"$f":"IF(M51=\"\",\"\",VLOOKUP($H$1,vldata!$A$2:$B$7,2))","v":""},"","","","",""]
[5,"",null,null,null,null,{"$f":"IF(M52=\"\",\"\",VLOOKUP($H$1,vldata!$A$2:$B$7,2))","v":""},"","","","",""]
[6,"",null,null,null,null,{"$f":"IF(M53=\"\",\"\",VLOOKUP($H$1,vldata!$A$2:$B$7,2))","v":""},"","","","",""]
[7,"",null,null,null,null,{"$f":"IF(M54=\"\",\"\",VLOOKUP($H$1,vldata!$A$2:$B$7,2))","v":""},"","","","",""]
[8,"",null,null,null,null,{"$f":"IF(M55=\"\",\"\",VLOOKUP($H$1,vldata!$A$2:$B$7,2))","v":""},"","","","",""]
[9,"",null,null,null,null,{"$f":"IF(M56=\"\",\"\",VLOOKUP($H$1,vldata!$A$2:$B$7,2))","v":""},"","","","",""]
[10,"",null,null,null,null,{"$f":"IF(M57=\"\",\"\",VLOOKUP($H$1,vldata!$A$2:$B$7,2))","v":""},"","","","",""]
[11,"",null,null,null,null,{"$f":"IF(M58=\"\",\"\",VLOOKUP($H$1,vldata!$A$2:$B$7,2))","v":""},"","","","",""]
[12,"",null,null,null,null,{"$f":"IF(M59=\"\",\"\",VLOOKUP($H$1,vldata!$A$2:$B$7,2))","v":""},"","","","",""]
[13,"",null,null,null,null,{"$f":"IF(M60=\"\",\"\",VLOOKUP($H$1,vldata!$A$2:$B$7,2))","v":""},"","","","",""]
[14,"",null,null,null,null,{"$f":"IF(M61=\"\",\"\",VLOOKUP($H$1,vldata!$A$2:$B$7,2))","v":""},"","","","",""]
[15,"",null,null,null,null,{"$f":"IF(M62=\"\",\"\",VLOOKUP($H$1,vldata!$A$2:$B$7,2))","v":""},"","","","",""]
[16,"",null,null,null,null,{"$f":"IF(M63=\"\",\"\",VLOOKUP($H$1,vldata!$A$2:$B$7,2))","v":""},"","","","",""]
[17,"",null,null,null,null,{"$f":"IF(M64=\"\",\"\",VLOOKUP($H$1,vldata!$A$2:$B$7,2))","v":""},"","","","",""]
[18,"",null,null,null,null,{"$f":"IF(M65=\"\",\"\",VLOOKUP($H$1,vldata!$A$2:$B$7,2))","v":""},"","","","",""]
[19,"",null,null,null,null,{"$f":"IF(M66=\"\",\"\",VLOOKUP($H$1,vldata!$A$2:$B$7,2))","v":""},"","","","",""]
[20,"",null,null,null,null,{"$f":"IF(M67=\"\",\"\",VLOOKUP($H$1,vldata!$A$2:$B$7,2))","v":""},"","","","",""]
[21,"",null,null,null,null,{"$f":"IF(M68=\"\",\"\",VLOOKUP($H$1,vldata!$A$2:$B$7,2))","v":""},"","","","",""]
[22,"",null,null,null,null,{"$f":"IF(M69=\"\",\"\",VLOOKUP($H$1,vldata!$A$2:$B$7,2))","v":""},"","","","",""]
[23,"",null,null,null,null,{"$f":"IF(M70=\"\",\"\",VLOOKUP($H$1,vldata!$A$2:$B$7,2))","v":""},"","","","",""]
[24,"",null,null,null,null,{"$f":"IF(M71=\"\",\"\",VLOOKUP($H$1,vldata!$A$2:$B$7,2))","v":""},"","","","",""]
[25,"",null,null,null,null,{"$f":"IF(M72=\"\",\"\",VLOOKUP($H$1,vldata!$A$2:$B$7,2))","v":""},"","","","",""]
[26,"",null,null,null,null,{"$f":"IF(M73=\"\",\"\",VLOOKUP($H$1,vldata!$A$2:$B$7,2))","v":""},"","","","",""]
[27,"",null,null,null,null,{"$f":"IF(M74=\"\",\"\",VLOOKUP($H$1,vldata!$A$2:$B$7,2))","v":""},"","","","",""]
[28,"",null,null,null,null,{"$f":"IF(M75=\"\",\"\",VLOOKUP($H$1,vldata!$A$2:$B$7,2))","v":""},"","","","",""]
[29,"",null,null,null,null,{"$f":"IF(M76=\"\",\"\",VLOOKUP($H$1,vldata!$A$2:$B$7,2))","v":""},"","","","",""]
[30,"",null,null,null,null,{"$f":"IF(M77=\"\",\"\",VLOOKUP($H$1,vldata!$A$2:$B$7,2))","v":""},"","","","",""]

{"sheet":"vldata","index":2,"n_rows":732,"n_cols":60,"rows_kept":732,"cut":false,"hidden":false,"merged":[]}
["学年","学齢","校種",null,"市町名",null,null,null,null,"学級",null,null,"校種１",null,"校種２",null,"市町番号","市町名",null,"校種番号１","校種名１","校種番号２","校種名２","市町番号","市町名","学校名","学校番号","学校名省略","Q4","Q5","Q6","Q7","Q8","Q9","Q11","Q12","Q13","Q14","Q15","Q16","男握力","男上体","男長座","男反復","男持久走","男シャ","男５０Ｍ","男立幅","男ソフ","女握力","女上体","女長座","女反復","女持久走","女シャ","女５０Ｍ","女立幅","女ソフ",null,"在籍人数"]
["▼","06","公立小学校",1,"長崎市",201,1,"男",null,"▼",null,1,"▼選択して下さい",1,"▼選択して下さい",1,999,"▼選択して下さい",null,1,"公立",1,"小学校",201,"長崎市","日見小学校",90010,"日見",1,1,1,1,1,1,1,1,1,1,1,1,4,2,12,17,null,0,7.4,81,2,4,2,15,17,null,1,7.8,75,1,null,0]
[1,"07","私立",2,"佐世保市",202,2,"女",null,1,null,{"$f":"L2+1","v":2},"公立",{"$f":"N2+1","v":2},"小学校",{"$f":"P2+1","v":2},201,"長崎市",null,1,"公立",1,"小学校",201,"長崎市","伊良林小学校",90020,"伊良林",2,2,2,2,2,2,2,2,2,2,2,2,5,3,13,{"$f":"AR2+1","v":18},null,1,7.5,82,3,5,3,16,{"$f":"BA2+1","v":18},null,2,7.9,76,2,null,1]
[2,"08","特別支援学校小学部",3,"島原市",203,null,null,null,2,null,{"$f":"L3+1","v":3},"私立",3,"特別支援　小学校",3,202,"佐世保市",null,1,"公立",1,"小学校",201,"長崎市","上長崎小学校",90040,"上長崎",null,3,3,3,3,3,3,3,3,3,3,3,6,4,14,19,null,2,7.6,83,4,6,4,17,19,null,3,8,77,3,null,2]
[3,"09","国立",4,"諫早市",204,null,null,null,3,null,{"$f":"L4+1","v":4},"国立",4,null,4,203,"島原市",null,1,"公立",1,"小学校",201,"長崎市","西坂小学校",90070,"西坂",null,4,4,null,null,4,4,4,4,4,4,4,7,5,15,20,null,3,7.7,84,5,7,5,18,20,null,4,8.1,78,4,null,3]
[4,"10",null,5,"大村市",205,null,null,null,4,null,null,null,5,null,5,204,"諫早市",null,1,"公立",1,"小学校",201,"長崎市","小島小学校",90080,"小島",null,null,null,null,null,null,null,null,null,null,null,null,8,6,16,21,null,4,7.8,85,6,8,6,19,21,null,5,8.1999999999999993,79,5,null,{"$f":"BH5+1","v":4}]
[5,11,null,6,"平戸市",207,null,null,null,5,null,null,null,6,null,6,205,"大村市",null,1,"公立",1,"小学校",201,"長崎市","愛宕小学校",90090,"愛宕",null,null,null,null,null,null,null,null,null,null,null,null,9,7,17,22,null,5,7.9,86,7,9,7,20,22,null,6,8.3000000000000007,80,6,null,5]
[6,null,null,7,"松浦市",208,null,null,null,6,null,null,null,7,null,7,207,"平戸市",null,1,"公立",1,"小学校",201,"長崎市","佐古小学校",90100,"佐古",null,null,null,null,null,null,null,null,null,null,null,null,10,8,18,23,null,6,8,87,8,10,8,21,23,null,7,8.4,81,7,null,6]
[null,null,null,8,"対馬市",209,null,null,null,7,null,null,null,8,null,8,208,"松浦市",null,1,"公立",1,"小学校",201,"長崎市","仁田小学校",90110,"仁田",null,null,null,null,null,null,null,null,null,null,null,null,11,9,19,24,null,7,8.1,88,9,11,9,22,24,null,8,8.5,82,8,null,7]
[null,null,null,9,"壱岐市",210,null,null,null,8,null,null,null,null,null,9,209,"対馬市",null,1,"公立",1,"小学校",201,"長崎市","戸町小学校",90150,"戸町",null,null,null,null,null,null,null,null,null,null,null,null,12,10,20,25,null,8,8.1999999999999993,89,10,12,10,23,25,null,9,8.6,83,9,null,8]
[null,null,null,10,"五島市",211,null,null,null,9,null,null,null,null,null,10,210,"壱岐市",null,1,"公立",1,"小学校",201,"長崎市","小ケ倉小学校",90160,"小ケ倉",null,null,null,null,null,null,null,null,null,null,null,null,13,11,21,26,null,9,8.3000000000000007,90,11,13,11,24,26,null,10,8.6999999999999993,84,10,null,9]
[null,null,null,11,"西海市",212,null,null,null,10,null,null,null,null,null,11,211,"五島市",null,1,"公立",1,"小学校",201,"長崎市","土井首小学校",90170,"土井首",null,null,null,null,null,null,null,null,null,null,null,null,14,12,22,27,null,10,8.4,91,12,14,12,25,27,null,11,8.8000000000000007,85,11,null,10]
[null,null,null,12,"雲仙市",213,null,null,null,11,null,null,null,null,null,12,212,"西海市",null,1,"公立",1,"小学校",201,"長崎市","深堀小学校",90180,"深堀",null,null,null,null,null,null,null,null,null,null,null,null,15,13,23,28,null,11,8.5,92,13,15,13,26,28,null,12,8.9,86,12,null,11]
[null,null,null,13,"南島原市",214,null,null,null,12,null,null,null,null,null,13,213,"雲仙市",null,1,"公立",1,"小学校",201,"長崎市","手熊小学校",90190,"手熊",null,null,null,null,null,null,null,null,null,null,null,null,16,14,24,29,null,12,8.6,93,14,16,14,27,29,null,13,9,87,13,null,12]
[null,null,null,14,"長与町",307,null,null,null,null,null,null,null,null,null,14,214,"南島原市",null,1,"公立",1,"小学校",201,"長崎市","福田小学校",90200,"福田",null,null,null,null,null,null,null,null,null,null,null,null,17,15,25,30,null,13,8.6999999999999993,94,15,17,15,28,30,null,14,9.1,88,14,null,13]
[null,null,null,15,"時津町",308,null,null,null,null,null,null,null,null,null,15,307,"長与町",null,1,"公立",1,"小学校",201,"長崎市","小榊小学校",90210,"小榊",null,null,null,null,null,null,null,null,null,null,null,null,18,16,26,31,null,14,8.8000000000000007,95,16,18,16,29,31,null,15,9.1999999999999993,89,15,null,14]
[null,null,null,16,"東彼杵町",321,null,null,null,null,null,null,null,null,null,16,308,"時津町",null,1,"公立",1,"小学校",201,"長崎市","飽浦小学校",90230,"飽浦",null,null,null,null,null,null,null,null,null,null,null,null,19,17,27,32,null,15,8.9,96,17,19,17,30,32,null,16,9.3000000000000007,90,16,null,15]
[null,null,null,17,"川棚町",322,null,null,null,null,null,null,null,null,null,17,321,"東彼杵町",null,1,"公立",1,"小学校",201,"長崎市","朝日小学校",90240,"朝日",null,null,null,null,null,null,null,null,null,null,null,null,20,18,28,33,null,16,9,97,18,20,18,31,33,null,17,9.4,91,17,null,16]
[null,null,null,18,"波佐見町",323,null,null,null,null,null,null,null,null,null,18,322,"川棚町",null,1,"公立",1,"小学校",201,"長崎市","稲佐小学校",90250,"稲佐",null,null,null,null,null,null,null,null,null,null,null,null,21,19,29,34,null,17,9.1,98,19,21,19,32,34,null,18,9.5,92,18,null,17]
[null,null,null,19,"小値賀町",383,null,null,null,null,null,null,null,null,null,19,323,"波佐見町",null,1,"公立",1,"小学校",201,"長崎市","城山小学校",90260,"城山",null,null,null,null,null,null,null,null,null,null,null,null,22,20,30,35,null,18,9.1999999999999993,99,20,22,20,33,35,null,19,9.6,93,19,null,18]
[null,null,null,20,"佐々町",391,null,null,null,null,null,null,null,null,null,20,383,"小値賀町",null,1,"公立",1,"小学校",201,"長崎市","西城山小学校",90270,"西城山",null,null,null,null,null,null,null,null,null,null,null,null,23,21,31,36,null,19,9.3000000000000007,100,21,23,21,34,36,null,20,9.6999999999999993,94,20,null,19]
[null,null,null,21,"新上五島町",411,null,null,null,null,null,null,null,null,null,21,391,"佐々町",null,1,"公立",1,"小学校",201,"長崎市","西町小学校",90280,"西町",null,null,null,null,null,null,null,null,null,null,null,null,24,22,32,37,null,20,9.4,101,22,24,22,35,37,null,21,9.8000000000000007,95,21,null,20]
[null,null,null,22,"私立",401,null,null,null,null,null,null,null,null,null,22,411,"新上五島町",null,1,"公立",1,"小学校",201,"長崎市","西北小学校",90290,"西北",null,null,null,null,null,null,null,null,null,null,null,null,25,23,33,38,null,21,9.5,102,23,25,23,36,38,null,22,9.9,96,22,null,21]
[null,null,null,23,"国立",301,null,null,null,null,null,null,null,null,null,null,null,null,null,1,"公立",1,"小学校",201,"長崎市","滑石小学校",90300,"滑石",null,null,null,null,null,null,null,null,null,null,null,null,26,24,34,39,null,22,9.6,103,24,26,24,37,39,null,23,10,97,23,null,22]
[null,null,null,24,"県立",501,null,null,null,null,null,null,null,null,null,null,null,null,null,1,"公立",1,"小学校",201,"長崎市","大園小学校",90310,"大園",null,null,null,null,null,null,null,null,null,null,null,null,27,25,35,40,null,23,9.6999999999999993,104,25,null,25,38,40,null,24,10.1,98,24,null,23]
[null,null,null,25,"▼選択して下さい",0,null,null,null,null,null,null,null,null,null,null,null,null,null,1,"公立",1,"小学校",201,"長崎市","北陽小学校",90320,"北陽",null,null,null,null,null,null,null,null,null,null,null,null,28,26,36,41,null,24,9.8000000000000007,105,26,null,26,39,41,null,25,10.199999999999999,99,25,null,24]
[null,null,null,null,null,null,null,null,null,null,null,null,null,null,null,null,null,null,null,1,"公立",1,"小学校",201,"長崎市","西浦上小学校",90330,"西浦上",null,null,null,null,null,null,null,null,null,null,null,null,null,27,37,42,null,25,9.9,106,27,null,27,40,42,null,26,10.3,100,26,null,25]
[null,null,null,null,null,null,null,null,null,null,null,null,null,null,null,null,null,null,null,1,"公立",1,"小学校",201,"長崎市","三原小学校",90350,"三原",null,null,null,null,null,null,null,null,null,null,null,null,null,28,38,43,null,26,10,107,28,null,null,41,43,null,27,10.4,101,27,null,26]
[null,null,null,null,null,null,null,null,null,null,null,null,null,null,null,null,null,null,null,1,"公立",1,"小学校",201,"長崎市","高尾小学校",90360,"高尾",null,null,null,null,null,null,null,null,null,null,null,null,null,29,39,44,null,27,10.1,108,29,null,null,42,44,null,28,10.5,102,28,null,27]
[null,null,null,null,null,null,null,null,null,null,null,null,null,null,null,null,null,null,null,1,"公立",1,"小学校",201,"長崎市","山里小学校",90370,"山里",null,null,null,null,null,null,null,null,null,null,null,null,null,30,40,45,null,28,10.199999999999999,109,30,null,null,43,45,null,29,10.6,103,29,null,28]
[null,null,null,null,"所属名","所属番号","市町村番号","市町村","市町番号",null,null,null,null,null,null,null,null,null,null,1,"公立",1,"小学校",201,"長崎市","坂本小学校",90380,"坂本",null,null,null,null,null,null,null,null,null,null,null,null,null,null,41,46,null,29,10.3,110,31,null,null,44,46,null,30,10.7,104,null,null,29]
[null,null,null,1,"長崎市立日見小学校",90010,201,"長崎市",1,null,null,null,null,null,null,null,null,null,null,1,"公立",1,"小学校",201,"長崎市","銭座小学校",90390,"銭座",null,null,null,null,null,null,null,null,null,null,null,null,null,null,42,47,null,30,10.4,111,32,null,null,45,47,null,31,10.8,105,null,null,30]
[null,null,null,2,"長崎市立伊良林小学校",90020,201,"長崎市",1,null,null,null,null,null,null,null,null,null,null,1,"公立",1,"小学校",201,"長崎市","茂木小学校",90400,"茂木",null,null,null,null,null,null,null,null,null,null,null,null,null,null,43,48,null,31,10.5,112,33,null,null,46,48,null,32,10.9,106]
[null,null,null,3,"長崎市立上長崎小学校",90040,201,"長崎市",1,null,null,null,null,null,null,null,null,null,null,1,"公立",1,"小学校",201,"長崎市","日吉小学校",90410,"日吉",null,null,null,null,null,null,null,null,null,null,null,null,null,null,44,49,null,32,10.6,113,34,null,null,47,49,null,33,11,107]
[null,null,null,4,"長崎市立西坂小学校",90070,201,"長崎市",1,null,null,null,null,null,null,null,null,null,null,1,"公立",1,"小学校",201,"長崎市","南小学校",90420,"南",null,null,null,null,null,null,null,null,null,null,null,null,null,null,45,50,null,33,10.7,114,35,null,null,48,50,null,34,11.1,108]
[null,null,null,5,"長崎市立小島小学校",90080,201,"長崎市",1,null,null,null,null,null,null,null,null,null,null,1,"公立",1,"小学校",201,"長崎市","式見小学校",90430,"式見",null,null,null,null,null,null,null,null,null,null,null,null,null,null,46,51,null,34,10.8,115,36,null,null,49,51,null,35,11.2,109]
[null,null,null,6,"長崎市立愛宕小学校",90090,201,"長崎市",1,null,null,null,null,null,null,null,null,null,null,1,"公立",1,"小学校",201,"長崎市","矢上小学校",90440,"矢上",null,null,null,null,null,null,null,null,null,null,null,null,null,null,null,52,null,35,10.9,116,37,null,null,50,52,null,36,11.3,110]
[null,null,null,7,"長崎市立佐古小学校",90100,201,"長崎市",1,null,null,null,null,null,null,null,null,null,null,1,"公立",1,"小学校",201,"長崎市","戸石小学校",90450,"戸石",null,null,null,null,null,null,null,null,null,null,null,null,null,null,null,53,null,36,11,117,38,null,null,51,53,null,37,11.4,111]
[null,null,null,8,"長崎市立仁田小学校",90110,201,"長崎市",1,null,null,null,null,null,null,null,null,null,null,1,"公立",1,"小学校",201,"長崎市","古賀小学校",90460,"古賀",null,null,null,null,null,null,null,null,null,null,null,null,null,null,null,54,null,37,11.1,118,39,null,null,null,null,null,38,11.5,112]
[null,null,null,9,"長崎市立戸町小学校",90150,201,"長崎市",1,null,null,null,null,null,null,null,null,null,null,1,"公立",1,"小学校",201,"長崎市","三重小学校",90470,"三重",null,null,null,null,null,null,null,null,null,null,null,null,null,null,null,55,null,38,11.2,119,40,null,null,null,null,null,39,11.6,113]
[null,null,null,10,"長崎市立小ケ倉小学校",90160,201,"長崎市",1,null,null,null,null,null,null,null,null,null,null,1,"公立",1,"小学校",201,"長崎市","畝刈小学校",90480,"畝刈",null,null,null,null,null,null,null,null,null,null,null,null,null,null,null,56,null,39,11.3,120,41,null,null,null,null,null,40,11.7,114]
[null,null,null,11,"長崎市立土井首小学校",90170,201,"長崎市",1,null,null,null,null,null,null,null,null,null,null,1,"公立",1,"小学校",201,"長崎市","女の都小学校",90490,"女の都",null,null,null,null,null,null,null,null,null,null,null,null,null,null,null,57,null,40,11.4,121,42,null,null,null,null,null,41,11.8,115]
[null,null,null,12,"長崎市立深堀小学校",90180,201,"長崎市",1,null,null,null,null,null,null,null,null,null,null,1,"公立",1,"小学校",201,"長崎市","香焼小学校",94010,"香焼",null,null,null,null,null,null,null,null,null,null,null,null,null,null,null,null,null,41,11.5,122,43,null,null,null,null,null,42,11.9,116]
[null,null,null,13,"長崎市立手熊小学校",90190,201,"長崎市",1,null,null,null,null,null,null,null,null,null,null,1,"公立",1,"小学校",201,"長崎市","伊王島小学校",94020,"伊王島",null,null,null,null,null,null,null,null,null,null,null,null,null,null,null,null,null,42,11.6,123,44,null,null,null,null,null,43,12,117]
[null,null,null,14,"長崎市立福田小学校",90200,201,"長崎市",1,null,null,null,null,null,null,null,null,null,null,1,"公立",1,"小学校",201,"長崎市","高島小学校",94030,"高島",null,null,null,null,null,null,null,null,null,null,null,null,null,null,null,null,null,43,11.7,124,45,null,null,null,null,null,44,12.1,118]
[null,null,null,15,"長崎市立小榊小学校",90210,201,"長崎市",1,null,null,null,null,null,null,null,null,null,null,1,"公立",1,"小学校",201,"長崎市","野母崎小学校",94060,"野母",null,null,null,null,null,null,null,null,null,null,null,null,null,null,null,null,null,44,11.8,125,46,null,null,null,null,null,45,12.2,119]
[null,null,null,16,"長崎市立飽浦小学校",90230,201,"長崎市",1,null,null,null,null,null,null,null,null,null,null,1,"公立",1,"小学校",201,"長崎市","蚊焼小学校",94090,"蚊焼",null,null,null,null,null,null,null,null,null,null,null,null,null,null,null,null,null,45,11.9,126,null,null,null,null,null,null,46,12.3,120]
[null,null,null,17,"長崎市立朝日小学校",90240,201,"長崎市",1,null,null,null,null,null,null,null,null,null,null,1,"公立",1,"小学校",201,"長崎市","為石小学校",94100,"為石",null,null,null,null,null,null,null,null,null,null,null,null,null,null,null,null,null,46,12,127,null,null,null,null,null,null,47,12.4,121]
[null,null,null,18,"長崎市立稲佐小学校",90250,201,"長崎市",1,null,null,null,null,null,null,null,null,null,null,1,"公立",1,"小学校",201,"長崎市","川原小学校",94110,"川原",null,null,null,null,null,null,null,null,null,null,null,null,null,null,null,null,null,47,12.1,128,null,null,null,null,null,null,48,12.5,122]
[null,null,null,19,"長崎市立城山小学校",90260,201,"長崎市",1,null,null,null,null,null,null,null,null,null,null,1,"公立",1,"小学校",201,"長崎市","村松小学校",94200,"村松",null,null,null,null,null,null,null,null,null,null,null,null,null,null,null,null,null,48,12.2,129,null,null,null,null,null,null,49,12.6,123]
[null,null,null,20,"長崎市立西城山小学校",90270,201,"長崎市",1,null,null,null,null,null,null,null,null,null,null,1,"公立",1,"小学校",201,"長崎市","長浦小学校",94210,"長浦",null,null,null,null,null,null,null,null,null,null,null,null,null,null,null,null,null,49,12.3,130,null,null,null,null,null,null,50,12.7,124]
[null,null,null,21,"長崎市立西町小学校",90280,201,"長崎市",1,null,null,null,null,null,null,null,null,null,null,1,"公立",1,"小学校",201,"長崎市","形上小学校",94230,"形上",null,null,null,null,null,null,null,null,null,null,null,null,null,null,null,null,null,50,12.4,131,null,null,null,null,null,null,51,12.8,125]
[null,null,null,22,"長崎市立西北小学校",90290,201,"長崎市",1,null,null,null,null,null,null,null,null,null,null,1,"公立",1,"小学校",201,"長崎市","神浦小学校",94420,"神浦",null,null,null,null,null,null,null,null,null,null,null,null,null,null,null,null,null,51,12.5,132,null,null,null,null,null,null,52,12.9,126]
[null,null,null,23,"長崎市立滑石小学校",90300,201,"長崎市",1,null,null,null,null,null,null,null,null,null,null,1,"公立",1,"小学校",201,"長崎市","池島小学校",94430,"池島",null,null,null,null,null,null,null,null,null,null,null,null,null,null,null,null,null,52,12.6,133,null,null,null,null,null,null,53,13,127]
[null,null,null,24,"長崎市立大園小学校",90310,201,"長崎市",1,null,null,null,null,null,null,null,null,null,null,1,"公立",1,"小学校",201,"長崎市","出津小学校",94440,"出津",null,null,null,null,null,null,null,null,null,null,null,null,null,null,null,null,null,53,12.7,134,null,null,null,null,null,null,54,13.1,128]
[null,null,null,25,"長崎市立北陽小学校",90320,201,"長崎市",1,null,null,null,null,null,null,null,null,null,null,1,"公立",1,"小学校",201,"長崎市","黒崎東小学校",94450,"黒崎東",null,null,null,null,null,null,null,null,null,null,null,null,null,null,null,null,null,54,12.8,135,null,null,null,null,null,null,55,13.2,129]
[null,null,null,26,"長崎市立西浦上小学校",90330,201,"長崎市",1,null,null,null,null,null,null,null,null,null,null,1,"公立",1,"小学校",201,"長崎市","小江原小学校",99010,"小江原",null,null,null,null,null,null,null,null,null,null,null,null,null,null,null,null,null,55,12.9,136,null,null,null,null,null,null,56,13.3,130]
[null,null,null,27,"長崎市立川平小学校",90340,201,"長崎市",1,null,null,null,null,null,null,null,null,null,null,1,"公立",1,"小学校",201,"長崎市","横尾小学校",99020,"横尾",null,null,null,null,null,null,null,null,null,null,null,null,null,null,null,null,null,56,13,137,null,null,null,null,null,null,57,13.4,131]
[null,null,null,28,"長崎市立三原小学校",90350,201,"長崎市",1,null,null,null,null,null,null,null,null,null,null,1,"公立",1,"小学校",201,"長崎市","虹が丘小学校",99030,"虹が丘",null,null,null,null,null,null,null,null,null,null,null,null,null,null,null,null,null,57,13.1,138,null,null,null,null,null,null,58,13.5,132]
[null,null,null,29,"長崎市立高尾小学校",90360,201,"長崎市",1,null,null,null,null,null,null,null,null,null,null,1,"公立",1,"小学校",201,"長崎市","西山台小学校",99040,"西山台",null,null,null,null,null,null,null,null,null,null,null,null,null,null,null,null,null,58,13.2,139,null,null,null,null,null,null,59,13.6,133]
[null,null,null,30,"長崎市立山里小学校",90370,201,"長崎市",1,null,null,null,null,null,null,null,null,null,null,1,"公立",1,"小学校",201,"長崎市","南陽小学校",99050,"南陽",null,null,null,null,null,null,null,null,null,null,null,null,null,null,null,null,null,59,13.3,140,null,null,null,null,null,null,60,13.7,134]
[null,null,null,31,"長崎市立坂本小学校",90380,201,"長崎市",1,null,null,null,null,null,null,null,null,null,null,1,"公立",1,"小学校",201,"長崎市","南陽小学校　開成分校",99053,"南陽　開成分校",null,null,null,null,null,null,null,null,null,null,null,null,null,null,null,null,null,60,13.4,141,null,null,null,null,null,null,61,13.8,135]
[null,null,null,32,"長崎市立銭座小学校",90390,201,"長崎市",1,null,null,null,null,null,null,null,null,null,null,1,"公立",1,"小学校",201,"長崎市","橘小学校",99060,"橘",null,null,null,null,null,null,null,null,null,null,null,null,null,null,null,null,null,61,13.5,142,null,null,null,null,null,null,62,13.9,136]
[null,null,null,33,"長崎市立茂木小学校",90400,201,"長崎市",1,null,null,null,null,null,null,null,null,null,null,1,"公立",1,"小学校",201,"長崎市","南長崎小学校",99070,"南長崎",null,null,null,null,null,null,null,null,null,null,null,null,null,null,null,null,null,62,13.6,143,null,null,null,null,null,null,63,14,137]
[null,null,null,34,"長崎市立日吉小学校",90410,201,"長崎市",1,null,null,null,null,null,null,null,null,null,null,1,"公立",1,"小学校",201,"長崎市","鳴見台小学校",99080,"鳴見台",null,null,null,null,null,null,null,null,null,null,null,null,null,null,null,null,null,63,13.7,144,null,null,null,null,null,null,64,14.1,138]
[null,null,null,35,"長崎市立南小学校",90420,201,"長崎市",1,null,null,null,null,null,null,null,null,null,null,1,"公立",1,"小学校",201,"長崎市","桜が丘小学校",99090,"桜が丘",null,null,null,null,null,null,null,null,null,null,null,null,null,null,null,null,null,64,13.8,145,null,null,null,null,null,null,65,14.2,139]
[null,null,null,36,"長崎市立式見小学校",90430,201,"長崎市",1,null,null,null,null,null,null,null,null,null,null,1,"公立",1,"小学校",201,"長崎市","諏訪小学校",99100,"諏訪",null,null,null,null,null,null,null,null,null,null,null,null,null,null,null,null,null,65,13.9,146,null,null,null,null,null,null,66,14.3,140]
[null,null,null,37,"長崎市立矢上小学校",90440,201,"長崎市",1,null,null,null,null,null,null,null,null,null,null,1,"公立",1,"小学校",201,"長崎市","桜町小学校",99110,"桜町",null,null,null,null,null,null,null,null,null,null,null,null,null,null,null,null,null,66,14,147,null,null,null,null,null,null,67,14.4,141]
[null,null,null,38,"長崎市立戸石小学校",90450,201,"長崎市",1,null,null,null,null,null,null,null,null,null,null,1,"公立",1,"小学校",201,"長崎市","大浦小学校",99120,"大浦",null,null,null,null,null,null,null,null,null,null,null,null,null,null,null,null,null,67,14.1,148,null,null,null,null,null,null,68,14.5,142]
[null,null,null,39,"長崎市立古賀小学校",90460,201,"長崎市",1,null,null,null,null,null,null,null,null,null,null,1,"公立",1,"小学校",201,"長崎市","高城台小学校",99130,"高城台",null,null,null,null,null,null,null,null,null,null,null,null,null,null,null,null,null,68,14.2,149,null,null,null,null,null,null,69,14.6,143]
[null,null,null,40,"長崎市立三重小学校",90470,201,"長崎市",1,null,null,null,null,null,null,null,null,null,null,1,"公立",1,"小学校",201,"長崎市","高城台小学校　現川分校",99133,"高城台　現川分校",null,null,null,null,null,null,null,null,null,null,null,null,null,null,null,null,null,69,14.3,150,null,null,null,null,null,null,70,14.7,144]
[null,null,null,41,"長崎市立畝刈小学校",90480,201,"長崎市",1,null,null,null,null,null,null,null,null,null,null,1,"公立",1,"小学校",201,"長崎市","晴海台小学校",99540,"晴海台",null,null,null,null,null,null,null,null,null,null,null,null,null,null,null,null,null,70,14.4,151,null,null,null,null,null,null,71,14.8,145]
[null,null,null,42,"長崎市立女の都小学校",90490,201,"長崎市",1,null,null,null,null,null,null,null,null,null,null,1,"公立",1,"小学校",202,"佐世保市","宮小学校",90510,"宮",null,null,null,null,null,null,null,null,null,null,null,null,null,null,null,null,null,71,14.5,152,null,null,null,null,null,null,72,14.9,146]
[null,null,null,43,"長崎市立香焼小学校",94010,201,"長崎市",1,null,null,null,null,null,null,null,null,null,null,1,"公立",1,"小学校",202,"佐世保市","三川内小学校",90520,"三川内",null,null,null,null,null,null,null,null,null,null,null,null,null,null,null,null,null,72,14.6,153,null,null,null,null,null,null,73,15,147]
[null,null,null,44,"長崎市立伊王島小学校",94020,201,"長崎市",1,null,null,null,null,null,null,null,null,null,null,1,"公立",1,"小学校",202,"佐世保市","広田小学校",90530,"広田",null,null,null,null,null,null,null,null,null,null,null,null,null,null,null,null,null,73,14.7,154,null,null,null,null,null,null,74,null,148]
[null,null,null,45,"長崎市立高島小学校",94030,201,"長崎市",1,null,null,null,null,null,null,null,null,null,null,1,"公立",1,"小学校",202,"佐世保市","早岐小学校",90540,"早岐",null,null,null,null,null,null,null,null,null,null,null,null,null,null,null,null,null,74,14.8,155,null,null,null,null,null,null,75,null,149]
[null,null,null,46,"長崎市立高浜小学校",94050,201,"長崎市",1,null,null,null,null,null,null,null,null,null,null,1,"公立",1,"小学校",202,"佐世保市","江上小学校",90550,"江上",null,null,null,null,null,null,null,null,null,null,null,null,null,null,null,null,null,75,14.9,156,null,null,null,null,null,null,76,null,150]
[null,null,null,47,"長崎市立野母小学校",94060,201,"長崎市",1,null,null,null,null,null,null,null,null,null,null,1,"公立",1,"小学校",202,"佐世保市","針尾小学校",90560,"針尾",null,null,null,null,null,null,null,null,null,null,null,null,null,null,null,null,null,76,15,157,null,null,null,null,null,null,77,null,151]
[null,null,null,48,"長崎市立脇岬小学校",94070,201,"長崎市",1,null,null,null,null,null,null,null,null,null,null,1,"公立",1,"小学校",202,"佐世保市","黒髪小学校",90570,"黒髪",null,null,null,null,null,null,null,null,null,null,null,null,null,null,null,null,null,77,null,158,null,null,null,null,null,null,78,null,152]
[null,null,null,49,"長崎市立樺島小学校",94080,201,"長崎市",1,null,null,null,null,null,null,null,null,null,null,1,"公立",1,"小学校",202,"佐世保市","日宇小学校",90580,"日宇",null,null,null,null,null,null,null,null,null,null,null,null,null,null,null,null,null,78,null,159,null,null,null,null,null,null,79,null,153]
[null,null,null,50,"長崎市立蚊焼小学校",94090,201,"長崎市",1,null,null,null,null,null,null,null,null,null,null,1,"公立",1,"小学校",202,"佐世保市","天神小学校",90590,"天神",null,null,null,null,null,null,null,null,null,null,null,null,null,null,null,null,null,79,null,160,null,null,null,null,null,null,80,null,154]
[null,null,null,51,"長崎市立為石小学校",94100,201,"長崎市",1,null,null,null,null,null,null,null,null,null,null,1,"公立",1,"小学校",202,"佐世保市","福石小学校",90600,"福石",null,null,null,null,null,null,null,null,null,null,null,null,null,null,null,null,null,80,null,161,null,null,null,null,null,null,81,null,155]
[null,null,null,52,"長崎市立川原小学校",94110,201,"長崎市",1,null,null,null,null,null,null,null,null,null,null,1,"公立",1,"小学校",202,"佐世保市","木風小学校",90610,"木風",null,null,null,null,null,null,null,null,null,null,null,null,null,null,null,null,null,81,null,162,null,null,null,null,null,null,82,null,156]
[null,null,null,53,"長崎市立村松小学校",94200,201,"長崎市",1,null,null,null,null,null,null,null,null,null,null,1,"公立",1,"小学校",202,"佐世保市","潮見小学校",90620,"潮見",null,null,null,null,null,null,null,null,null,null,null,null,null,null,null,null,null,82,null,163,null,null,null,null,null,null,null,null,157]
[null,null,null,54,"長崎市立長浦小学校",94210,201,"長崎市",1,null,null,null,null,null,null,null,null,null,null,1,"公立",1,"小学校",202,"佐世保市","白南風小学校",90630,"白南風",null,null,null,null,null,null,null,null,null,null,null,null,null,null,null,null,null,83,null,164,null,null,null,null,null,null,null,null,158]
[null,null,null,55,"長崎市立尾戸小学校",94220,201,"長崎市",1,null,null,null,null,null,null,null,null,null,null,1,"公立",1,"小学校",202,"佐世保市","小佐世保小学校",90640,"小佐世保",null,null,null,null,null,null,null,null,null,null,null,null,null,null,null,null,null,84,null,165,null,null,null,null,null,null,null,null,159]
[null,null,null,56,"長崎市立形上小学校",94230,201,"長崎市",1,null,null,null,null,null,null,null,null,null,null,1,"公立",1,"小学校",202,"佐世保市","山手小学校",90670,"山手",null,null,null,null,null,null,null,null,null,null,null,null,null,null,null,null,null,85,null,166,null,null,null,null,null,null,null,null,160]
[null,null,null,57,"長崎市立神浦小学校",94420,201,"長崎市",1,null,null,null,null,null,null,null,null,null,null,1,"公立",1,"小学校",202,"佐世保市","山手小学校　烏帽子分校",90673,"山手　烏帽子分校",null,null,null,null,null,null,null,null,null,null,null,null,null,null,null,null,null,86,null,167,null,null,null,null,null,null,null,null,161]
[null,null,null,58,"長崎市立池島小学校",94430,201,"長崎市",1,null,null,null,null,null,null,null,null,null,null,1,"公立",1,"小学校",202,"佐世保市","春日小学校",90680,"春日",null,null,null,null,null,null,null,null,null,null,null,null,null,null,null,null,null,87,null,168,null,null,null,null,null,null,null,null,162]
[null,null,null,59,"長崎市立出津小学校",94440,201,"長崎市",1,null,null,null,null,null,null,null,null,null,null,1,"公立",1,"小学校",202,"佐世保市","大久保小学校",90710,"大久保",null,null,null,null,null,null,null,null,null,null,null,null,null,null,null,null,null,88,null,169,null,null,null,null,null,null,null,null,163]
[null,null,null,60,"長崎市立黒崎東小学校",94450,201,"長崎市",1,null,null,null,null,null,null,null,null,null,null,1,"公立",1,"小学校",202,"佐世保市","赤崎小学校",90740,"赤崎",null,null,null,null,null,null,null,null,null,null,null,null,null,null,null,null,null,89,null,170,null,null,null,null,null,null,null,null,164]
[null,null,null,61,"長崎市立小江原小学校",99010,201,"長崎市",1,null,null,null,null,null,null,null,null,null,null,1,"公立",1,"小学校",202,"佐世保市","船越小学校",90750,"船越",null,null,null,null,null,null,null,null,null,null,null,null,null,null,null,null,null,90,null,171,null,null,null,null,null,null,null,null,165]
[null,null,null,62,"長崎市立横尾小学校",99020,201,"長崎市",1,null,null,null,null,null,null,null,null,null,null,1,"公立",1,"小学校",202,"佐世保市","庵浦小学校",90760,"庵浦",null,null,null,null,null,null,null,null,null,null,null,null,null,null,null,null,null,91,null,172,null,null,null,null,null,null,null,null,166]
[null,null,null,63,"長崎市立虹が丘小学校",99030,201,"長崎市",1,null,null,null,null,null,null,null,null,null,null,1,"公立",1,"小学校",202,"佐世保市","俵浦小学校",90770,"俵浦",null,null,null,null,null,null,null,null,null,null,null,null,null,null,null,null,null,92,null,173,null,null,null,null,null,null,null,null,167]
[null,null,null,64,"長崎市立西山台小学校",99040,201,"長崎市",1,null,null,null,null,null,null,null,null,null,null,1,"公立",1,"小学校",202,"佐世保市","日野小学校",90780,"日野",null,null,null,null,null,null,null,null,null,null,null,null,null,null,null,null,null,93,null,174,null,null,null,null,null,null,null,null,168]
[null,null,null,65,"長崎市立南陽小学校",99050,201,"長崎市",1,null,null,null,null,null,null,null,null,null,null,1,"公立",1,"小学校",202,"佐世保市","黒島小中学校",90790,"黒島",null,null,null,null,null,null,null,null,null,null,null,null,null,null,null,null,null,94,null,175,null,null,null,null,null,null,null,null,169]
[null,null,null,66,"長崎市立南陽小学校開成分校",99053,201,"長崎市",1,null,null,null,null,null,null,null,null,null,null,1,"公立",1,"小学校",202,"佐世保市","浅子小中学校",90800,"浅子",null,null,null,null,null,null,null,null,null,null,null,null,null,null,null,null,null,95,null,176,null,null,null,null,null,null,null,null,170]
[null,null,null,67,"長崎市立橘小学校",99060,201,"長崎市",1,null,null,null,null,null,null,null,null,null,null,1,"公立",1,"小学校",202,"佐世保市","相浦小学校",90810,"相浦",null,null,null,null,null,null,null,null,null,null,null,null,null,null,null,null,null,96,null,177,null,null,null,null,null,null,null,null,171]
[null,null,null,68,"長崎市立南長崎小学校",99070,201,"長崎市",1,null,null,null,null,null,null,null,null,null,null,1,"公立",1,"小学校",202,"佐世保市","相浦小学校　高島分校",90813,"相浦　高島分校",null,null,null,null,null,null,null,null,null,null,null,null,null,null,null,null,null,97,null,178,null,null,null,null,null,null,null,null,172]
[null,null,null,69,"長崎市立鳴見台小学校",99080,201,"長崎市",1,null,null,null,null,null,null,null,null,null,null,1,"公立",1,"小学校",202,"佐世保市","中里小学校",90820,"中里",null,null,null,null,null,null,null,null,null,null,null,null,null,null,null,null,null,null,null,179,null,null,null,null,null,null,null,null,173]
[null,null,null,70,"長崎市立桜が丘小学校",99090,201,"長崎市",1,null,null,null,null,null,null,null,null,null,null,1,"公立",1,"小学校",202,"佐世保市","皆瀬小学校",90830,"皆瀬",null,null,null,null,null,null,null,null,null,null,null,null,null,null,null,null,null,null,null,180,null,null,null,null,null,null,null,null,174]
[null,null,null,71,"長崎市立諏訪小学校",99100,201,"長崎市",1,null,null,null,null,null,null,null,null,null,null,1,"公立",1,"小学校",202,"佐世保市","大野小学校",90840,"大野",null,null,null,null,null,null,null,null,null,null,null,null,null,null,null,null,null,null,null,181,null,null,null,null,null,null,null,null,175]
[null,null,null,72,"長崎市立桜町小学校",99110,201,"長崎市",1,null,null,null,null,null,null,null,null,null,null,1,"公立",1,"小学校",202,"佐世保市","柚木小学校",90850,"柚木",null,null,null,null,null,null,null,null,null,null,null,null,null,null,null,null,null,null,null,182,null,null,null,null,null,null,null,null,176]
[null,null,null,73,"長崎市立大浦小学校",99120,201,"長崎市",1,null,null,null,null,null,null,null,null,null,null,1,"公立",1,"小学校",202,"佐世保市","港小学校",90860,"港",null,null,null,null,null,null,null,null,null,null,null,null,null,null,null,null,null,null,null,183,null,null,null,null,null,null,null,null,177]
[null,null,null,74,"長崎市立高城台小学校",99130,201,"長崎市",1,null,null,null,null,null,null,null,null,null,null,1,"公立",1,"小学校",202,"佐世保市","花高小学校",90870,"花高",null,null,null,null,null,null,null,null,null,null,null,null,null,null,null,null,null,null,null,184,null,null,null,null,null,null,null,null,178]
[null,null,null,75,"長崎市立高城台小現川分校",99133,201,"長崎市",1,null,null,null,null,null,null,null,null,null,null,1,"公立",1,"小学校",202,"佐世保市","相浦西小学校",90880,"相浦西",null,null,null,null,null,null,null,null,null,null,null,null,null,null,null,null,null,null,null,185,null,null,null,null,null,null,null,null,179]
[null,null,null,76,"長崎市立晴海台小学校",99540,201,"長崎市",1,null,null,null,null,null,null,null,null,null,null,1,"公立",1,"小学校",202,"佐世保市","相浦西小学校　大崎分校",90883,"相浦西　大崎分校",null,null,null,null,null,null,null,null,null,null,null,null,null,null,null,null,null,null,null,186,null,null,null,null,null,null,null,null,180]
[null,null,null,77,"佐世保市立宮小学校",90510,202,"佐世保市",2,null,null,null,null,null,null,null,null,null,null,1,"公立",1,"小学校",202,"佐世保市","大塔小学校",90890,"大塔",null,null,null,null,null,null,null,null,null,null,null,null,null,null,null,null,null,null,null,187,null,null,null,null,null,null,null,null,181]
[null,null,null,78,"佐世保市立三川内小学校",90520,202,"佐世保市",2,null,null,null,null,null,null,null,null,null,null,1,"公立",1,"小学校",202,"佐世保市","金比良小学校",90900,"金比良",null,null,null,null,null,null,null,null,null,null,null,null,null,null,null,null,null,null,null,188,null,null,null,null,null,null,null,null,182]
[null,null,null,79,"佐世保市立広田小学校",90530,202,"佐世保市",2,null,null,null,null,null,null,null,null,null,null,1,"公立",1,"小学校",202,"佐世保市","祇園小学校",90910,"祇園",null,null,null,null,null,null,null,null,null,null,null,null,null,null,null,null,null,null,null,189,null,null,null,null,null,null,null,null,183]
[null,null,null,80,"佐世保市立早岐小学校",90540,202,"佐世保市",2,null,null,null,null,null,null,null,null,null,null,1,"公立",1,"小学校",202,"佐世保市","清水小学校",90920,"清水",null,null,null,null,null,null,null,null,null,null,null,null,null,null,null,null,null,null,null,190,null,null,null,null,null,null,null,null,184]
[null,null,null,81,"佐世保市立江上小学校",90550,202,"佐世保市",2,null,null,null,null,null,null,null,null,null,null,1,"公立",1,"小学校",202,"佐世保市","宇久小学校",96570,"宇久",null,null,null,null,null,null,null,null,null,null,null,null,null,null,null,null,null,null,null,191,null,null,null,null,null,null,null,null,185]
[null,null,null,82,"佐世保市立針尾小学校",90560,202,"佐世保市",2,null,null,null,null,null,null,null,null,null,null,1,"公立",1,"小学校",202,"佐世保市","神浦小学校",96610,"神浦",null,null,null,null,null,null,null,null,null,null,null,null,null,null,null,null,null,null,null,192,null,null,null,null,null,null,null,null,186]
[null,null,null,83,"佐世保市立黒髪小学校",90570,202,"佐世保市",2,null,null,null,null,null,null,null,null,null,null,1,"公立",1,"小学校",202,"佐世保市","小佐々小学校",96720,"小佐々",null,null,null,null,null,null,null,null,null,null,null,null,null,null,null,null,null,null,null,193]
[null,null,null,84,"佐世保市立日宇小学校",90580,202,"佐世保市",2,null,null,null,null,null,null,null,null,null,null,1,"公立",1,"小学校",202,"佐世保市","楠栖小学校",96730,"楠栖",null,null,null,null,null,null,null,null,null,null,null,null,null,null,null,null,null,null,null,194]
[null,null,null,85,"佐世保市立天神小学校",90590,202,"佐世保市",2,null,null,null,null,null,null,null,null,null,null,1,"公立",1,"小学校",202,"佐世保市","吉井南小学校",96760,"吉井南",null,null,null,null,null,null,null,null,null,null,null,null,null,null,null,null,null,null,null,195]
[null,null,null,86,"佐世保市立福石小学校",90600,202,"佐世保市",2,null,null,null,null,null,null,null,null,null,null,1,"公立",1,"小学校",202,"佐世保市","吉井北小学校",96770,"吉井北"]
[null,null,null,87,"佐世保市立木風小学校",90610,202,"佐世保市",2,null,null,null,null,null,null,null,null,null,null,1,"公立",1,"小学校",202,"佐世保市","世知原小学校",96780,"世知原"]
[null,null,null,88,"佐世保市立潮見小学校",90620,202,"佐世保市",2,null,null,null,null,null,null,null,null,null,null,1,"公立",1,"小学校",203,"島原市","第一小学校",91010,"第一"]
[null,null,null,89,"佐世保市立白南風小学校",90630,202,"佐世保市",2,null,null,null,null,null,null,null,null,null,null,1,"公立",1,"小学校",203,"島原市","第二小学校",91020,"第二"]
[null,null,null,90,"佐世保市立小佐世保小学校",90640,202,"佐世保市",2,null,null,null,null,null,null,null,null,null,null,1,"公立",1,"小学校",203,"島原市","第三小学校",91030,"第三"]
[null,null,null,91,"佐世保市立山手小学校",90670,202,"佐世保市",2,null,null,null,null,null,null,null,null,null,null,1,"公立",1,"小学校",203,"島原市","第四小学校",91040,"第四"]
[null,null,null,92,"佐世保市立山手小烏帽子分校",90673,202,"佐世保市",2,null,null,null,null,null,null,null,null,null,null,1,"公立",1,"小学校",203,"島原市","三会小学校",91050,"三会"]
[null,null,null,93,"佐世保市立春日小学校",90680,202,"佐世保市",2,null,null,null,null,null,null,null,null,null,null,1,"公立",1,"小学校",203,"島原市","三会小学校　長貫分校",91053,"三会　長貫分校"]
[null,null,null,94,"佐世保市立大久保小学校",90710,202,"佐世保市",2,null,null,null,null,null,null,null,null,null,null,1,"公立",1,"小学校",203,"島原市","第五小学校",91060,"第五"]
[null,null,null,95,"佐世保市立赤崎小学校",90740,202,"佐世保市",2,null,null,null,null,null,null,null,null,null,null,1,"公立",1,"小学校",203,"島原市","大三東小学校",95510,"大三東"]
[null,null,null,96,"佐世保市立船越小学校",90750,202,"佐世保市",2,null,null,null,null,null,null,null,null,null,null,1,"公立",1,"小学校",203,"島原市","高野小学校",95520,"高野"]
[null,null,null,97,"佐世保市立庵浦小学校",90760,202,"佐世保市",2,null,null,null,null,null,null,null,null,null,null,1,"公立",1,"小学校",203,"島原市","湯江小学校",95530,"湯江"]
[null,null,null,98,"佐世保市立俵浦小学校",90770,202,"佐世保市",2,null,null,null,null,null,null,null,null,null,null,1,"公立",1,"小学校",204,"諫早市","諫早小学校",91510,"諫早"]
[null,null,null,99,"佐世保市立日野小学校",90780,202,"佐世保市",2,null,null,null,null,null,null,null,null,null,null,1,"公立",1,"小学校",204,"諫早市","北諫早小学校",91520,"北諫早"]
[null,null,null,100,"佐世保市立黒島小学校",90790,202,"佐世保市",2,null,null,null,null,null,null,null,null,null,null,1,"公立",1,"小学校",204,"諫早市","小野小学校",91530,"小野"]
[null,null,null,101,"佐世保市立浅子小学校",90800,202,"佐世保市",2,null,null,null,null,null,null,null,null,null,null,1,"公立",1,"小学校",204,"諫早市","有喜小学校",91540,"有喜"]
[null,null,null,102,"佐世保市立相浦小学校",90810,202,"佐世保市",2,null,null,null,null,null,null,null,null,null,null,1,"公立",1,"小学校",204,"諫早市","真津山小学校",91550,"真津山"]
[null,null,null,103,"佐世保市立相浦小高島分校",90813,202,"佐世保市",2,null,null,null,null,null,null,null,null,null,null,1,"公立",1,"小学校",204,"諫早市","本野小学校",91560,"本野"]
[null,null,null,104,"佐世保市立中里小学校",90820,202,"佐世保市",2,null,null,null,null,null,null,null,null,null,null,1,"公立",1,"小学校",204,"諫早市","長田小学校",91570,"長田"]
[null,null,null,105,"佐世保市立皆瀬小学校",90830,202,"佐世保市",2,null,null,null,null,null,null,null,null,null,null,1,"公立",1,"小学校",204,"諫早市","上諫早小学校",91580,"上諫早"]
[null,null,null,106,"佐世保市立大野小学校",90840,202,"佐世保市",2,null,null,null,null,null,null,null,null,null,null,1,"公立",1,"小学校",204,"諫早市","小栗小学校",91590,"小栗"]
[null,null,null,107,"佐世保市立柚木小学校",90850,202,"佐世保市",2,null,null,null,null,null,null,null,null,null,null,1,"公立",1,"小学校",204,"諫早市","真崎小学校",91600,"真崎"]
[null,null,null,108,"佐世保市立港小学校",90860,202,"佐世保市",2,null,null,null,null,null,null,null,null,null,null,1,"公立",1,"小学校",204,"諫早市","みはる台小学校",91610,"みはる台"]
[null,null,null,109,"佐世保市立花高小学校",90870,202,"佐世保市",2,null,null,null,null,null,null,null,null,null,null,1,"公立",1,"小学校",204,"諫早市","御館山小学校",91620,"御館山"]
[null,null,null,110,"佐世保市立相浦西小学校",90880,202,"佐世保市",2,null,null,null,null,null,null,null,null,null,null,1,"公立",1,"小学校",204,"諫早市","上山小学校",91630,"上山"]
[null,null,null,111,"佐世保市立相浦西小大崎分校",90883,202,"佐世保市",2,null,null,null,null,null,null,null,null,null,null,1,"公立",1,"小学校",204,"諫早市","西諫早小学校",91640,"西諫早"]
[null,null,null,112,"佐世保市立大塔小学校",90890,202,"佐世保市",2,null,null,null,null,null,null,null,null,null,null,1,"公立",1,"小学校",204,"諫早市","真城小学校",91650,"真城"]
[null,null,null,113,"佐世保市立金比良小学校",90900,202,"佐世保市",2,null,null,null,null,null,null,null,null,null,null,1,"公立",1,"小学校",204,"諫早市","喜々津小学校",94120,"喜々津"]
[null,null,null,114,"佐世保市立祇園小学校",90910,202,"佐世保市",2,null,null,null,null,null,null,null,null,null,null,1,"公立",1,"小学校",204,"諫早市","大草小学校",94130,"大草"]
[null,null,null,115,"佐世保市立清水小学校",90920,202,"佐世保市",2,null,null,null,null,null,null,null,null,null,null,1,"公立",1,"小学校",204,"諫早市","伊木力小学校",94140,"伊木力"]
[null,null,null,116,"佐世保市立宇久小学校",96570,202,"佐世保市",2,null,null,null,null,null,null,null,null,null,null,1,"公立",1,"小学校",204,"諫早市","森山西小学校",95010,"森山西"]
[null,null,null,117,"佐世保市立神浦小学校",96610,202,"佐世保市",2,null,null,null,null,null,null,null,null,null,null,1,"公立",1,"小学校",204,"諫早市","森山東小学校",95020,"森山東"]
[null,null,null,118,"佐世保市立小佐々小学校",96720,202,"佐世保市",2,null,null,null,null,null,null,null,null,null,null,1,"公立",1,"小学校",204,"諫早市","飯盛西小学校",95030,"飯盛西"]
[null,null,null,119,"佐世保市立楠栖小学校",96730,202,"佐世保市",2,null,null,null,null,null,null,null,null,null,null,1,"公立",1,"小学校",204,"諫早市","飯盛東小学校",95040,"飯盛東"]
[null,null,null,120,"佐世保市立吉井南小学校",96760,202,"佐世保市",2,null,null,null,null,null,null,null,null,null,null,1,"公立",1,"小学校",204,"諫早市","高来西小学校",95050,"高来西"]
[null,null,null,121,"佐世保市立吉井北小学校",96770,202,"佐世保市",2,null,null,null,null,null,null,null,null,null,null,1,"公立",1,"小学校",204,"諫早市","湯江小学校",95060,"湯江"]
[null,null,null,122,"佐世保市立世知原小学校",96780,202,"佐世保市",2,null,null,null,null,null,null,null,null,null,null,1,"公立",1,"小学校",204,"諫早市","長里小学校",95070,"長里"]
[null,null,null,123,"島原市立第一小学校",91010,203,"島原市",3,null,null,null,null,null,null,null,null,null,null,1,"公立",1,"小学校",204,"諫早市","小長井小学校",95080,"小長井"]
[null,null,null,124,"島原市立第二小学校",91020,203,"島原市",3,null,null,null,null,null,null,null,null,null,null,1,"公立",1,"小学校",204,"諫早市","遠竹小学校",95090,"遠竹"]
[null,null,null,125,"島原市立第三小学校",91030,203,"島原市",3,null,null,null,null,null,null,null,null,null,null,1,"公立",1,"小学校",204,"諫早市","喜々津東小学校",99530,"喜々津東"]
[null,null,null,126,"島原市立第四小学校",91040,203,"島原市",3,null,null,null,null,null,null,null,null,null,null,1,"公立",1,"小学校",205,"大村市","三浦小学校",92010,"三浦"]
[null,null,null,127,"島原市立三会小学校",91050,203,"島原市",3,null,null,null,null,null,null,null,null,null,null,1,"公立",1,"小学校",205,"大村市","鈴田小学校",92020,"鈴田"]
[null,null,null,128,"島原市立三会小長貫分校",91053,203,"島原市",3,null,null,null,null,null,null,null,null,null,null,1,"公立",1,"小学校",205,"大村市","三城小学校",92030,"三城"]
[null,null,null,129,"島原市立第五小学校",91060,203,"島原市",3,null,null,null,null,null,null,null,null,null,null,1,"公立",1,"小学校",205,"大村市","大村小学校",92040,"大村"]
[null,null,null,130,"島原市立大三東小学校",95510,203,"島原市",3,null,null,null,null,null,null,null,null,null,null,1,"公立",1,"小学校",205,"大村市","東大村小学校",92050,"東大村"]
[null,null,null,131,"島原市立高野小学校",95520,203,"島原市",3,null,null,null,null,null,null,null,null,null,null,1,"公立",1,"小学校",205,"大村市","西大村小学校",92060,"西大村"]
[null,null,null,132,"島原市立湯江小学校",95530,203,"島原市",3,null,null,null,null,null,null,null,null,null,null,1,"公立",1,"小学校",205,"大村市","中央小学校",92070,"中央"]
[null,null,null,133,"諫早市立諫早小学校",91510,204,"諫早市",4,null,null,null,null,null,null,null,null,null,null,1,"公立",1,"小学校",205,"大村市","竹松小学校",92080,"竹松"]
[null,null,null,134,"諫早市立北諫早小学校",91520,204,"諫早市",4,null,null,null,null,null,null,null,null,null,null,1,"公立",1,"小学校",205,"大村市","萱瀬小学校",92090,"萱瀬"]
[null,null,null,135,"諫早市立小野小学校",91530,204,"諫早市",4,null,null,null,null,null,null,null,null,null,null,1,"公立",1,"小学校",205,"大村市","黒木小学校",92100,"黒木"]
[null,null,null,136,"諫早市立有喜小学校",91540,204,"諫早市",4,null,null,null,null,null,null,null,null,null,null,1,"公立",1,"小学校",205,"大村市","福重小学校",92110,"福重"]
[null,null,null,137,"諫早市立真津山小学校",91550,204,"諫早市",4,null,null,null,null,null,null,null,null,null,null,1,"公立",1,"小学校",205,"大村市","松原小学校",92120,"松原"]
[null,null,null,138,"諫早市立本野小学校",91560,204,"諫早市",4,null,null,null,null,null,null,null,null,null,null,1,"公立",1,"小学校",205,"大村市","放虎原小学校",92130,"放虎原"]
[null,null,null,139,"諫早市立長田小学校",91570,204,"諫早市",4,null,null,null,null,null,null,null,null,null,null,1,"公立",1,"小学校",205,"大村市","旭が丘小学校",92140,"旭が丘"]
[null,null,null,140,"諫早市立上諫早小学校",91580,204,"諫早市",4,null,null,null,null,null,null,null,null,null,null,1,"公立",1,"小学校",205,"大村市","富の原小学校",92150,"富の原"]
[null,null,null,141,"諫早市立小栗小学校",91590,204,"諫早市",4,null,null,null,null,null,null,null,null,null,null,1,"公立",1,"小学校",207,"平戸市","平戸小学校",93010,"平戸"]
[null,null,null,142,"諫早市立真崎小学校",91600,204,"諫早市",4,null,null,null,null,null,null,null,null,null,null,1,"公立",1,"小学校",207,"平戸市","田助小学校",93020,"田助"]
[null,null,null,143,"諫早市立みはる台小学校",91610,204,"諫早市",4,null,null,null,null,null,null,null,null,null,null,1,"公立",1,"小学校",207,"平戸市","中野小学校",93030,"中野"]
[null,null,null,144,"諫早市立御館山小学校",91620,204,"諫早市",4,null,null,null,null,null,null,null,null,null,null,1,"公立",1,"小学校",207,"平戸市","獅子小学校",93040,"獅子"]
[null,null,null,145,"諫早市立上山小学校",91630,204,"諫早市",4,null,null,null,null,null,null,null,null,null,null,1,"公立",1,"小学校",207,"平戸市","根獅子小学校",93050,"根獅子"]
[null,null,null,146,"諫早市立西諫早小学校",91640,204,"諫早市",4,null,null,null,null,null,null,null,null,null,null,1,"公立",1,"小学校",207,"平戸市","紐差小学校",93060,"紐差"]
[null,null,null,147,"諫早市立真城小学校",91650,204,"諫早市",4,null,null,null,null,null,null,null,null,null,null,1,"公立",1,"小学校",207,"平戸市","大川原小学校",93070,"大川原"]
[null,null,null,148,"諫早市立喜々津小学校",94120,204,"諫早市",4,null,null,null,null,null,null,null,null,null,null,1,"公立",1,"小学校",207,"平戸市","宝亀小学校",93080,"宝亀"]
[null,null,null,149,"諫早市立大草小学校",94130,204,"諫早市",4,null,null,null,null,null,null,null,null,null,null,1,"公立",1,"小学校",207,"平戸市","津吉小学校",93110,"津吉"]
[null,null,null,150,"諫早市立伊木力小学校",94140,204,"諫早市",4,null,null,null,null,null,null,null,null,null,null,1,"公立",1,"小学校",207,"平戸市","志々伎小学校",93120,"志々伎"]
[null,null,null,151,"諫早市立森山西小学校",95010,204,"諫早市",4,null,null,null,null,null,null,null,null,null,null,1,"公立",1,"小学校",207,"平戸市","志々伎小学校　早福分校",93123,"志々伎　早福分校"]
[null,null,null,152,"諫早市立森山東小学校",95020,204,"諫早市",4,null,null,null,null,null,null,null,null,null,null,1,"公立",1,"小学校",207,"平戸市","野子小学校",93130,"野子"]
[null,null,null,153,"諫早市立飯盛西小学校",95030,204,"諫早市",4,null,null,null,null,null,null,null,null,null,null,1,"公立",1,"小学校",207,"平戸市","野子小学校　高島分校",93133,"野子　高島分校"]
[null,null,null,154,"諫早市立飯盛東小学校",95040,204,"諫早市",4,null,null,null,null,null,null,null,null,null,null,1,"公立",1,"小学校",207,"平戸市","度島小学校",93140,"度島"]
[null,null,null,155,"諫早市立高来西小学校",95050,204,"諫早市",4,null,null,null,null,null,null,null,null,null,null,1,"公立",1,"小学校",207,"平戸市","大島小学校",96510,"大島"]
[null,null,null,156,"諫早市立湯江小学校",95060,204,"諫早市",4,null,null,null,null,null,null,null,null,null,null,1,"公立",1,"小学校",207,"平戸市","生月小学校",96520,"生月"]
[null,null,null,157,"諫早市立長里小学校",95070,204,"諫早市",4,null,null,null,null,null,null,null,null,null,null,1,"公立",1,"小学校",207,"平戸市","山田小学校",96530,"山田"]
[null,null,null,158,"諫早市立小長井小学校",95080,204,"諫早市",4,null,null,null,null,null,null,null,null,null,null,1,"公立",1,"小学校",207,"平戸市","田平北小学校",96620,"田平北"]
[null,null,null,159,"諫早市立遠竹小学校",95090,204,"諫早市",4,null,null,null,null,null,null,null,null,null,null,1,"公立",1,"小学校",207,"平戸市","田平南小学校",96630,"田平南"]
[null,null,null,160,"諫早市立喜々津東小学校",99530,204,"諫早市",4,null,null,null,null,null,null,null,null,null,null,1,"公立",1,"小学校",207,"平戸市","田平東小学校",96640,"田平東"]
[null,null,null,161,"大村市立三浦小学校",92010,205,"大村市",5,null,null,null,null,null,null,null,null,null,null,1,"公立",1,"小学校",208,"松浦市","御厨小学校",93510,"御厨"]
[null,null,null,162,"大村市立鈴田小学校",92020,205,"大村市",5,null,null,null,null,null,null,null,null,null,null,1,"公立",1,"小学校",208,"松浦市","星鹿小学校",93520,"星鹿"]
[null,null,null,163,"大村市立三城小学校",92030,205,"大村市",5,null,null,null,null,null,null,null,null,null,null,1,"公立",1,"小学校",208,"松浦市","田代小学校",93530,"田代"]
[null,null,null,164,"大村市立大村小学校",92040,205,"大村市",5,null,null,null,null,null,null,null,null,null,null,1,"公立",1,"小学校",208,"松浦市","大崎小学校",93540,"大崎"]
[null,null,null,165,"大村市立東大村小学校",92050,205,"大村市",5,null,null,null,null,null,null,null,null,null,null,1,"公立",1,"小学校",208,"松浦市","青島小学校",93550,"青島"]
[null,null,null,166,"大村市立西大村小学校",92060,205,"大村市",5,null,null,null,null,null,null,null,null,null,null,1,"公立",1,"小学校",208,"松浦市","志佐小学校",93560,"志佐"]
[null,null,null,167,"大村市立中央小学校",92070,205,"大村市",5,null,null,null,null,null,null,null,null,null,null,1,"公立",1,"小学校",208,"松浦市","上志佐小学校",93570,"上志佐"]
[null,null,null,168,"大村市立竹松小学校",92080,205,"大村市",5,null,null,null,null,null,null,null,null,null,null,1,"公立",1,"小学校",208,"松浦市","調川小学校",93580,"調川"]
[null,null,null,169,"大村市立萱瀬小学校",92090,205,"大村市",5,null,null,null,null,null,null,null,null,null,null,1,"公立",1,"小学校",208,"松浦市","今福小学校",93590,"今福"]
[null,null,null,170,"大村市立黒木小学校",92100,205,"大村市",5,null,null,null,null,null,null,null,null,null,null,1,"公立",1,"小学校",208,"松浦市","福島小学校",96650,"福島"]
[null,null,null,171,"大村市立福重小学校",92110,205,"大村市",5,null,null,null,null,null,null,null,null,null,null,1,"公立",1,"小学校",208,"松浦市","養源小学校",96660,"養源"]
[null,null,null,172,"大村市立松原小学校",92120,205,"大村市",5,null,null,null,null,null,null,null,null,null,null,1,"公立",1,"小学校",208,"松浦市","鷹島小学校",96670,"鷹島"]
[null,null,null,173,"大村市立放虎原小学校",92130,205,"大村市",5,null,null,null,null,null,null,null,null,null,null,1,"公立",1,"小学校",208,"松浦市","鷹島小学校　黒島分校",96675,"鷹島　黒島分校"]
[null,null,null,174,"大村市立旭が丘小学校",92140,205,"大村市",5,null,null,null,null,null,null,null,null,null,null,1,"公立",1,"小学校",209,"対馬市","厳原小学校",98010,"厳原"]
[null,null,null,175,"大村市立富の原小学校",92150,205,"大村市",5,null,null,null,null,null,null,null,null,null,null,1,"公立",1,"小学校",209,"対馬市","久田小学校",98020,"久田"]
[null,null,null,176,"平戸市立平戸小学校",93010,207,"平戸市",6,null,null,null,null,null,null,null,null,null,null,1,"公立",1,"小学校",209,"対馬市","豆酘小学校",98040,"豆酘"]
[null,null,null,177,"平戸市立田助小学校",93020,207,"平戸市",6,null,null,null,null,null,null,null,null,null,null,1,"公立",1,"小学校",209,"対馬市","金田小学校",98070,"金田"]
[null,null,null,178,"平戸市立中野小学校",93030,207,"平戸市",6,null,null,null,null,null,null,null,null,null,null,1,"公立",1,"小学校",209,"対馬市","阿連小学校",98090,"阿連"]
[null,null,null,179,"平戸市立獅子小学校",93040,207,"平戸市",6,null,null,null,null,null,null,null,null,null,null,1,"公立",1,"小学校",209,"対馬市","鶏鳴小学校",98100,"鶏鳴"]
[null,null,null,180,"平戸市立根獅子小学校",93050,207,"平戸市",6,null,null,null,null,null,null,null,null,null,null,1,"公立",1,"小学校",209,"対馬市","今里小学校",98110,"今里"]
[null,null,null,181,"平戸市立紐差小学校",93060,207,"平戸市",6,null,null,null,null,null,null,null,null,null,null,1,"公立",1,"小学校",209,"対馬市","大船越小学校",98130,"大船越"]
[null,null,null,182,"平戸市立大川原小学校",93070,207,"平戸市",6,null,null,null,null,null,null,null,null,null,null,1,"公立",1,"小学校",209,"対馬市","乙宮小学校",98190,"乙宮"]
[null,null,null,183,"平戸市立宝亀小学校",93080,207,"平戸市",6,null,null,null,null,null,null,null,null,null,null,1,"公立",1,"小学校",209,"対馬市","仁田小学校",98320,"仁田"]
[null,null,null,184,"平戸市立中津良小学校",93090,207,"平戸市",6,null,null,null,null,null,null,null,null,null,null,1,"公立",1,"小学校",209,"対馬市","久原小学校",98330,"久原"]
[null,null,null,185,"平戸市立堤小学校",93100,207,"平戸市",6,null,null,null,null,null,null,null,null,null,null,1,"公立",1,"小学校",209,"対馬市","佐須奈小学校",98350,"佐須奈"]
[null,null,null,186,"平戸市立津吉小学校",93110,207,"平戸市",6,null,null,null,null,null,null,null,null,null,null,1,"公立",1,"小学校",209,"対馬市","比田勝小学校",98410,"比田勝"]
[null,null,null,187,"平戸市立志々伎小学校",93120,207,"平戸市",6,null,null,null,null,null,null,null,null,null,null,1,"公立",1,"小学校",209,"対馬市","豊小学校",98420,"豊"]
[null,null,null,188,"平戸市立志々伎小早福分校",93123,207,"平戸市",6,null,null,null,null,null,null,null,null,null,null,1,"公立",1,"小学校",209,"対馬市","豊玉小学校",98430,"豊玉"]
[null,null,null,189,"平戸市立野子小学校",93130,207,"平戸市",6,null,null,null,null,null,null,null,null,null,null,1,"公立",1,"小学校",209,"対馬市","美津島北部小学校",98440,"美津島北部"]
[null,null,null,190,"平戸市立野子小高島分校",93133,207,"平戸市",6,null,null,null,null,null,null,null,null,null,null,1,"公立",1,"小学校",209,"対馬市","厳原北小学校",98450,"厳原北"]
[null,null,null,191,"平戸市立度島小学校",93140,207,"平戸市",6,null,null,null,null,null,null,null,null,null,null,1,"公立",1,"小学校",209,"対馬市","西小学校",98460,"西"]
[null,null,null,192,"平戸市立大島小学校",96510,207,"平戸市",6,null,null,null,null,null,null,null,null,null,null,1,"公立",1,"小学校",209,"対馬市","塩浦小学校",98470,"塩浦"]
[null,null,null,193,"平戸市立生月小学校",96520,207,"平戸市",6,null,null,null,null,null,null,null,null,null,null,1,"公立",1,"小学校",209,"対馬市","南陽小学校",98480,"南陽"]
[null,null,null,194,"平戸市立山田小学校",96530,207,"平戸市",6,null,null,null,null,null,null,null,null,null,null,1,"公立",1,"小学校",209,"対馬市","東小学校",98490,"東"]
[null,null,null,195,"平戸市立田平北小学校",96620,207,"平戸市",6,null,null,null,null,null,null,null,null,null,null,1,"公立",1,"小学校",210,"壱岐市","盈科小学校",97510,"盈科"]
[null,null,null,196,"平戸市立田平南小学校",96630,207,"平戸市",6,null,null,null,null,null,null,null,null,null,null,1,"公立",1,"小学校",210,"壱岐市","渡良小学校",97520,"渡良"]
[null,null,null,197,"平戸市立田平東小学校",96640,207,"平戸市",6,null,null,null,null,null,null,null,null,null,null,1,"公立",1,"小学校",210,"壱岐市","三島小学校",97530,"三島"]
[null,null,null,198,"松浦市立御厨小学校",93510,208,"松浦市",7,null,null,null,null,null,null,null,null,null,null,1,"公立",1,"小学校",210,"壱岐市","三島小学校　長島分校",97533,"三島　長島分校"]
[null,null,null,199,"松浦市立星鹿小学校",93520,208,"松浦市",7,null,null,null,null,null,null,null,null,null,null,1,"公立",1,"小学校",210,"壱岐市","三島小学校　原島分校",97534,"三島　原島分校"]
[null,null,null,200,"松浦市立田代小学校",93530,208,"松浦市",7,null,null,null,null,null,null,null,null,null,null,1,"公立",1,"小学校",210,"壱岐市","柳田小学校",97540,"柳田"]
[null,null,null,201,"松浦市立大崎小学校",93540,208,"松浦市",7,null,null,null,null,null,null,null,null,null,null,1,"公立",1,"小学校",210,"壱岐市","沼津小学校",97550,"沼津"]
[null,null,null,202,"松浦市立青島小学校",93550,208,"松浦市",7,null,null,null,null,null,null,null,null,null,null,1,"公立",1,"小学校",210,"壱岐市","志原小学校",97560,"志原"]
[null,null,null,203,"松浦市立志佐小学校",93560,208,"松浦市",7,null,null,null,null,null,null,null,null,null,null,1,"公立",1,"小学校",210,"壱岐市","初山小学校",97570,"初山"]
[null,null,null,204,"松浦市立上志佐小学校",93570,208,"松浦市",7,null,null,null,null,null,null,null,null,null,null,1,"公立",1,"小学校",210,"壱岐市","鯨伏小学校",97580,"鯨伏"]
[null,null,null,205,"松浦市立調川小学校",93580,208,"松浦市",7,null,null,null,null,null,null,null,null,null,null,1,"公立",1,"小学校",210,"壱岐市","勝本小学校",97590,"勝本"]
[null,null,null,206,"松浦市立今福小学校",93590,208,"松浦市",7,null,null,null,null,null,null,null,null,null,null,1,"公立",1,"小学校",210,"壱岐市","霞翠小学校",97600,"霞翠"]
[null,null,null,207,"松浦市立福島小学校",96650,208,"松浦市",7,null,null,null,null,null,null,null,null,null,null,1,"公立",1,"小学校",210,"壱岐市","箱崎小学校",97610,"箱崎"]
[null,null,null,208,"松浦市立養源小学校",96660,208,"松浦市",7,null,null,null,null,null,null,null,null,null,null,1,"公立",1,"小学校",210,"壱岐市","瀬戸小学校",97620,"瀬戸"]
[null,null,null,209,"松浦市立鷹島小学校",96670,208,"松浦市",7,null,null,null,null,null,null,null,null,null,null,1,"公立",1,"小学校",210,"壱岐市","那賀小学校",97630,"那賀"]
[null,null,null,210,"松浦市立鷹島小黒島分校",96675,208,"松浦市",7,null,null,null,null,null,null,null,null,null,null,1,"公立",1,"小学校",210,"壱岐市","田河小学校",97640,"田河"]
[null,null,null,211,"対馬市立厳原小学校",98010,209,"対馬市",8,null,null,null,null,null,null,null,null,null,null,1,"公立",1,"小学校",210,"壱岐市","八幡小学校",97650,"八幡"]
[null,null,null,212,"対馬市立久田小学校",98020,209,"対馬市",8,null,null,null,null,null,null,null,null,null,null,1,"公立",1,"小学校",210,"壱岐市","芦辺小学校",97660,"芦辺"]
[null,null,null,213,"対馬市立久田小学校内院分校",98026,209,"対馬市",8,null,null,null,null,null,null,null,null,null,null,1,"公立",1,"小学校",210,"壱岐市","石田小学校",97670,"石田"]
[null,null,null,214,"対馬市立久和小学校",98030,209,"対馬市",8,null,null,null,null,null,null,null,null,null,null,1,"公立",1,"小学校",210,"壱岐市","筒城小学校",97680,"筒城"]
[null,null,null,215,"対馬市立豆酘小学校",98040,209,"対馬市",8,null,null,null,null,null,null,null,null,null,null,1,"公立",1,"小学校",211,"五島市","福江小学校",92510,"福江"]
[null,null,null,216,"対馬市立金田小学校",98070,209,"対馬市",8,null,null,null,null,null,null,null,null,null,null,1,"公立",1,"小学校",211,"五島市","福江小学校　黄島分校",92514,"福江　黄島分校"]
[null,null,null,217,"対馬市立大調小学校",98080,209,"対馬市",8,null,null,null,null,null,null,null,null,null,null,1,"公立",1,"小学校",211,"五島市","緑丘小学校",92520,"緑丘"]
[null,null,null,218,"対馬市立阿連小学校",98090,209,"対馬市",8,null,null,null,null,null,null,null,null,null,null,1,"公立",1,"小学校",211,"五島市","奥浦小学校",92530,"奥浦"]
[null,null,null,219,"対馬市立鶏鳴小学校",98100,209,"対馬市",8,null,null,null,null,null,null,null,null,null,null,1,"公立",1,"小学校",211,"五島市","崎山小学校",92550,"崎山"]
[null,null,null,220,"対馬市立今里小学校",98110,209,"対馬市",8,null,null,null,null,null,null,null,null,null,null,1,"公立",1,"小学校",211,"五島市","本山小学校",92560,"本山"]
[null,null,null,221,"対馬市立大船越小学校",98130,209,"対馬市",8,null,null,null,null,null,null,null,null,null,null,1,"公立",1,"小学校",211,"五島市","本山小学校　雨通宿分校",92563,"本山　雨通宿分校"]
[null,null,null,222,"対馬市立乙宮小学校",98190,209,"対馬市",8,null,null,null,null,null,null,null,null,null,null,1,"公立",1,"小学校",211,"五島市","大浜小学校",92570,"大浜"]
[null,null,null,223,"対馬市立南小学校",98230,209,"対馬市",8,null,null,null,null,null,null,null,null,null,null,1,"公立",1,"小学校",211,"五島市","久賀小学校",92610,"久賀"]
[null,null,null,224,"対馬市立小綱小学校",98250,209,"対馬市",8,null,null,null,null,null,null,null,null,null,null,1,"公立",1,"小学校",211,"五島市","久賀小学校　細石流分校",92613,"久賀　細石流分校"]
[null,null,null,225,"対馬市立仁田小学校",98320,209,"対馬市",8,null,null,null,null,null,null,null,null,null,null,1,"公立",1,"小学校",211,"五島市","蕨小学校",92620,"蕨"]
[null,null,null,226,"対馬市立久原小学校",98330,209,"対馬市",8,null,null,null,null,null,null,null,null,null,null,1,"公立",1,"小学校",211,"五島市","福江小学校　椛島分校",92640,"福江　椛島分校"]
[null,null,null,227,"対馬市立佐須奈小学校",98350,209,"対馬市",8,null,null,null,null,null,null,null,null,null,null,1,"公立",1,"小学校",211,"五島市","富江小学校",97010,"富江"]
[null,null,null,228,"対馬市立佐護小学校",98360,209,"対馬市",8,null,null,null,null,null,null,null,null,null,null,1,"公立",1,"小学校",211,"五島市","富江小学校　田尾分校",97018,"富江　田尾分校"]
[null,null,null,229,"対馬市立比田勝小学校",98410,209,"対馬市",8,null,null,null,null,null,null,null,null,null,null,1,"公立",1,"小学校",211,"五島市","盈進小学校",97020,"盈進"]
[null,null,null,230,"対馬市立豊小学校",98420,209,"対馬市",8,null,null,null,null,null,null,null,null,null,null,1,"公立",1,"小学校",211,"五島市","玉之浦小学校",97050,"玉之浦"]
[null,null,null,231,"対馬市立豊玉小学校",98430,209,"対馬市",8,null,null,null,null,null,null,null,null,null,null,1,"公立",1,"小学校",211,"五島市","三井楽小学校",97090,"三井楽"]
[null,null,null,232,"対馬市立美津島北部小学校",98440,209,"対馬市",8,null,null,null,null,null,null,null,null,null,null,1,"公立",1,"小学校",211,"五島市","岳小学校",97100,"岳"]
[null,null,null,233,"対馬市立厳原北小学校",98450,209,"対馬市",8,null,null,null,null,null,null,null,null,null,null,1,"公立",1,"小学校",211,"五島市","嵯峨島小学校",97120,"嵯峨島"]
[null,null,null,234,"対馬市立西小学校",98460,209,"対馬市",8,null,null,null,null,null,null,null,null,null,null,1,"公立",1,"小学校",211,"五島市","岐宿小学校",97130,"岐宿"]
[null,null,null,235,"対馬市立塩浦小学校",98470,209,"対馬市",8,null,null,null,null,null,null,null,null,null,null,1,"公立",1,"小学校",211,"五島市","岐宿小学校　旭分校",97133,"岐宿　旭分校"]
[null,null,null,236,"対馬市立南陽小学校",98480,209,"対馬市",8,null,null,null,null,null,null,null,null,null,null,1,"公立",1,"小学校",211,"五島市","川原小学校",97140,"川原"]
[null,null,null,237,"対馬市立東小学校",98490,209,"対馬市",8,null,null,null,null,null,null,null,null,null,null,1,"公立",1,"小学校",211,"五島市","山内小学校",97150,"山内"]
[null,null,null,238,"壱岐市立盈科小学校",97510,210,"壱岐市",9,null,null,null,null,null,null,null,null,null,null,1,"公立",1,"小学校",211,"五島市","奈留小学校",97170,"奈留"]
[null,null,null,239,"壱岐市立渡良小学校",97520,210,"壱岐市",9,null,null,null,null,null,null,null,null,null,null,1,"公立",1,"小学校",212,"西海市","ときわ台小学校",94240,"ときわ台"]
[null,null,null,240,"壱岐市立三島小学校",97530,210,"壱岐市",9,null,null,null,null,null,null,null,null,null,null,1,"公立",1,"小学校",212,"西海市","大串小学校",94260,"大串"]
[null,null,null,241,"壱岐市立三島小長島分校",97533,210,"壱岐市",9,null,null,null,null,null,null,null,null,null,null,1,"公立",1,"小学校",212,"西海市","西彼北小学校",94270,"西彼北"]
[null,null,null,242,"壱岐市立三島小原島分校",97534,210,"壱岐市",9,null,null,null,null,null,null,null,null,null,null,1,"公立",1,"小学校",212,"西海市","西海北小学校",94290,"西海北"]
[null,null,null,243,"壱岐市立柳田小学校",97540,210,"壱岐市",9,null,null,null,null,null,null,null,null,null,null,1,"公立",1,"小学校",212,"西海市","西海南小学校",94310,"西海南"]
[null,null,null,244,"壱岐市立沼津小学校",97550,210,"壱岐市",9,null,null,null,null,null,null,null,null,null,null,1,"公立",1,"小学校",212,"西海市","大崎小学校",94330,"大崎"]
[null,null,null,245,"壱岐市立志原小学校",97560,210,"壱岐市",9,null,null,null,null,null,null,null,null,null,null,1,"公立",1,"小学校",212,"西海市","江島小学校",94360,"江島"]
[null,null,null,246,"壱岐市立初山小学校",97570,210,"壱岐市",9,null,null,null,null,null,null,null,null,null,null,1,"公立",1,"小学校",212,"西海市","平島小学校",94370,"平島"]
[null,null,null,247,"壱岐市立鯨伏小学校",97580,210,"壱岐市",9,null,null,null,null,null,null,null,null,null,null,1,"公立",1,"小学校",212,"西海市","雪浦小学校",94410,"雪浦"]
[null,null,null,248,"壱岐市立勝本小学校",97590,210,"壱岐市",9,null,null,null,null,null,null,null,null,null,null,1,"公立",1,"小学校",212,"西海市","西海東小学校",94490,"西海東"]
[null,null,null,249,"壱岐市立霞翠小学校",97600,210,"壱岐市",9,null,null,null,null,null,null,null,null,null,null,1,"公立",1,"小学校",212,"西海市","西海西小学校",94500,"西海西"]
[null,null,null,250,"壱岐市立箱崎小学校",97610,210,"壱岐市",9,null,null,null,null,null,null,null,null,null,null,1,"公立",1,"小学校",212,"西海市","大瀬戸小学校",99560,"大瀬戸"]
[null,null,null,251,"壱岐市立瀬戸小学校",97620,210,"壱岐市",9,null,null,null,null,null,null,null,null,null,null,1,"公立",1,"小学校",213,"雲仙市","多比良小学校",95540,"多比良"]
[null,null,null,252,"壱岐市立那賀小学校",97630,210,"壱岐市",9,null,null,null,null,null,null,null,null,null,null,1,"公立",1,"小学校",213,"雲仙市","土黒小学校",95550,"土黒"]
[null,null,null,253,"壱岐市立田河小学校",97640,210,"壱岐市",9,null,null,null,null,null,null,null,null,null,null,1,"公立",1,"小学校",213,"雲仙市","八斗木小学校",95560,"八斗木"]
[null,null,null,254,"壱岐市立八幡小学校",97650,210,"壱岐市",9,null,null,null,null,null,null,null,null,null,null,1,"公立",1,"小学校",213,"雲仙市","神代小学校",95570,"神代"]
[null,null,null,255,"壱岐市立芦辺小学校",97660,210,"壱岐市",9,null,null,null,null,null,null,null,null,null,null,1,"公立",1,"小学校",213,"雲仙市","西郷小学校",95580,"西郷"]
[null,null,null,256,"壱岐市立石田小学校",97670,210,"壱岐市",9,null,null,null,null,null,null,null,null,null,null,1,"公立",1,"小学校",213,"雲仙市","岩戸小学校",95590,"岩戸"]
[null,null,null,257,"壱岐市立筒城小学校",97680,210,"壱岐市",9,null,null,null,null,null,null,null,null,null,null,1,"公立",1,"小学校",213,"雲仙市","大正小学校",95600,"大正"]
[null,null,null,258,"五島市立福江小学校",92510,211,"五島市",10,null,null,null,null,null,null,null,null,null,null,1,"公立",1,"小学校",213,"雲仙市","川床小学校",95610,"川床"]
[null,null,null,259,"五島市立福江小黄島分校",92514,211,"五島市",10,null,null,null,null,null,null,null,null,null,null,1,"公立",1,"小学校",213,"雲仙市","大塚小学校",95620,"大塚"]
[null,null,null,260,"五島市立緑丘小学校",92520,211,"五島市",10,null,null,null,null,null,null,null,null,null,null,1,"公立",1,"小学校",213,"雲仙市","鶴田小学校",95630,"鶴田"]
[null,null,null,261,"五島市立奥浦小学校",92530,211,"五島市",10,null,null,null,null,null,null,null,null,null,null,1,"公立",1,"小学校",213,"雲仙市","愛野小学校",95640,"愛野"]
[null,null,null,262,"五島市立崎山小学校",92550,211,"五島市",10,null,null,null,null,null,null,null,null,null,null,1,"公立",1,"小学校",213,"雲仙市","千々石第一小学校",95650,"千々石第一"]
[null,null,null,263,"五島市立本山小学校",92560,211,"五島市",10,null,null,null,null,null,null,null,null,null,null,1,"公立",1,"小学校",213,"雲仙市","千々石第二小学校",95660,"千々石第二"]
[null,null,null,264,"五島市立本山小雨通宿分校",92563,211,"五島市",10,null,null,null,null,null,null,null,null,null,null,1,"公立",1,"小学校",213,"雲仙市","小浜小学校",95670,"小浜"]
[null,null,null,265,"五島市立大浜小学校",92570,211,"五島市",10,null,null,null,null,null,null,null,null,null,null,1,"公立",1,"小学校",213,"雲仙市","北串小学校",95710,"北串"]
[null,null,null,266,"五島市立久賀小学校",92610,211,"五島市",10,null,null,null,null,null,null,null,null,null,null,1,"公立",1,"小学校",213,"雲仙市","南串第一小学校",95720,"南串第一"]
[null,null,null,267,"五島市立久賀小細石流分校",92613,211,"五島市",10,null,null,null,null,null,null,null,null,null,null,1,"公立",1,"小学校",213,"雲仙市","南串第一小学校　諏訪の池分校",95723,"南串第一　諏訪の池分校"]
[null,null,null,268,"五島市立蕨小学校",92620,211,"五島市",10,null,null,null,null,null,null,null,null,null,null,1,"公立",1,"小学校",213,"雲仙市","南串第二小学校",95730,"南串第二"]
[null,null,null,269,"五島市立椛島小学校",92640,211,"五島市",10,null,null,null,null,null,null,null,null,null,null,1,"公立",1,"小学校",214,"南島原市","加津佐東小学校",95740,"加津佐東"]
[null,null,null,270,"五島市立富江小学校",97010,211,"五島市",10,null,null,null,null,null,null,null,null,null,null,1,"公立",1,"小学校",214,"南島原市","野田小学校",95750,"野田"]
[null,null,null,271,"五島市立富江小田尾分校",97018,211,"五島市",10,null,null,null,null,null,null,null,null,null,null,1,"公立",1,"小学校",214,"南島原市","津波見小学校",95770,"津波見"]
[null,null,null,272,"五島市立盈進小学校",97020,211,"五島市",10,null,null,null,null,null,null,null,null,null,null,1,"公立",1,"小学校",214,"南島原市","山口小学校",95780,"山口"]
[null,null,null,273,"五島市立玉之浦小学校",97050,211,"五島市",10,null,null,null,null,null,null,null,null,null,null,1,"公立",1,"小学校",214,"南島原市","南有馬小学校",95820,"南有馬"]
[null,null,null,274,"五島市立三井楽小学校",97090,211,"五島市",10,null,null,null,null,null,null,null,null,null,null,1,"公立",1,"小学校",214,"南島原市","吉川小学校",95830,"吉川"]
[null,null,null,275,"五島市立岳小学校",97100,211,"五島市",10,null,null,null,null,null,null,null,null,null,null,1,"公立",1,"小学校",214,"南島原市","白木野小学校",95840,"白木野"]
[null,null,null,276,"五島市立浜窄小学校",97110,211,"五島市",10,null,null,null,null,null,null,null,null,null,null,1,"公立",1,"小学校",214,"南島原市","古園小学校",95850,"古園"]
[null,null,null,277,"五島市立嵯峨島小学校",97120,211,"五島市",10,null,null,null,null,null,null,null,null,null,null,1,"公立",1,"小学校",214,"南島原市","梅谷小学校",95860,"梅谷"]
[null,null,null,278,"五島市立岐宿小学校",97130,211,"五島市",10,null,null,null,null,null,null,null,null,null,null,1,"公立",1,"小学校",214,"南島原市","西有家小学校",95920,"西有家"]
[null,null,null,279,"五島市立岐宿小旭分校",97133,211,"五島市",10,null,null,null,null,null,null,null,null,null,null,1,"公立",1,"小学校",214,"南島原市","龍石小学校",95930,"龍石"]
[null,null,null,280,"五島市立川原小学校",97140,211,"五島市",10,null,null,null,null,null,null,null,null,null,null,1,"公立",1,"小学校",214,"南島原市","慈恩寺小学校",95940,"慈恩寺"]
[null,null,null,281,"五島市立山内小学校",97150,211,"五島市",10,null,null,null,null,null,null,null,null,null,null,1,"公立",1,"小学校",214,"南島原市","長野小学校",95950,"長野"]
[null,null,null,282,"五島市立奈留小学校",97170,211,"五島市",10,null,null,null,null,null,null,null,null,null,null,1,"公立",1,"小学校",214,"南島原市","見岳小学校",95960,"見岳"]
[null,null,null,283,"五島市立平成小学校",97450,211,"五島市",10,null,null,null,null,null,null,null,null,null,null,1,"公立",1,"小学校",214,"南島原市","有家小学校",95970,"有家"]
[null,null,null,284,"西海市立亀岳小学校",94240,212,"西海市",11,null,null,null,null,null,null,null,null,null,null,1,"公立",1,"小学校",214,"南島原市","堂崎小学校",96000,"堂崎"]
[null,null,null,285,"西海市立白似田小学校",94250,212,"西海市",11,null,null,null,null,null,null,null,null,null,null,1,"公立",1,"小学校",214,"南島原市","堂崎小学校　木場分校",96003,"堂崎　木場分校"]
[null,null,null,286,"西海市立大串小学校",94260,212,"西海市",11,null,null,null,null,null,null,null,null,null,null,1,"公立",1,"小学校",214,"南島原市","布津小学校",96010,"布津"]
[null,null,null,287,"西海市立西彼北小学校",94270,212,"西海市",11,null,null,null,null,null,null,null,null,null,null,1,"公立",1,"小学校",214,"南島原市","布津小学校　第一分校",96013,"布津　第一分校"]
[null,null,null,288,"西海市立西海北小学校",94290,212,"西海市",11,null,null,null,null,null,null,null,null,null,null,1,"公立",1,"小学校",214,"南島原市","布津小学校　第二分校",96014,"布津　第二分校"]
[null,null,null,289,"西海市立西海南小学校",94310,212,"西海市",11,null,null,null,null,null,null,null,null,null,null,1,"公立",1,"小学校",214,"南島原市","飯野小学校",96020,"飯野"]
[null,null,null,290,"西海市立大島西小学校",94320,212,"西海市",11,null,null,null,null,null,null,null,null,null,null,1,"公立",1,"小学校",214,"南島原市","深江小学校",96030,"深江"]
[null,null,null,291,"西海市立大島東小学校",94330,212,"西海市",11,null,null,null,null,null,null,null,null,null,null,1,"公立",1,"小学校",214,"南島原市","深江小学校　馬場分校",96033,"深江　馬場分校"]
[null,null,null,292,"西海市立崎戸小学校",94350,212,"西海市",11,null,null,null,null,null,null,null,null,null,null,1,"公立",1,"小学校",214,"南島原市","深江小学校　諏訪分校",96034,"深江　諏訪分校"]
[null,null,null,293,"西海市立江島小学校",94360,212,"西海市",11,null,null,null,null,null,null,null,null,null,null,1,"公立",1,"小学校",214,"南島原市","小林小学校",96040,"小林"]
[null,null,null,294,"西海市立平島小学校",94370,212,"西海市",11,null,null,null,null,null,null,null,null,null,null,1,"公立",1,"小学校",214,"南島原市","大野木場小学校",96050,"大野木場"]
[null,null,null,295,"西海市立多以良小学校",94380,212,"西海市",11,null,null,null,null,null,null,null,null,null,null,1,"公立",1,"小学校",214,"南島原市","有馬小学校",96060,"有馬"]
[null,null,null,296,"西海市立瀬戸小学校",94390,212,"西海市",11,null,null,null,null,null,null,null,null,null,null,1,"公立",1,"小学校",214,"南島原市","口之津小学校",96070,"口之津"]
[null,null,null,297,"西海市立松島小学校",94400,212,"西海市",11,null,null,null,null,null,null,null,null,null,null,1,"公立",1,"小学校",307,"長与町","長与小学校",94150,"長与"]
[null,null,null,298,"西海市立雪浦小学校",94410,212,"西海市",11,null,null,null,null,null,null,null,null,null,null,1,"公立",1,"小学校",307,"長与町","高田小学校",94160,"高田"]
[null,null,null,299,"西海市立雪浦小幸物分校",94413,212,"西海市",11,null,null,null,null,null,null,null,null,null,null,1,"公立",1,"小学校",307,"長与町","洗切小学校",94170,"洗切"]
[null,null,null,300,"西海市立西海東小学校",94490,212,"西海市",11,null,null,null,null,null,null,null,null,null,null,1,"公立",1,"小学校",307,"長与町","長与北小学校",99510,"長与北"]
[null,null,null,301,"西海市立西海西小学校",94500,212,"西海市",11,null,null,null,null,null,null,null,null,null,null,1,"公立",1,"小学校",307,"長与町","長与南小学校",99550,"長与南"]
[null,null,null,302,"雲仙市立多比良小学校",95540,213,"雲仙市",12,null,null,null,null,null,null,null,null,null,null,1,"公立",1,"小学校",308,"時津町","時津小学校",94180,"時津"]
[null,null,null,303,"雲仙市立土黒小学校",95550,213,"雲仙市",12,null,null,null,null,null,null,null,null,null,null,1,"公立",1,"小学校",308,"時津町","時津北小学校",94190,"時津北"]
[null,null,null,304,"雲仙市立八斗木小学校",95560,213,"雲仙市",12,null,null,null,null,null,null,null,null,null,null,1,"公立",1,"小学校",308,"時津町","時津東小学校",94480,"時津東"]
[null,null,null,305,"雲仙市立神代小学校",95570,213,"雲仙市",12,null,null,null,null,null,null,null,null,null,null,1,"公立",1,"小学校",308,"時津町","鳴鼓小学校",99520,"鳴鼓"]
[null,null,null,306,"雲仙市立西郷小学校",95580,213,"雲仙市",12,null,null,null,null,null,null,null,null,null,null,1,"公立",1,"小学校",321,"東彼杵町","千綿小学校",94510,"千綿"]
[null,null,null,307,"雲仙市立岩戸小学校",95590,213,"雲仙市",12,null,null,null,null,null,null,null,null,null,null,1,"公立",1,"小学校",321,"東彼杵町","彼杵小学校",94520,"彼杵"]
[null,null,null,308,"雲仙市立大正小学校",95600,213,"雲仙市",12,null,null,null,null,null,null,null,null,null,null,1,"公立",1,"小学校",321,"東彼杵町","大楠小学校",94530,"大楠"]
[null,null,null,309,"雲仙市立川床小学校",95610,213,"雲仙市",12,null,null,null,null,null,null,null,null,null,null,1,"公立",1,"小学校",321,"東彼杵町","音琴小学校",94540,"音琴"]
[null,null,null,310,"雲仙市立大塚小学校",95620,213,"雲仙市",12,null,null,null,null,null,null,null,null,null,null,1,"公立",1,"小学校",322,"川棚町","川棚小学校",94550,"川棚"]
[null,null,null,311,"雲仙市立鶴田小学校",95630,213,"雲仙市",12,null,null,null,null,null,null,null,null,null,null,1,"公立",1,"小学校",322,"川棚町","石木小学校",94560,"石木"]
[null,null,null,312,"雲仙市立愛野小学校",95640,213,"雲仙市",12,null,null,null,null,null,null,null,null,null,null,1,"公立",1,"小学校",322,"川棚町","小串小学校",94570,"小串"]
[null,null,null,313,"雲仙市立千々石第一小学校",95650,213,"雲仙市",12,null,null,null,null,null,null,null,null,null,null,1,"公立",1,"小学校",323,"波佐見町","南小学校",94580,"南"]
[null,null,null,314,"雲仙市立千々石第二小学校",95660,213,"雲仙市",12,null,null,null,null,null,null,null,null,null,null,1,"公立",1,"小学校",323,"波佐見町","東小学校",94590,"東"]
[null,null,null,315,"雲仙市立小浜小学校",95670,213,"雲仙市",12,null,null,null,null,null,null,null,null,null,null,1,"公立",1,"小学校",323,"波佐見町","東小学校　永尾分校",94593,"東　永尾分校"]
[null,null,null,316,"雲仙市立雲仙小学校",95680,213,"雲仙市",12,null,null,null,null,null,null,null,null,null,null,1,"公立",1,"小学校",323,"波佐見町","中央小学校",94600,"中央"]
[null,null,null,317,"雲仙市立富津小学校",95690,213,"雲仙市",12,null,null,null,null,null,null,null,null,null,null,1,"公立",1,"小学校",383,"小値賀町","小値賀小学校",96540,"小値賀"]
[null,null,null,318,"雲仙市立木指小学校",95700,213,"雲仙市",12,null,null,null,null,null,null,null,null,null,null,1,"公立",1,"小学校",383,"小値賀町","小値賀小学校　大島分校",96543,"小値賀　大島分校"]
[null,null,null,319,"雲仙市立北串小学校",95710,213,"雲仙市",12,null,null,null,null,null,null,null,null,null,null,1,"公立",1,"小学校",383,"小値賀町","小値賀小学校　六島分校",96544,"小値賀　六島分校"]
[null,null,null,320,"雲仙市立南串第一小学校",95720,213,"雲仙市",12,null,null,null,null,null,null,null,null,null,null,1,"公立",1,"小学校",388,"江迎町","江迎小学校",96680,"江迎"]
[null,null,null,321,"雲仙市立南串第一小諏訪の池分校",95723,213,"雲仙市",12,null,null,null,null,null,null,null,null,null,null,1,"公立",1,"小学校",388,"江迎町","猪調小学校",96690,"猪調"]
[null,null,null,322,"雲仙市立南串第二小学校",95730,213,"雲仙市",12,null,null,null,null,null,null,null,null,null,null,1,"公立",1,"小学校",389,"鹿町町","鹿町小学校",96700,"鹿町"]
[null,null,null,323,"南島原市立加津佐東小学校",95740,214,"南島原市",13,null,null,null,null,null,null,null,null,null,null,1,"公立",1,"小学校",389,"鹿町町","歌浦小学校",96710,"歌浦"]
[null,null,null,324,"南島原市立野田小学校",95750,214,"南島原市",13,null,null,null,null,null,null,null,null,null,null,1,"公立",1,"小学校",391,"佐々町","佐々小学校",96740,"佐々"]
[null,null,null,325,"南島原市立津波見小学校",95770,214,"南島原市",13,null,null,null,null,null,null,null,null,null,null,1,"公立",1,"小学校",391,"佐々町","口石小学校",96750,"口石"]
[null,null,null,326,"南島原市立山口小学校",95780,214,"南島原市",13,null,null,null,null,null,null,null,null,null,null,1,"公立",1,"小学校",411,"新上五島町","若松小学校",97220,"若松"]
[null,null,null,327,"南島原市立南有馬小学校",95820,214,"南島原市",13,null,null,null,null,null,null,null,null,null,null,1,"公立",1,"小学校",411,"新上五島町","今里小学校",97290,"今里"]
[null,null,null,328,"南島原市立吉川小学校",95830,214,"南島原市",13,null,null,null,null,null,null,null,null,null,null,1,"公立",1,"小学校",411,"新上五島町","青方小学校",97310,"青方"]
[null,null,null,329,"南島原市立白木野小学校",95840,214,"南島原市",13,null,null,null,null,null,null,null,null,null,null,1,"公立",1,"小学校",411,"新上五島町","上郷小学校",97320,"上郷"]
[null,null,null,330,"南島原市立古園小学校",95850,214,"南島原市",13,null,null,null,null,null,null,null,null,null,null,1,"公立",1,"小学校",411,"新上五島町","魚目小学校",97330,"魚目"]
[null,null,null,331,"南島原市立梅谷小学校",95860,214,"南島原市",13,null,null,null,null,null,null,null,null,null,null,1,"公立",1,"小学校",411,"新上五島町","北魚目小学校",97340,"北魚目"]
[null,null,null,332,"南島原市立西有家小学校",95920,214,"南島原市",13,null,null,null,null,null,null,null,null,null,null,1,"公立",1,"小学校",411,"新上五島町","津和崎小学校",97350,"津和崎"]
[null,null,null,333,"南島原市立龍石小学校",95930,214,"南島原市",13,null,null,null,null,null,null,null,null,null,null,1,"公立",1,"小学校",411,"新上五島町","仲知小学校",97360,"仲知"]
[null,null,null,334,"南島原市立慈恩寺小学校",95940,214,"南島原市",13,null,null,null,null,null,null,null,null,null,null,1,"公立",1,"小学校",411,"新上五島町","有川小学校",97370,"有川"]
[null,null,null,335,"南島原市立長野小学校",95950,214,"南島原市",13,null,null,null,null,null,null,null,null,null,null,1,"公立",1,"小学校",411,"新上五島町","東浦小学校",97390,"東浦"]
[null,null,null,336,"南島原市立長野小塔ノ坂分校",95953,214,"南島原市",13,null,null,null,null,null,null,null,null,null,null,1,"公立",1,"小学校",411,"新上五島町","太田小学校",97400,"太田"]
[null,null,null,337,"南島原市立見岳小学校",95960,214,"南島原市",13,null,null,null,null,null,null,null,null,null,null,1,"公立",1,"小学校",411,"新上五島町","神之浦小学校",97410,"神之浦"]
[null,null,null,338,"南島原市立有家小学校",95970,214,"南島原市",13,null,null,null,null,null,null,null,null,null,null,1,"公立",1,"小学校",411,"新上五島町","奈良尾小学校",97420,"奈良尾"]
[null,null,null,339,"南島原市立蒲河小学校",95980,214,"南島原市",13,null,null,null,null,null,null,null,null,null,null,1,"公立",1,"小学校",411,"新上五島町","岩瀬浦小学校",97430,"岩瀬浦"]
[null,null,null,340,"南島原市立新切小学校",95990,214,"南島原市",13,null,null,null,null,null,null,null,null,null,null,1,"公立",1,"小学校",411,"新上五島町","若松中央小学校",97460,"若松中央"]
[null,null,null,341,"南島原市立堂崎小学校",96000,214,"南島原市",13,null,null,null,null,null,null,null,null,null,null,1,"公立",1,"小学校",411,"新上五島町","若松東小学校",97470,"若松東"]
[null,null,null,342,"南島原市立堂崎小木場分校",96003,214,"南島原市",13,null,null,null,null,null,null,null,null,null,null,1,"公立",2,"中学校",201,"長崎市","日見中学校",80010,"日見"]
[null,null,null,343,"南島原市立布津小学校",96010,214,"南島原市",13,null,null,null,null,null,null,null,null,null,null,1,"公立",2,"中学校",201,"長崎市","桜馬場中学校",80020,"桜馬場"]
[null,null,null,344,"南島原市立布津小第一分校",96013,214,"南島原市",13,null,null,null,null,null,null,null,null,null,null,1,"公立",2,"中学校",201,"長崎市","片淵中学校",80030,"片淵"]
[null,null,null,345,"南島原市立布津小第二分校",96014,214,"南島原市",13,null,null,null,null,null,null,null,null,null,null,1,"公立",2,"中学校",201,"長崎市","長崎中学校",80040,"長崎"]
[null,null,null,346,"南島原市立飯野小学校",96020,214,"南島原市",13,null,null,null,null,null,null,null,null,null,null,1,"公立",2,"中学校",201,"長崎市","小島中学校",80050,"小島"]
[null,null,null,347,"南島原市立深江小学校",96030,214,"南島原市",13,null,null,null,null,null,null,null,null,null,null,1,"公立",2,"中学校",201,"長崎市","大浦中学校",80060,"大浦"]
[null,null,null,348,"南島原市立深江小馬場分校",96033,214,"南島原市",13,null,null,null,null,null,null,null,null,null,null,1,"公立",2,"中学校",201,"長崎市","梅香崎中学校",80070,"梅香崎"]
[null,null,null,349,"南島原市立深江小諏訪分校",96034,214,"南島原市",13,null,null,null,null,null,null,null,null,null,null,1,"公立",2,"中学校",201,"長崎市","戸町中学校",80080,"戸町"]
[null,null,null,350,"南島原市立小林小学校",96040,214,"南島原市",13,null,null,null,null,null,null,null,null,null,null,1,"公立",2,"中学校",201,"長崎市","土井首中学校",80090,"土井首"]
[null,null,null,351,"南島原市立大野木場小学校",96050,214,"南島原市",13,null,null,null,null,null,null,null,null,null,null,1,"公立",2,"中学校",201,"長崎市","土井首中学校　開成分校",80093,"土井首　開成分校"]
[null,null,null,352,"南島原市立有馬小学校",96060,214,"南島原市",13,null,null,null,null,null,null,null,null,null,null,1,"公立",2,"中学校",201,"長崎市","深堀中学校",80100,"深堀"]
[null,null,null,353,"南島原市立口之津小学校",96070,214,"南島原市",13,null,null,null,null,null,null,null,null,null,null,1,"公立",2,"中学校",201,"長崎市","福田中学校",80110,"福田"]
[null,null,null,354,"長与町立長与小学校",94150,307,"長与町",14,null,null,null,null,null,null,null,null,null,null,1,"公立",2,"中学校",201,"長崎市","西泊中学校",80120,"西泊"]
[null,null,null,355,"長与町立高田小学校",94160,307,"長与町",14,null,null,null,null,null,null,null,null,null,null,1,"公立",2,"中学校",201,"長崎市","丸尾中学校",80130,"丸尾"]
[null,null,null,356,"長与町立洗切小学校",94170,307,"長与町",14,null,null,null,null,null,null,null,null,null,null,1,"公立",2,"中学校",201,"長崎市","淵中学校",80140,"淵"]
[null,null,null,357,"長与町立長与北小学校",99510,307,"長与町",14,null,null,null,null,null,null,null,null,null,null,1,"公立",2,"中学校",201,"長崎市","緑が丘中学校",80150,"緑が丘"]
[null,null,null,358,"長与町立長与南小学校",99550,307,"長与町",14,null,null,null,null,null,null,null,null,null,null,1,"公立",2,"中学校",201,"長崎市","岩屋中学校",80160,"岩屋"]
[null,null,null,359,"時津町立時津小学校",94180,308,"時津町",15,null,null,null,null,null,null,null,null,null,null,1,"公立",2,"中学校",201,"長崎市","西浦上中学校",80170,"西浦上"]
[null,null,null,360,"時津町立時津北小学校",94190,308,"時津町",15,null,null,null,null,null,null,null,null,null,null,1,"公立",2,"中学校",201,"長崎市","山里中学校",80180,"山里"]
[null,null,null,361,"時津町立時津東小学校",94480,308,"時津町",15,null,null,null,null,null,null,null,null,null,null,1,"公立",2,"中学校",201,"長崎市","茂木中学校",80200,"茂木"]
[null,null,null,362,"時津町立鳴鼓小学校",99520,308,"時津町",15,null,null,null,null,null,null,null,null,null,null,1,"公立",2,"中学校",201,"長崎市","日吉中学校",80210,"日吉"]
[null,null,null,363,"東彼杵町立千綿小学校",94510,321,"東彼杵町",16,null,null,null,null,null,null,null,null,null,null,1,"公立",2,"中学校",201,"長崎市","南中学校",80220,"南"]
[null,null,null,364,"東彼杵町立彼杵小学校",94520,321,"東彼杵町",16,null,null,null,null,null,null,null,null,null,null,1,"公立",2,"中学校",201,"長崎市","東長崎中学校",80240,"東長崎"]
[null,null,null,365,"東彼杵町立大楠小学校",94530,321,"東彼杵町",16,null,null,null,null,null,null,null,null,null,null,1,"公立",2,"中学校",201,"長崎市","滑石中学校",80250,"滑石"]
[null,null,null,366,"東彼杵町立音琴小学校",94540,321,"東彼杵町",16,null,null,null,null,null,null,null,null,null,null,1,"公立",2,"中学校",201,"長崎市","三重中学校",80260,"三重"]
[null,null,null,367,"川棚町立川棚小学校",94550,322,"川棚町",17,null,null,null,null,null,null,null,null,null,null,1,"公立",2,"中学校",201,"長崎市","横尾中学校",80270,"横尾"]
[null,null,null,368,"川棚町立石木小学校",94560,322,"川棚町",17,null,null,null,null,null,null,null,null,null,null,1,"公立",2,"中学校",201,"長崎市","小江原中学校",80280,"小江原"]
[null,null,null,369,"川棚町立小串小学校",94570,322,"川棚町",17,null,null,null,null,null,null,null,null,null,null,1,"公立",2,"中学校",201,"長崎市","橘中学校",80290,"橘"]
[null,null,null,370,"波佐見町立南小学校",94580,323,"波佐見町",18,null,null,null,null,null,null,null,null,null,null,1,"公立",2,"中学校",201,"長崎市","三川中学校",80300,"三川"]
[null,null,null,371,"波佐見町立東小学校",94590,323,"波佐見町",18,null,null,null,null,null,null,null,null,null,null,1,"公立",2,"中学校",201,"長崎市","小ケ倉中学校",80310,"小ケ倉"]
[null,null,null,372,"波佐見町立東小永尾分校",94593,323,"波佐見町",18,null,null,null,null,null,null,null,null,null,null,1,"公立",2,"中学校",201,"長崎市","香焼中学校",84010,"香焼"]
[null,null,null,373,"波佐見町立中央小学校",94600,323,"波佐見町",18,null,null,null,null,null,null,null,null,null,null,1,"公立",2,"中学校",201,"長崎市","伊王島中学校",84020,"伊王島"]
[null,null,null,374,"小値賀町立小値賀小学校",96540,383,"小値賀町",19,null,null,null,null,null,null,null,null,null,null,1,"公立",2,"中学校",201,"長崎市","高島中学校",84030,"高島"]
[null,null,null,375,"小値賀町立小値賀小大島分校",96543,383,"小値賀町",19,null,null,null,null,null,null,null,null,null,null,1,"公立",2,"中学校",201,"長崎市","野母崎中学校",84050,"野母崎"]
[null,null,null,376,"小値賀町立小値賀小六島分校",96544,383,"小値賀町",19,null,null,null,null,null,null,null,null,null,null,1,"公立",2,"中学校",201,"長崎市","三和中学校",84060,"三和"]
[null,null,null,377,"江迎町立江迎小学校",96680,388,"江迎町",20,null,null,null,null,null,null,null,null,null,null,1,"公立",2,"中学校",201,"長崎市","琴海中学校",84110,"琴海"]
[null,null,null,378,"江迎町立猪調小学校",96690,388,"江迎町",20,null,null,null,null,null,null,null,null,null,null,1,"公立",2,"中学校",201,"長崎市","神浦中学校",84250,"神浦"]
[null,null,null,379,"鹿町町立鹿町小学校",96700,389,"鹿町町",21,null,null,null,null,null,null,null,null,null,null,1,"公立",2,"中学校",201,"長崎市","池島中学校",84260,"池島"]
[null,null,null,380,"鹿町町立歌浦小学校",96710,389,"鹿町町",21,null,null,null,null,null,null,null,null,null,null,1,"公立",2,"中学校",201,"長崎市","黒崎中学校",84270,"黒崎"]
[null,null,null,381,"佐々町立佐々小学校",96740,391,"佐々町",22,null,null,null,null,null,null,null,null,null,null,1,"公立",2,"中学校",201,"長崎市","長崎東中学校",89010,"長崎東"]
[null,null,null,382,"佐々町立口石小学校",96750,391,"佐々町",22,null,null,null,null,null,null,null,null,null,null,1,"公立",2,"中学校",202,"佐世保市","宮中学校",80510,"宮"]
[null,null,null,383,"新上五島町立若松小学校",97220,411,"新上五島町",23,null,null,null,null,null,null,null,null,null,null,1,"公立",2,"中学校",202,"佐世保市","三川内中学校",80520,"三川内"]
[null,null,null,384,"新上五島町立浜ノ浦小学校",97280,411,"新上五島町",23,null,null,null,null,null,null,null,null,null,null,1,"公立",2,"中学校",202,"佐世保市","早岐中学校",80530,"早岐"]
[null,null,null,385,"新上五島町立今里小学校",97290,411,"新上五島町",23,null,null,null,null,null,null,null,null,null,null,1,"公立",2,"中学校",202,"佐世保市","東明中学校",80540,"東明"]
[null,null,null,386,"新上五島町立青方小学校",97310,411,"新上五島町",23,null,null,null,null,null,null,null,null,null,null,1,"公立",2,"中学校",202,"佐世保市","日宇中学校",80550,"日宇"]
[null,null,null,387,"新上五島町立上郷小学校",97320,411,"新上五島町",23,null,null,null,null,null,null,null,null,null,null,1,"公立",2,"中学校",202,"佐世保市","福石中学校",80560,"福石"]
[null,null,null,388,"新上五島町立魚目小学校",97330,411,"新上五島町",23,null,null,null,null,null,null,null,null,null,null,1,"公立",2,"中学校",202,"佐世保市","山澄中学校",80570,"山澄"]
[null,null,null,389,"新上五島町立北魚目小学校",97340,411,"新上五島町",23,null,null,null,null,null,null,null,null,null,null,1,"公立",2,"中学校",202,"佐世保市","旭中学校",80580,"旭"]
[null,null,null,390,"新上五島町立津和崎小学校",97350,411,"新上五島町",23,null,null,null,null,null,null,null,null,null,null,1,"公立",2,"中学校",202,"佐世保市","花園中学校",80590,"花園"]
[null,null,null,391,"新上五島町立仲知小学校",97360,411,"新上五島町",23,null,null,null,null,null,null,null,null,null,null,1,"公立",2,"中学校",202,"佐世保市","清水中学校",80600,"清水"]
[null,null,null,392,"新上五島町立有川小学校",97370,411,"新上五島町",23,null,null,null,null,null,null,null,null,null,null,1,"公立",2,"中学校",202,"佐世保市","光海中学校",80610,"光海"]
[null,null,null,393,"新上五島町立崎浦小学校",97380,411,"新上五島町",23,null,null,null,null,null,null,null,null,null,null,1,"公立",2,"中学校",202,"佐世保市","愛宕中学校",80620,"愛宕"]
[null,null,null,394,"新上五島町立東浦小学校",97390,411,"新上五島町",23,null,null,null,null,null,null,null,null,null,null,1,"公立",2,"中学校",202,"佐世保市","野崎中学校",80630,"野崎"]
[null,null,null,395,"新上五島町立太田小学校",97400,411,"新上五島町",23,null,null,null,null,null,null,null,null,null,null,1,"公立",2,"中学校",202,"佐世保市","黒島小中学校",80640,"黒島"]
[null,null,null,396,"新上五島町立神之浦小学校",97410,411,"新上五島町",23,null,null,null,null,null,null,null,null,null,null,1,"公立",2,"中学校",202,"佐世保市","浅子小中学校",80650,"浅子"]
[null,null,null,397,"新上五島町立奈良尾小学校",97420,411,"新上五島町",23,null,null,null,null,null,null,null,null,null,null,1,"公立",2,"中学校",202,"佐世保市","相浦中学校",80660,"相浦"]
[null,null,null,398,"新上五島町立岩瀬浦小学校",97430,411,"新上五島町",23,null,null,null,null,null,null,null,null,null,null,1,"公立",2,"中学校",202,"佐世保市","中里中学校",80670,"中里"]
[null,null,null,399,"新上五島町立若松中央小学校",97460,411,"新上五島町",23,null,null,null,null,null,null,null,null,null,null,1,"公立",2,"中学校",202,"佐世保市","大野中学校",80680,"大野"]
[null,null,null,400,"新上五島町立若松東小学校",97470,411,"新上五島町",23,null,null,null,null,null,null,null,null,null,null,1,"公立",2,"中学校",202,"佐世保市","柚木中学校",80690,"柚木"]
[null,null,null,401,"私立　聖マリア学院小学校",21010,401,"私立",24,null,null,null,null,null,null,null,null,null,null,1,"公立",2,"中学校",202,"佐世保市","崎辺中学校",80700,"崎辺"]
[null,null,null,402,"私立　長崎南山小学校",21020,401,"私立",24,null,null,null,null,null,null,null,null,null,null,1,"公立",2,"中学校",202,"佐世保市","広田中学校",80710,"広田"]
[null,null,null,403,"私立　長崎精道小学校",21030,401,"私立",24,null,null,null,null,null,null,null,null,null,null,1,"公立",2,"中学校",202,"佐世保市","日野中学校",80720,"日野"]
[null,null,null,404,"私立　精道三川台小学校",21040,401,"私立",24,null,null,null,null,null,null,null,null,null,null,1,"公立",2,"中学校",202,"佐世保市","宇久中学校",86060,"宇久"]
[null,null,null,405,"私立　聖母の騎士小学校",21050,401,"私立",24,null,null,null,null,null,null,null,null,null,null,1,"公立",2,"中学校",202,"佐世保市","小佐々中学校",86140,"小佐々"]
[null,null,null,406,"国立　長崎大学附属小学校",38080,301,"国立",25,null,null,null,null,null,null,null,null,null,null,1,"公立",2,"中学校",202,"佐世保市","吉井中学校",86160,"吉井"]
[null,null,null,407,"盲学校",76100,308,"県立",null,null,null,null,null,null,null,null,null,null,null,1,"公立",2,"中学校",202,"佐世保市","世知原中学校",86170,"世知原"]
[null,null,null,408,"ろう学校",76200,205,"県立",null,null,null,null,null,null,null,null,null,null,null,1,"公立",2,"中学校",202,"佐世保市","佐世保北中学校",89020,"佐世保北"]
[null,null,null,409,"ろう学校佐世保分校",76204,202,"県立",null,null,null,null,null,null,null,null,null,null,null,1,"公立",2,"中学校",203,"島原市","第一中学校",81010,"第一"]
[null,null,null,410,"諫早養護学校",76300,204,"県立",null,null,null,null,null,null,null,null,null,null,null,1,"公立",2,"中学校",203,"島原市","第二中学校",81020,"第二"]
[null,null,null,411,"大村養護学校",76400,205,"県立",null,null,null,null,null,null,null,null,null,null,null,1,"公立",2,"中学校",203,"島原市","第三中学校",81030,"第三"]
[null,null,null,412,"虹の原養護学校",76500,205,"県立",null,null,null,null,null,null,null,null,null,null,null,1,"公立",2,"中学校",203,"島原市","三会中学校",81040,"三会"]
[null,null,null,413,"虹の原養護みさかえ分校",76503,204,"県立",null,null,null,null,null,null,null,null,null,null,null,1,"公立",2,"中学校",203,"島原市","有明中学校",85510,"有明"]
[null,null,null,414,"虹の原養護学校壱岐分教室",76504,210,"県立",null,null,null,null,null,null,null,null,null,null,null,1,"公立",2,"中学校",204,"諫早市","諫早中学校",81510,"諫早"]
[null,null,null,415,"川棚養護学校",76700,322,"県立",null,null,null,null,null,null,null,null,null,null,null,1,"公立",2,"中学校",204,"諫早市","北諫早中学校",81520,"北諫早"]
[null,null,null,416,"佐世保養護学校",76800,202,"県立",null,null,null,null,null,null,null,null,null,null,null,1,"公立",2,"中学校",204,"諫早市","小野中学校",81530,"小野"]
[null,null,null,417,"島原養護学校",76900,203,"県立",null,null,null,null,null,null,null,null,null,null,null,1,"公立",2,"中学校",204,"諫早市","有喜中学校",81540,"有喜"]
[null,null,null,418,"島原養護学校高等部",76900,203,"県立",null,null,null,null,null,null,null,null,null,null,null,1,"公立",2,"中学校",204,"諫早市","西諫早中学校",81550,"西諫早"]
[null,null,null,419,"島原養護学校南串山分教室",76904,213,"県立",null,null,null,null,null,null,null,null,null,null,null,1,"公立",2,"中学校",204,"諫早市","長田中学校",81570,"長田"]
[null,null,null,420,"諫早東養護学校",77000,204,"県立",null,null,null,null,null,null,null,null,null,null,null,1,"公立",2,"中学校",204,"諫早市","明峰中学校",81580,"明峰"]
[null,null,null,421,"長崎養護学校",77100,201,"県立",null,null,null,null,null,null,null,null,null,null,null,1,"公立",2,"中学校",204,"諫早市","真城中学校",81590,"真城"]
[null,null,null,422,"鶴南養護学校",77200,201,"県立",null,null,null,null,null,null,null,null,null,null,null,1,"公立",2,"中学校",204,"諫早市","喜々津中学校",84070,"喜々津"]
[null,null,null,423,"鶴南養護学校五島海陽高校分教室",77204,211,"県立",null,null,null,null,null,null,null,null,null,null,null,1,"公立",2,"中学校",204,"諫早市","琴海中学校",84080,"琴海"]
[null,null,null,424,"鶴南養護学校小学部時津分教室",77205,308,"県立",null,null,null,null,null,null,null,null,null,null,null,1,"公立",2,"中学校",204,"諫早市","森山中学校",85010,"森山"]
[null,null,null,425,"桜が丘養護学校",77500,322,"県立",null,null,null,null,null,null,null,null,null,null,null,1,"公立",2,"中学校",204,"諫早市","飯盛中学校",85020,"飯盛"]
[null,null,null,426,"希望が丘高等養護学校",78100,204,"県立",null,null,null,null,null,null,null,null,null,null,null,1,"公立",2,"中学校",204,"諫早市","小長井中学校",85050,"小長井"]
[null,null,null,427,"▼選択して下さい",null,null,null,null,null,null,null,null,null,null,null,null,null,null,1,"公立",2,"中学校",204,"諫早市","高来中学校",85060,"高来"]
[null,null,null,null,null,null,null,null,null,null,null,null,null,null,null,null,null,null,null,1,"公立",2,"中学校",205,"大村市","玖島中学校",82010,"玖島"]
[null,null,null,null,null,null,null,null,null,null,null,null,null,null,null,null,null,null,null,1,"公立",2,"中学校",205,"大村市","西大村中学校",82020,"西大村"]
[null,null,null,null,null,null,null,null,null,null,null,null,null,null,null,null,null,null,null,1,"公立",2,"中学校",205,"大村市","萱瀬中学校",82030,"萱瀬"]
[null,null,null,null,null,null,null,null,null,null,null,null,null,null,null,null,null,null,null,1,"公立",2,"中学校",205,"大村市","郡中学校",82040,"郡"]
[null,null,null,null,null,null,null,null,null,null,null,null,null,null,null,null,null,null,null,1,"公立",2,"中学校",205,"大村市","大村中学校",82050,"大村"]
[null,null,null,null,null,null,null,null,null,null,null,null,null,null,null,null,null,null,null,1,"公立",2,"中学校",205,"大村市","桜が原中学校",82060,"桜が原"]
[null,null,null,null,null,null,null,null,null,null,null,null,null,null,null,null,null,null,null,1,"公立",2,"中学校",207,"平戸市","平戸中学校",83010,"平戸"]
[null,null,null,null,null,null,null,null,null,null,null,null,null,null,null,null,null,null,null,1,"公立",2,"中学校",207,"平戸市","度島中学校",83020,"度島"]
[null,null,null,null,null,null,null,null,null,null,null,null,null,null,null,null,null,null,null,1,"公立",2,"中学校",207,"平戸市","中野中学校",83030,"中野"]
[null,null,null,null,null,null,null,null,null,null,null,null,null,null,null,null,null,null,null,1,"公立",2,"中学校",207,"平戸市","中部中学校",83040,"中部"]
[null,null,null,null,null,null,null,null,null,null,null,null,null,null,null,null,null,null,null,1,"公立",2,"中学校",207,"平戸市","南部中学校",83050,"南部"]
[null,null,null,null,null,null,null,null,null,null,null,null,null,null,null,null,null,null,null,1,"公立",2,"中学校",207,"平戸市","大島中学校",86010,"大島"]
[null,null,null,null,null,null,null,null,null,null,null,null,null,null,null,null,null,null,null,1,"公立",2,"中学校",207,"平戸市","生月中学校",86020,"生月"]
[null,null,null,null,null,null,null,null,null,null,null,null,null,null,null,null,null,null,null,1,"公立",2,"中学校",207,"平戸市","田平中学校",86080,"田平"]
[null,null,null,null,null,null,null,null,null,null,null,null,null,null,null,null,null,null,null,1,"公立",2,"中学校",208,"松浦市","御厨中学校",83510,"御厨"]
[null,null,null,null,null,null,null,null,null,null,null,null,null,null,null,null,null,null,null,1,"公立",2,"中学校",208,"松浦市","青島中学校",83520,"青島"]
[null,null,null,null,null,null,null,null,null,null,null,null,null,null,null,null,null,null,null,1,"公立",2,"中学校",208,"松浦市","志佐中学校",83530,"志佐"]
[null,null,null,null,null,null,null,null,null,null,null,null,null,null,null,null,null,null,null,1,"公立",2,"中学校",208,"松浦市","調川中学校",83540,"調川"]
[null,null,null,null,null,null,null,null,null,null,null,null,null,null,null,null,null,null,null,1,"公立",2,"中学校",208,"松浦市","今福中学校",83550,"今福"]
[null,null,null,null,null,null,null,null,null,null,null,null,null,null,null,null,null,null,null,1,"公立",2,"中学校",208,"松浦市","福島中学校",86090,"福島"]
[null,null,null,null,null,null,null,null,null,null,null,null,null,null,null,null,null,null,null,1,"公立",2,"中学校",208,"松浦市","鷹島中学校",86100,"鷹島"]
[null,null,null,null,null,null,null,null,null,null,null,null,null,null,null,null,null,null,null,1,"公立",2,"中学校",209,"対馬市","厳原中学校",87510,"厳原"]
[null,null,null,null,null,null,null,null,null,null,null,null,null,null,null,null,null,null,null,1,"公立",2,"中学校",209,"対馬市","久田中学校",87520,"久田"]
[null,null,null,null,null,null,null,null,null,null,null,null,null,null,null,null,null,null,null,1,"公立",2,"中学校",209,"対馬市","豆酘中学校",87540,"豆酘"]
[null,null,null,null,null,null,null,null,null,null,null,null,null,null,null,null,null,null,null,1,"公立",2,"中学校",209,"対馬市","大船越中学校",87600,"大船越"]
[null,null,null,null,null,null,null,null,null,null,null,null,null,null,null,null,null,null,null,1,"公立",2,"中学校",209,"対馬市","鶏知中学校",87630,"鶏知"]
[null,null,null,null,null,null,null,null,null,null,null,null,null,null,null,null,null,null,null,1,"公立",2,"中学校",209,"対馬市","加志々中学校",87680,"加志々"]
[null,null,null,null,null,null,null,null,null,null,null,null,null,null,null,null,null,null,null,1,"公立",2,"中学校",209,"対馬市","西部中学校",87690,"西部"]
[null,null,null,null,null,null,null,null,null,null,null,null,null,null,null,null,null,null,null,1,"公立",2,"中学校",209,"対馬市","東部中学校",87700,"東部"]
[null,null,null,null,null,null,null,null,null,null,null,null,null,null,null,null,null,null,null,1,"公立",2,"中学校",209,"対馬市","佐須奈中学校",87720,"佐須奈"]
[null,null,null,null,null,null,null,null,null,null,null,null,null,null,null,null,null,null,null,1,"公立",2,"中学校",209,"対馬市","久原中学校",87740,"久原"]
[null,null,null,null,null,null,null,null,null,null,null,null,null,null,null,null,null,null,null,1,"公立",2,"中学校",209,"対馬市","仁田中学校",87760,"仁田"]
[null,null,null,null,null,null,null,null,null,null,null,null,null,null,null,null,null,null,null,1,"公立",2,"中学校",209,"対馬市","比田勝中学校",87770,"比田勝"]
[null,null,null,null,null,null,null,null,null,null,null,null,null,null,null,null,null,null,null,1,"公立",2,"中学校",209,"対馬市","豊中学校",87780,"豊"]
[null,null,null,null,null,null,null,null,null,null,null,null,null,null,null,null,null,null,null,1,"公立",2,"中学校",209,"対馬市","豊玉中学校",87820,"豊玉"]
[null,null,null,null,null,null,null,null,null,null,null,null,null,null,null,null,null,null,null,1,"公立",2,"中学校",209,"対馬市","佐須中学校",87840,"佐須"]
[null,null,null,null,null,null,null,null,null,null,null,null,null,null,null,null,null,null,null,1,"公立",2,"中学校",209,"対馬市","南陽中学校",87850,"南陽"]
[null,null,null,null,null,null,null,null,null,null,null,null,null,null,null,null,null,null,null,1,"公立",2,"中学校",210,"壱岐市","武生水中学校",87010,"武生水"]
[null,null,null,null,null,null,null,null,null,null,null,null,null,null,null,null,null,null,null,1,"公立",2,"中学校",210,"壱岐市","渡良中学校",87020,"渡良"]
[null,null,null,null,null,null,null,null,null,null,null,null,null,null,null,null,null,null,null,1,"公立",2,"中学校",210,"壱岐市","沼津中学校",87030,"沼津"]
[null,null,null,null,null,null,null,null,null,null,null,null,null,null,null,null,null,null,null,1,"公立",2,"中学校",210,"壱岐市","初山中学校",87040,"初山"]
[null,null,null,null,null,null,null,null,null,null,null,null,null,null,null,null,null,null,null,1,"公立",2,"中学校",210,"壱岐市","鯨伏中学校",87050,"鯨伏"]
[null,null,null,null,null,null,null,null,null,null,null,null,null,null,null,null,null,null,null,1,"公立",2,"中学校",210,"壱岐市","勝本中学校",87060,"勝本"]
[null,null,null,null,null,null,null,null,null,null,null,null,null,null,null,null,null,null,null,1,"公立",2,"中学校",210,"壱岐市","箱崎中学校",87070,"箱崎"]
[null,null,null,null,null,null,null,null,null,null,null,null,null,null,null,null,null,null,null,1,"公立",2,"中学校",210,"壱岐市","那賀中学校",87080,"那賀"]
[null,null,null,null,null,null,null,null,null,null,null,null,null,null,null,null,null,null,null,1,"公立",2,"中学校",210,"壱岐市","田河中学校",87090,"田河"]
[null,null,null,null,null,null,null,null,null,null,null,null,null,null,null,null,null,null,null,1,"公立",2,"中学校",210,"壱岐市","石田中学校",87100,"石田"]
[null,null,null,null,null,null,null,null,null,null,null,null,null,null,null,null,null,null,null,1,"公立",2,"中学校",211,"五島市","福江中学校",82510,"福江"]
[null,null,null,null,null,null,null,null,null,null,null,null,null,null,null,null,null,null,null,1,"公立",2,"中学校",211,"五島市","福江中学校　黄島分校",82514,"福江　黄島分校"]
[null,null,null,null,null,null,null,null,null,null,null,null,null,null,null,null,null,null,null,1,"公立",2,"中学校",211,"五島市","奥浦中学校",82520,"奥浦"]
[null,null,null,null,null,null,null,null,null,null,null,null,null,null,null,null,null,null,null,1,"公立",2,"中学校",211,"五島市","崎山中学校",82530,"崎山"]
[null,null,null,null,null,null,null,null,null,null,null,null,null,null,null,null,null,null,null,1,"公立",2,"中学校",211,"五島市","翁頭中学校",82540,"翁頭"]
[null,null,null,null,null,null,null,null,null,null,null,null,null,null,null,null,null,null,null,1,"公立",2,"中学校",211,"五島市","福江中学校　椛島分校",82560,"福江　椛島分校"]
[null,null,null,null,null,null,null,null,null,null,null,null,null,null,null,null,null,null,null,1,"公立",2,"中学校",211,"五島市","久賀中学校",82570,"久賀"]
[null,null,null,null,null,null,null,null,null,null,null,null,null,null,null,null,null,null,null,1,"公立",2,"中学校",211,"五島市","蕨中学校",82580,"蕨"]
[null,null,null,null,null,null,null,null,null,null,null,null,null,null,null,null,null,null,null,1,"公立",2,"中学校",211,"五島市","富江中学校",86510,"富江"]
[null,null,null,null,null,null,null,null,null,null,null,null,null,null,null,null,null,null,null,1,"公立",2,"中学校",211,"五島市","玉之浦中学校",86520,"玉之浦"]
[null,null,null,null,null,null,null,null,null,null,null,null,null,null,null,null,null,null,null,1,"公立",2,"中学校",211,"五島市","三井楽中学校",86560,"三井楽"]
[null,null,null,null,null,null,null,null,null,null,null,null,null,null,null,null,null,null,null,1,"公立",2,"中学校",211,"五島市","嵯峨島中学校",86570,"嵯峨島"]
[null,null,null,null,null,null,null,null,null,null,null,null,null,null,null,null,null,null,null,1,"公立",2,"中学校",211,"五島市","岐宿中学校",86580,"岐宿"]
[null,null,null,null,null,null,null,null,null,null,null,null,null,null,null,null,null,null,null,1,"公立",2,"中学校",211,"五島市","奈留中学校",86610,"奈留"]
[null,null,null,null,null,null,null,null,null,null,null,null,null,null,null,null,null,null,null,1,"公立",2,"中学校",212,"西海市","西彼中学校",84120,"西彼"]
[null,null,null,null,null,null,null,null,null,null,null,null,null,null,null,null,null,null,null,1,"公立",2,"中学校",212,"西海市","江島中学校",84190,"江島"]
[null,null,null,null,null,null,null,null,null,null,null,null,null,null,null,null,null,null,null,1,"公立",2,"中学校",212,"西海市","平島中学校",84200,"平島"]
[null,null,null,null,null,null,null,null,null,null,null,null,null,null,null,null,null,null,null,1,"公立",2,"中学校",212,"西海市","大瀬戸中学校",84290,"大瀬戸"]
[null,null,null,null,null,null,null,null,null,null,null,null,null,null,null,null,null,null,null,1,"公立",2,"中学校",212,"西海市","西海北中学校",84310,"西海北"]
[null,null,null,null,null,null,null,null,null,null,null,null,null,null,null,null,null,null,null,1,"公立",2,"中学校",212,"西海市","西海南中学校",84320,"西海南"]
[null,null,null,null,null,null,null,null,null,null,null,null,null,null,null,null,null,null,null,1,"公立",2,"中学校",212,"西海市","大崎中学校",84370,"大崎"]
[null,null,null,null,null,null,null,null,null,null,null,null,null,null,null,null,null,null,null,1,"公立",2,"中学校",213,"雲仙市","国見中学校",85520,"国見"]
[null,null,null,null,null,null,null,null,null,null,null,null,null,null,null,null,null,null,null,1,"公立",2,"中学校",213,"雲仙市","瑞穂中学校",85530,"瑞穂"]
[null,null,null,null,null,null,null,null,null,null,null,null,null,null,null,null,null,null,null,1,"公立",2,"中学校",213,"雲仙市","吾妻中学校",85540,"吾妻"]
[null,null,null,null,null,null,null,null,null,null,null,null,null,null,null,null,null,null,null,1,"公立",2,"中学校",213,"雲仙市","愛野中学校",85550,"愛野"]
[null,null,null,null,null,null,null,null,null,null,null,null,null,null,null,null,null,null,null,1,"公立",2,"中学校",213,"雲仙市","千々石中学校",85560,"千々石"]
[null,null,null,null,null,null,null,null,null,null,null,null,null,null,null,null,null,null,null,1,"公立",2,"中学校",213,"雲仙市","小浜中学校",85570,"小浜"]
[null,null,null,null,null,null,null,null,null,null,null,null,null,null,null,null,null,null,null,1,"公立",2,"中学校",213,"雲仙市","北串中学校",85590,"北串"]
[null,null,null,null,null,null,null,null,null,null,null,null,null,null,null,null,null,null,null,1,"公立",2,"中学校",213,"雲仙市","南串中学校",85600,"南串"]
[null,null,null,null,null,null,null,null,null,null,null,null,null,null,null,null,null,null,null,1,"公立",2,"中学校",214,"南島原市","加津佐中学校",85610,"加津佐"]
[null,null,null,null,null,null,null,null,null,null,null,null,null,null,null,null,null,null,null,1,"公立",2,"中学校",214,"南島原市","口之津中学校",85620,"口之津"]
[null,null,null,null,null,null,null,null,null,null,null,null,null,null,null,null,null,null,null,1,"公立",2,"中学校",214,"南島原市","南有馬中学校",85630,"南有馬"]
[null,null,null,null,null,null,null,null,null,null,null,null,null,null,null,null,null,null,null,1,"公立",2,"中学校",214,"南島原市","北有馬中学校",85640,"北有馬"]
[null,null,null,null,null,null,null,null,null,null,null,null,null,null,null,null,null,null,null,1,"公立",2,"中学校",214,"南島原市","西有家中学校",85650,"西有家"]
[null,null,null,null,null,null,null,null,null,null,null,null,null,null,null,null,null,null,null,1,"公立",2,"中学校",214,"南島原市","有家中学校",85660,"有家"]
[null,null,null,null,null,null,null,null,null,null,null,null,null,null,null,null,null,null,null,1,"公立",2,"中学校",214,"南島原市","布津中学校",85670,"布津"]
[null,null,null,null,null,null,null,null,null,null,null,null,null,null,null,null,null,null,null,1,"公立",2,"中学校",214,"南島原市","深江中学校",85680,"深江"]
[null,null,null,null,null,null,null,null,null,null,null,null,null,null,null,null,null,null,null,1,"公立",2,"中学校",307,"長与町","長与中学校",84090,"長与"]
[null,null,null,null,null,null,null,null,null,null,null,null,null,null,null,null,null,null,null,1,"公立",2,"中学校",307,"長与町","長与第二中学校",84330,"長与第二"]
[null,null,null,null,null,null,null,null,null,null,null,null,null,null,null,null,null,null,null,1,"公立",2,"中学校",307,"長与町","高田中学校",84350,"高田"]
[null,null,null,null,null,null,null,null,null,null,null,null,null,null,null,null,null,null,null,1,"公立",2,"中学校",308,"時津町","時津中学校",84100,"時津"]
[null,null,null,null,null,null,null,null,null,null,null,null,null,null,null,null,null,null,null,1,"公立",2,"中学校",308,"時津町","鳴北中学校",84340,"鳴北"]
[null,null,null,null,null,null,null,null,null,null,null,null,null,null,null,null,null,null,null,1,"公立",2,"中学校",321,"東彼杵町","千綿中学校",84510,"千綿"]
[null,null,null,null,null,null,null,null,null,null,null,null,null,null,null,null,null,null,null,1,"公立",2,"中学校",321,"東彼杵町","彼杵中学校",84520,"彼杵"]
[null,null,null,null,null,null,null,null,null,null,null,null,null,null,null,null,null,null,null,1,"公立",2,"中学校",322,"川棚町","川棚中学校",84530,"川棚"]
[null,null,null,null,null,null,null,null,null,null,null,null,null,null,null,null,null,null,null,1,"公立",2,"中学校",323,"波佐見町","波佐見中学校",84560,"波佐見"]
[null,null,null,null,null,null,null,null,null,null,null,null,null,null,null,null,null,null,null,1,"公立",2,"中学校",383,"小値賀町","小値賀中学校",86030,"小値賀"]
[null,null,null,null,null,null,null,null,null,null,null,null,null,null,null,null,null,null,null,1,"公立",2,"中学校",383,"小値賀町","小値賀中学校　六島分校",86033,"小値賀　六島分校"]
[null,null,null,null,null,null,null,null,null,null,null,null,null,null,null,null,null,null,null,1,"公立",2,"中学校",388,"江迎町","江迎中学校",86110,"江迎"]
[null,null,null,null,null,null,null,null,null,null,null,null,null,null,null,null,null,null,null,1,"公立",2,"中学校",389,"鹿町町","鹿町中学校",86120,"鹿町"]
[null,null,null,null,null,null,null,null,null,null,null,null,null,null,null,null,null,null,null,1,"公立",2,"中学校",391,"佐々町","佐々中学校",86150,"佐々"]
[null,null,null,null,null,null,null,null,null,null,null,null,null,null,null,null,null,null,null,1,"公立",2,"中学校",411,"新上五島町","若松中学校",86640,"若松"]
[null,null,null,null,null,null,null,null,null,null,null,null,null,null,null,null,null,null,null,1,"公立",2,"中学校",411,"新上五島町","魚目中学校",86690,"魚目"]
[null,null,null,null,null,null,null,null,null,null,null,null,null,null,null,null,null,null,null,1,"公立",2,"中学校",411,"新上五島町","有川中学校",86730,"有川"]
[null,null,null,null,null,null,null,null,null,null,null,null,null,null,null,null,null,null,null,1,"公立",2,"中学校",411,"新上五島町","奈良尾中学校",86760,"奈良尾"]
[null,null,null,null,null,null,null,null,null,null,null,null,null,null,null,null,null,null,null,1,"公立",2,"中学校",411,"新上五島町","上五島中学校",86780,"上五島"]
[null,null,null,null,null,null,null,null,null,null,null,null,null,null,null,null,null,null,null,1,"公立",3,"高等学校　全日制",201,"長崎市","長崎東高等学校",70010,"長崎東"]
[null,null,null,null,null,null,null,null,null,null,null,null,null,null,null,null,null,null,null,1,"公立",3,"高等学校　全日制",201,"長崎市","長崎西高等学校",70020,"長崎西"]
[null,null,null,null,null,null,null,null,null,null,null,null,null,null,null,null,null,null,null,1,"公立",3,"高等学校　全日制",201,"長崎市","長崎南高等学校",70030,"長崎南"]
[null,null,null,null,null,null,null,null,null,null,null,null,null,null,null,null,null,null,null,1,"公立",3,"高等学校　全日制",201,"長崎市","長崎北高等学校",70040,"長崎北"]
[null,null,null,null,null,null,null,null,null,null,null,null,null,null,null,null,null,null,null,1,"公立",3,"高等学校　全日制",201,"長崎市","長崎工業高等学校",70360,"長崎工業"]
[null,null,null,null,null,null,null,null,null,null,null,null,null,null,null,null,null,null,null,1,"公立",3,"高等学校　全日制",201,"長崎市","長崎鶴洋高等学校",70460,"長崎鶴洋"]
[null,null,null,null,null,null,null,null,null,null,null,null,null,null,null,null,null,null,null,1,"公立",3,"高等学校　全日制",201,"長崎市","野母崎高等学校",70480,"野母崎"]
[null,null,null,null,null,null,null,null,null,null,null,null,null,null,null,null,null,null,null,1,"公立",3,"高等学校　全日制",201,"長崎市","長崎明誠高等学校",70510,"長崎明誠"]
[null,null,null,null,null,null,null,null,null,null,null,null,null,null,null,null,null,null,null,1,"公立",3,"高等学校　全日制",201,"長崎市","長崎商業高等学校",75502,"長崎商業"]
[null,null,null,null,null,null,null,null,null,null,null,null,null,null,null,null,null,null,null,1,"公立",3,"高等学校　全日制",202,"佐世保市","佐世保南高等学校",70050,"佐世保南"]
[null,null,null,null,null,null,null,null,null,null,null,null,null,null,null,null,null,null,null,1,"公立",3,"高等学校　全日制",202,"佐世保市","佐世保北高等学校",70060,"佐世保北"]
[null,null,null,null,null,null,null,null,null,null,null,null,null,null,null,null,null,null,null,1,"公立",3,"高等学校　全日制",202,"佐世保市","宇久高等学校",70220,"宇久"]
[null,null,null,null,null,null,null,null,null,null,null,null,null,null,null,null,null,null,null,1,"公立",3,"高等学校　全日制",202,"佐世保市","佐世保工業高等学校",70370,"佐世保工業"]
[null,null,null,null,null,null,null,null,null,null,null,null,null,null,null,null,null,null,null,1,"公立",3,"高等学校　全日制",202,"佐世保市","佐世保商業高等学校",70410,"佐世保商業"]
[null,null,null,null,null,null,null,null,null,null,null,null,null,null,null,null,null,null,null,1,"公立",3,"高等学校　全日制",202,"佐世保市","佐世保東翔高等学校",70420,"佐世保東翔"]
[null,null,null,null,null,null,null,null,null,null,null,null,null,null,null,null,null,null,null,1,"公立",3,"高等学校　全日制",202,"佐世保市","佐世保西高等学校",70470,"佐世保西"]
[null,null,null,null,null,null,null,null,null,null,null,null,null,null,null,null,null,null,null,1,"公立",3,"高等学校　全日制",203,"島原市","島原高等学校",70070,"島原"]
[null,null,null,null,null,null,null,null,null,null,null,null,null,null,null,null,null,null,null,1,"公立",3,"高等学校　全日制",203,"島原市","島原農業高等学校",70300,"島原農業"]
[null,null,null,null,null,null,null,null,null,null,null,null,null,null,null,null,null,null,null,1,"公立",3,"高等学校　全日制",203,"島原市","島原工業高等学校",70380,"島原工業"]
[null,null,null,null,null,null,null,null,null,null,null,null,null,null,null,null,null,null,null,1,"公立",3,"高等学校　全日制",203,"島原市","島原商業高等学校",70430,"島原商業"]
[null,null,null,null,null,null,null,null,null,null,null,null,null,null,null,null,null,null,null,1,"公立",3,"高等学校　全日制",204,"諫早市","諫早高等学校",70080,"諫早"]
[null,null,null,null,null,null,null,null,null,null,null,null,null,null,null,null,null,null,null,1,"公立",3,"高等学校　全日制",204,"諫早市","諫早農業高等学校",70310,"諫早農業"]
[null,null,null,null,null,null,null,null,null,null,null,null,null,null,null,null,null,null,null,1,"公立",3,"高等学校　全日制",204,"諫早市","諫早商業高等学校",70440,"諫早商業"]
[null,null,null,null,null,null,null,null,null,null,null,null,null,null,null,null,null,null,null,1,"公立",3,"高等学校　全日制",204,"諫早市","諫早東高等学校",70600,"諫早東"]
[null,null,null,null,null,null,null,null,null,null,null,null,null,null,null,null,null,null,null,1,"公立",3,"高等学校　全日制",204,"諫早市","西陵高等学校",70620,"西陵"]
[null,null,null,null,null,null,null,null,null,null,null,null,null,null,null,null,null,null,null,1,"公立",3,"高等学校　全日制",205,"大村市","大村高等学校",70090,"大村"]
[null,null,null,null,null,null,null,null,null,null,null,null,null,null,null,null,null,null,null,1,"公立",3,"高等学校　全日制",205,"大村市","大村城南高等学校",70320,"大村城南"]
[null,null,null,null,null,null,null,null,null,null,null,null,null,null,null,null,null,null,null,1,"公立",3,"高等学校　全日制",205,"大村市","大村工業高等学校",70390,"大村工業"]
[null,null,null,null,null,null,null,null,null,null,null,null,null,null,null,null,null,null,null,1,"公立",3,"高等学校　全日制",207,"平戸市","猶興館高等学校",70110,"猶興館"]
[null,null,null,null,null,null,null,null,null,null,null,null,null,null,null,null,null,null,null,1,"公立",3,"高等学校　全日制",207,"平戸市","猶興館高等学校　大島分校",70115,"猶興館　大島分校"]
[null,null,null,null,null,null,null,null,null,null,null,null,null,null,null,null,null,null,null,1,"公立",3,"高等学校　全日制",207,"平戸市","北松農業高等学校",70350,"北松農業"]
[null,null,null,null,null,null,null,null,null,null,null,null,null,null,null,null,null,null,null,1,"公立",3,"高等学校　全日制",207,"平戸市","平戸高等学校",70530,"平戸"]
[null,null,null,null,null,null,null,null,null,null,null,null,null,null,null,null,null,null,null,1,"公立",3,"高等学校　全日制",208,"松浦市","松浦高等学校",70120,"松浦"]
[null,null,null,null,null,null,null,null,null,null,null,null,null,null,null,null,null,null,null,1,"公立",3,"高等学校　全日制",208,"松浦市","松浦東高等学校",70330,"松浦東"]
[null,null,null,null,null,null,null,null,null,null,null,null,null,null,null,null,null,null,null,1,"公立",3,"高等学校　全日制",209,"対馬市","対馬高等学校",70280,"対馬"]
[null,null,null,null,null,null,null,null,null,null,null,null,null,null,null,null,null,null,null,1,"公立",3,"高等学校　全日制",209,"対馬市","上対馬高等学校",70290,"上対馬"]
[null,null,null,null,null,null,null,null,null,null,null,null,null,null,null,null,null,null,null,1,"公立",3,"高等学校　全日制",209,"対馬市","豊玉高等学校",70500,"豊玉"]
[null,null,null,null,null,null,null,null,null,null,null,null,null,null,null,null,null,null,null,1,"公立",3,"高等学校　全日制",210,"壱岐市","壱岐高等学校",70270,"壱岐"]
[null,null,null,null,null,null,null,null,null,null,null,null,null,null,null,null,null,null,null,1,"公立",3,"高等学校　全日制",210,"壱岐市","壱岐商業高等学校",70450,"壱岐商業"]
[null,null,null,null,null,null,null,null,null,null,null,null,null,null,null,null,null,null,null,1,"公立",3,"高等学校　全日制",211,"五島市","五島高等学校",70100,"五島"]
[null,null,null,null,null,null,null,null,null,null,null,null,null,null,null,null,null,null,null,1,"公立",3,"高等学校　全日制",211,"五島市","富江高等学校",70240,"富江"]
[null,null,null,null,null,null,null,null,null,null,null,null,null,null,null,null,null,null,null,1,"公立",3,"高等学校　全日制",211,"五島市","五島南高等学校",70250,"五島南"]
[null,null,null,null,null,null,null,null,null,null,null,null,null,null,null,null,null,null,null,1,"公立",3,"高等学校　全日制",211,"五島市","五島海陽高等学校",70540,"五島海陽"]
[null,null,null,null,null,null,null,null,null,null,null,null,null,null,null,null,null,null,null,1,"公立",3,"高等学校　全日制",211,"五島市","奈留高等学校",70550,"奈留"]
[null,null,null,null,null,null,null,null,null,null,null,null,null,null,null,null,null,null,null,1,"公立",3,"高等学校　全日制",212,"西海市","大崎高等学校",70140,"大崎"]
[null,null,null,null,null,null,null,null,null,null,null,null,null,null,null,null,null,null,null,1,"公立",3,"高等学校　全日制",212,"西海市","西彼杵高等学校",70150,"西彼杵"]
[null,null,null,null,null,null,null,null,null,null,null,null,null,null,null,null,null,null,null,1,"公立",3,"高等学校　全日制",212,"西海市","西彼農業高等学校",70340,"西彼農業"]
[null,null,null,null,null,null,null,null,null,null,null,null,null,null,null,null,null,null,null,1,"公立",3,"高等学校　全日制",213,"雲仙市","国見高等学校",70170,"国見"]
[null,null,null,null,null,null,null,null,null,null,null,null,null,null,null,null,null,null,null,1,"公立",3,"高等学校　全日制",213,"雲仙市","小浜高等学校",70180,"小浜"]
[null,null,null,null,null,null,null,null,null,null,null,null,null,null,null,null,null,null,null,1,"公立",3,"高等学校　全日制",214,"南島原市","口加高等学校",70190,"口加"]
[null,null,null,null,null,null,null,null,null,null,null,null,null,null,null,null,null,null,null,1,"公立",3,"高等学校　全日制",214,"南島原市","島原翔南高等学校",70640,"島原翔南"]
[null,null,null,null,null,null,null,null,null,null,null,null,null,null,null,null,null,null,null,1,"公立",3,"高等学校　全日制",307,"長与町","長崎北陽台高等学校",70590,"長崎北陽台"]
[null,null,null,null,null,null,null,null,null,null,null,null,null,null,null,null,null,null,null,1,"公立",3,"高等学校　全日制",322,"川棚町","川棚高等学校",70160,"川棚"]
[null,null,null,null,null,null,null,null,null,null,null,null,null,null,null,null,null,null,null,1,"公立",3,"高等学校　全日制",323,"波佐見町","波佐見高等学校",70560,"波佐見"]
[null,null,null,null,null,null,null,null,null,null,null,null,null,null,null,null,null,null,null,1,"公立",3,"高等学校　全日制",383,"小値賀町","北松西高等学校",70210,"北松西"]
[null,null,null,null,null,null,null,null,null,null,null,null,null,null,null,null,null,null,null,1,"公立",3,"高等学校　全日制",389,"鹿町町","鹿町工業高等学校",70400,"鹿町工業"]
[null,null,null,null,null,null,null,null,null,null,null,null,null,null,null,null,null,null,null,1,"公立",3,"高等学校　全日制",391,"佐々町","清峰高等学校",70230,"清峰"]
[null,null,null,null,null,null,null,null,null,null,null,null,null,null,null,null,null,null,null,1,"公立",3,"高等学校　全日制",411,"新上五島町","上五島高等学校",70260,"上五島"]
[null,null,null,null,null,null,null,null,null,null,null,null,null,null,null,null,null,null,null,1,"公立",3,"高等学校　全日制",411,"新上五島町","中五島高等学校",70490,"中五島"]
[null,null,null,null,null,null,null,null,null,null,null,null,null,null,null,null,null,null,null,1,"公立",4,"高等学校　定時制",201,"長崎市","長崎工業高等学校　定時制",70362,"長崎工業　定時制"]
[null,null,null,null,null,null,null,null,null,null,null,null,null,null,null,null,null,null,null,1,"公立",4,"高等学校　定時制",201,"長崎市","鳴滝高等学校　定時制（昼）",70636,"鳴滝　定時制（昼）"]
[null,null,null,null,null,null,null,null,null,null,null,null,null,null,null,null,null,null,null,1,"公立",4,"高等学校　定時制",201,"長崎市","鳴滝高等学校　定時制（夜）",70637,"鳴滝　定時制（夜）"]
[null,null,null,null,null,null,null,null,null,null,null,null,null,null,null,null,null,null,null,1,"公立",4,"高等学校　定時制",202,"佐世保市","佐世保工業高等学校　定時制",70372,"佐世保工業　定時制"]
[null,null,null,null,null,null,null,null,null,null,null,null,null,null,null,null,null,null,null,1,"公立",4,"高等学校　定時制",202,"佐世保市","佐世保中央高等学校　定時制（夜）",70582,"佐世保中央　定時制（夜）"]
[null,null,null,null,null,null,null,null,null,null,null,null,null,null,null,null,null,null,null,1,"公立",4,"高等学校　定時制",202,"佐世保市","佐世保中央高等学校　定時制（昼）",70586,"佐世保中央　定時制（昼）"]
[null,null,null,null,null,null,null,null,null,null,null,null,null,null,null,null,null,null,null,1,"公立",4,"高等学校　定時制",203,"島原市","島原高等学校　定時制",70072,"島原　定時制"]
[null,null,null,null,null,null,null,null,null,null,null,null,null,null,null,null,null,null,null,1,"公立",4,"高等学校　定時制",204,"諫早市","諫早高等学校　定時制",70082,"諫早　定時制"]
[null,null,null,null,null,null,null,null,null,null,null,null,null,null,null,null,null,null,null,1,"公立",4,"高等学校　定時制",205,"大村市","大村高等学校　定時制",70092,"大村　定時制"]
[null,null,null,null,null,null,null,null,null,null,null,null,null,null,null,null,null,null,null,1,"公立",4,"高等学校　定時制",211,"五島市","五島高等学校　定時制",70102,"五島　定時制"]
[null,null,null,null,null,null,null,null,null,null,null,null,null,null,null,null,null,null,null,1,"公立",5,"特別支援　小学校",201,"長崎市","長崎養護学校",77100,"長崎養護"]
[null,null,null,null,null,null,null,null,null,null,null,null,null,null,null,null,null,null,null,1,"公立",5,"特別支援　小学校",201,"長崎市","鶴南養護学校",77200,"鶴南養護"]
[null,null,null,null,null,null,null,null,null,null,null,null,null,null,null,null,null,null,null,1,"公立",5,"特別支援　小学校",202,"佐世保市","ろう学校　佐世保分校",76204,"ろう学校　佐世保分校"]
[null,null,null,null,null,null,null,null,null,null,null,null,null,null,null,null,null,null,null,1,"公立",5,"特別支援　小学校",202,"佐世保市","佐世保養護学校",76800,"佐世保養護"]
[null,null,null,null,null,null,null,null,null,null,null,null,null,null,null,null,null,null,null,1,"公立",5,"特別支援　小学校",203,"島原市","島原養護学校",76900,"島原養護"]
[null,null,null,null,null,null,null,null,null,null,null,null,null,null,null,null,null,null,null,1,"公立",5,"特別支援　小学校",204,"諫早市","諫早養護学校",76300,"諫早養護"]
[null,null,null,null,null,null,null,null,null,null,null,null,null,null,null,null,null,null,null,1,"公立",5,"特別支援　小学校",204,"諫早市","諫早東養護学校",77000,"諫早東養護"]
[null,null,null,null,null,null,null,null,null,null,null,null,null,null,null,null,null,null,null,1,"公立",5,"特別支援　小学校",204,"諫早市","希望が丘高等養護学校",78100,"希望が丘高等養護"]
[null,null,null,null,null,null,null,null,null,null,null,null,null,null,null,null,null,null,null,1,"公立",5,"特別支援　小学校",205,"大村市","ろう学校",76200,"ろう学校"]
[null,null,null,null,null,null,null,null,null,null,null,null,null,null,null,null,null,null,null,1,"公立",5,"特別支援　小学校",205,"大村市","大村養護学校",76400,"大村養護"]
[null,null,null,null,null,null,null,null,null,null,null,null,null,null,null,null,null,null,null,1,"公立",5,"特別支援　小学校",205,"大村市","虹の原養護学校",76500,"虹の原養護"]
[null,null,null,null,null,null,null,null,null,null,null,null,null,null,null,null,null,null,null,1,"公立",5,"特別支援　小学校",205,"大村市","大村養護学校　西大村分教室",76404,"大村養護　西大村分教室"]
[null,null,null,null,null,null,null,null,null,null,null,null,null,null,null,null,null,null,null,1,"公立",5,"特別支援　小学校",210,"壱岐市","虹の原養護学校　壱岐分教室",76504,"虹の原養護　壱岐分教室"]
[null,null,null,null,null,null,null,null,null,null,null,null,null,null,null,null,null,null,null,1,"公立",5,"特別支援　小学校",211,"五島市","鶴南養護学校　五島海陽高校分教室",77204,"鶴南養護　五島海陽高校分教室"]
[null,null,null,null,null,null,null,null,null,null,null,null,null,null,null,null,null,null,null,1,"公立",5,"特別支援　小学校",213,"雲仙市","島原養護学校　南串山分教室",76904,"島原養護　南串山分教室"]
[null,null,null,null,null,null,null,null,null,null,null,null,null,null,null,null,null,null,null,1,"公立",5,"特別支援　小学校",308,"時津町","盲学校",76100,"盲学校"]
[null,null,null,null,null,null,null,null,null,null,null,null,null,null,null,null,null,null,null,1,"公立",5,"特別支援　小学校",308,"時津町","鶴南養護学校　小学部時津分教室",77205,"鶴南養護　小学部時津分教室"]
[null,null,null,null,null,null,null,null,null,null,null,null,null,null,null,null,null,null,null,1,"公立",5,"特別支援　小学校",322,"川棚町","川棚養護学校",76700,"川棚養護"]
[null,null,null,null,null,null,null,null,null,null,null,null,null,null,null,null,null,null,null,1,"公立",5,"特別支援　小学校",322,"川棚町","桜が丘養護学校",77500,"桜が丘養護"]
[null,null,null,null,null,null,null,null,null,null,null,null,null,null,null,null,null,null,null,1,"公立",6,"特別支援　中学校",201,"長崎市","長崎養護学校",77100,"長崎養護"]
[null,null,null,null,null,null,null,null,null,null,null,null,null,null,null,null,null,null,null,1,"公立",6,"特別支援　中学校",201,"長崎市","鶴南養護学校",77200,"鶴南養護"]
[null,null,null,null,null,null,null,null,null,null,null,null,null,null,null,null,null,null,null,1,"公立",6,"特別支援　中学校",202,"佐世保市","ろう学校　佐世保分校",76204,"ろう学校　佐世保分校"]
[null,null,null,null,null,null,null,null,null,null,null,null,null,null,null,null,null,null,null,1,"公立",6,"特別支援　中学校",202,"佐世保市","佐世保養護学校",76800,"佐世保養護"]
[null,null,null,null,null,null,null,null,null,null,null,null,null,null,null,null,null,null,null,1,"公立",6,"特別支援　中学校",203,"島原市","島原養護学校",76900,"島原養護"]
[null,null,null,null,null,null,null,null,null,null,null,null,null,null,null,null,null,null,null,1,"公立",6,"特別支援　中学校",204,"諫早市","諫早養護学校",76300,"諫早養護"]
[null,null,null,null,null,null,null,null,null,null,null,null,null,null,null,null,null,null,null,1,"公立",6,"特別支援　中学校",204,"諫早市","諫早東養護学校",77000,"諫早東養護"]
[null,null,null,null,null,null,null,null,null,null,null,null,null,null,null,null,null,null,null,1,"公立",6,"特別支援　中学校",204,"諫早市","希望が丘高等養護学校",78100,"希望が丘高等養護"]
[null,null,null,null,null,null,null,null,null,null,null,null,null,null,null,null,null,null,null,1,"公立",6,"特別支援　中学校",205,"大村市","ろう学校",76200,"ろう学校"]
[null,null,null,null,null,null,null,null,null,null,null,null,null,null,null,null,null,null,null,1,"公立",6,"特別支援　中学校",205,"大村市","大村養護学校",76400,"大村養護"]
[null,null,null,null,null,null,null,null,null,null,null,null,null,null,null,null,null,null,null,1,"公立",6,"特別支援　中学校",205,"大村市","虹の原養護学校",76500,"虹の原養護"]
[null,null,null,null,null,null,null,null,null,null,null,null,null,null,null,null,null,null,null,1,"公立",6,"特別支援　中学校",205,"大村市","大村養護学校　西大村分教室",76404,"大村養護　西大村分教室"]
[null,null,null,null,null,null,null,null,null,null,null,null,null,null,null,null,null,null,null,1,"公立",6,"特別支援　中学校",210,"壱岐市","虹の原養護学校　壱岐分教室",76504,"虹の原養護　壱岐分教室"]
[null,null,null,null,null,null,null,null,null,null,null,null,null,null,null,null,null,null,null,1,"公立",6,"特別支援　中学校",211,"五島市","鶴南養護学校　五島海陽高校分教室",77204,"鶴南養護　五島海陽高校分教室"]
[null,null,null,null,null,null,null,null,null,null,null,null,null,null,null,null,null,null,null,1,"公立",6,"特別支援　中学校",213,"雲仙市","島原養護学校　南串山分教室",76904,"島原養護　南串山分教室"]
[null,null,null,null,null,null,null,null,null,null,null,null,null,null,null,null,null,null,null,1,"公立",6,"特別支援　中学校",308,"時津町","盲学校",76100,"盲学校"]
[null,null,null,null,null,null,null,null,null,null,null,null,null,null,null,null,null,null,null,1,"公立",6,"特別支援　中学校",308,"時津町","鶴南養護学校　小学部時津分教室",77205,"鶴南養護　小学部時津分教室"]
[null,null,null,null,null,null,null,null,null,null,null,null,null,null,null,null,null,null,null,1,"公立",6,"特別支援　中学校",322,"川棚町","川棚養護学校",76700,"川棚養護"]
[null,null,null,null,null,null,null,null,null,null,null,null,null,null,null,null,null,null,null,1,"公立",6,"特別支援　中学校",322,"川棚町","桜が丘養護学校",77500,"桜が丘養護"]
[null,null,null,null,null,null,null,null,null,null,null,null,null,null,null,null,null,null,null,1,"公立",7,"特別支援　高等学校",201,"長崎市","長崎養護学校",77100,"長崎養護"]
[null,null,null,null,null,null,null,null,null,null,null,null,null,null,null,null,null,null,null,1,"公立",7,"特別支援　高等学校",201,"長崎市","鶴南養護学校",77200,"鶴南養護"]
[null,null,null,null,null,null,null,null,null,null,null,null,null,null,null,null,null,null,null,1,"公立",7,"特別支援　高等学校",202,"佐世保市","ろう学校　佐世保分校",76204,"ろう学校　佐世保分校"]
[null,null,null,null,null,null,null,null,null,null,null,null,null,null,null,null,null,null,null,1,"公立",7,"特別支援　高等学校",202,"佐世保市","佐世保養護学校",76800,"佐世保養護"]
[null,null,null,null,null,null,null,null,null,null,null,null,null,null,null,null,null,null,null,1,"公立",7,"特別支援　高等学校",203,"島原市","島原養護学校",76900,"島原養護"]
[null,null,null,null,null,null,null,null,null,null,null,null,null,null,null,null,null,null,null,1,"公立",7,"特別支援　高等学校",204,"諫早市","諫早養護学校",76300,"諫早養護"]
[null,null,null,null,null,null,null,null,null,null,null,null,null,null,null,null,null,null,null,1,"公立",7,"特別支援　高等学校",204,"諫早市","諫早東養護学校",77000,"諫早東養護"]
[null,null,null,null,null,null,null,null,null,null,null,null,null,null,null,null,null,null,null,1,"公立",7,"特別支援　高等学校",204,"諫早市","希望が丘高等養護学校",78100,"希望が丘高等養護"]
[null,null,null,null,null,null,null,null,null,null,null,null,null,null,null,null,null,null,null,1,"公立",7,"特別支援　高等学校",205,"大村市","ろう学校",76200,"ろう学校"]
[null,null,null,null,null,null,null,null,null,null,null,null,null,null,null,null,null,null,null,1,"公立",7,"特別支援　高等学校",205,"大村市","大村養護学校",76400,"大村養護"]
[null,null,null,null,null,null,null,null,null,null,null,null,null,null,null,null,null,null,null,1,"公立",7,"特別支援　高等学校",205,"大村市","虹の原養護学校",76500,"虹の原養護"]
[null,null,null,null,null,null,null,null,null,null,null,null,null,null,null,null,null,null,null,1,"公立",7,"特別支援　高等学校",205,"大村市","大村養護学校　西大村分教室",76404,"大村養護　西大村分教室"]
[null,null,null,null,null,null,null,null,null,null,null,null,null,null,null,null,null,null,null,1,"公立",7,"特別支援　高等学校",210,"壱岐市","虹の原養護学校　壱岐分教室",76504,"虹の原養護　壱岐分教室"]
[null,null,null,null,null,null,null,null,null,null,null,null,null,null,null,null,null,null,null,1,"公立",7,"特別支援　高等学校",211,"五島市","鶴南養護学校　五島海陽高校分教室",77204,"鶴南養護　五島海陽高校分教室"]
[null,null,null,null,null,null,null,null,null,null,null,null,null,null,null,null,null,null,null,1,"公立",7,"特別支援　高等学校",213,"雲仙市","島原養護学校　南串山分教室",76904,"島原養護　南串山分教室"]
[null,null,null,null,null,null,null,null,null,null,null,null,null,null,null,null,null,null,null,1,"公立",7,"特別支援　高等学校",308,"時津町","盲学校",76100,"盲学校"]
[null,null,null,null,null,null,null,null,null,null,null,null,null,null,null,null,null,null,null,1,"公立",7,"特別支援　高等学校",308,"時津町","鶴南養護学校　小学部時津分教室",77205,"鶴南養護　小学部時津分教室"]
[null,null,null,null,null,null,null,null,null,null,null,null,null,null,null,null,null,null,null,1,"公立",7,"特別支援　高等学校",322,"川棚町","川棚養護学校",76700,"川棚養護"]
[null,null,null,null,null,null,null,null,null,null,null,null,null,null,null,null,null,null,null,1,"公立",7,"特別支援　高等学校",322,"川棚町","桜が丘養護学校",77500,"桜が丘養護"]
[null,null,null,null,null,null,null,null,null,null,null,null,null,null,null,null,null,null,null,2,"私立",1,"小学校",201,"長崎市","聖マリア学院小学校",21010,"聖マリア学院"]
[null,null,null,null,null,null,null,null,null,null,null,null,null,null,null,null,null,null,null,2,"私立",1,"小学校",201,"長崎市","長崎南山小学校",21020,"長崎南山"]
[null,null,null,null,null,null,null,null,null,null,null,null,null,null,null,null,null,null,null,2,"私立",1,"小学校",201,"長崎市","長崎精道小学校",21030,"長崎精道"]
[null,null,null,null,null,null,null,null,null,null,null,null,null,null,null,null,null,null,null,2,"私立",1,"小学校",201,"長崎市","精道三川台小学校",21040,"精道三川台"]
[null,null,null,null,null,null,null,null,null,null,null,null,null,null,null,null,null,null,null,2,"私立",1,"小学校",202,"佐世保市","九州文化学園小学校",21140,"九州文化学園"]
[null,null,null,null,null,null,null,null,null,null,null,null,null,null,null,null,null,null,null,2,"私立",1,"小学校",204,"諫早市","聖母の騎士小学校",21050,"聖母の騎士"]
[null,null,null,null,null,null,null,null,null,null,null,null,null,null,null,null,null,null,null,2,"私立",2,"中学校",201,"長崎市","海星中学校",22010,"海星"]
[null,null,null,null,null,null,null,null,null,null,null,null,null,null,null,null,null,null,null,2,"私立",2,"中学校",201,"長崎市","長崎南山中学校",22020,"長崎南山"]
[null,null,null,null,null,null,null,null,null,null,null,null,null,null,null,null,null,null,null,2,"私立",2,"中学校",201,"長崎市","活水中学校",22030,"活水"]
[null,null,null,null,null,null,null,null,null,null,null,null,null,null,null,null,null,null,null,2,"私立",2,"中学校",201,"長崎市","聖母の騎士中学校",22050,"聖母の騎士"]
[null,null,null,null,null,null,null,null,null,null,null,null,null,null,null,null,null,null,null,2,"私立",2,"中学校",201,"長崎市","純心中学校",22060,"純心"]
[null,null,null,null,null,null,null,null,null,null,null,null,null,null,null,null,null,null,null,2,"私立",2,"中学校",201,"長崎市","聖マリア学院中学校",22070,"聖マリア学院"]
[null,null,null,null,null,null,null,null,null,null,null,null,null,null,null,null,null,null,null,2,"私立",2,"中学校",201,"長崎市","長崎精道中学校",22080,"長崎精道"]
[null,null,null,null,null,null,null,null,null,null,null,null,null,null,null,null,null,null,null,2,"私立",2,"中学校",201,"長崎市","精道三川台中学校",22090,"精道三川台"]
[null,null,null,null,null,null,null,null,null,null,null,null,null,null,null,null,null,null,null,2,"私立",2,"中学校",202,"佐世保市","聖和女子学院中学校",22100,"聖和女子学院"]
[null,null,null,null,null,null,null,null,null,null,null,null,null,null,null,null,null,null,null,2,"私立",2,"中学校",204,"諫早市","創成館中学校",22110,"創成館"]
[null,null,null,null,null,null,null,null,null,null,null,null,null,null,null,null,null,null,null,2,"私立",2,"中学校",204,"諫早市","長崎日本大学中学校",22120,"長崎日本大学"]
[null,null,null,null,null,null,null,null,null,null,null,null,null,null,null,null,null,null,null,2,"私立",2,"中学校",204,"諫早市","青雲中学校",22130,"青雲"]
[null,null,null,null,null,null,null,null,null,null,null,null,null,null,null,null,null,null,null,2,"私立",2,"中学校",308,"時津町","椿原中学校",22140,"椿原"]
[null,null,null,null,null,null,null,null,null,null,null,null,null,null,null,null,null,null,null,2,"私立",3,"高等学校　全日制",201,"長崎市","海星高等学校",23010,"海星"]
[null,null,null,null,null,null,null,null,null,null,null,null,null,null,null,null,null,null,null,2,"私立",3,"高等学校　全日制",201,"長崎市","長崎南山高等学校",23020,"長崎南山"]
[null,null,null,null,null,null,null,null,null,null,null,null,null,null,null,null,null,null,null,2,"私立",3,"高等学校　全日制",201,"長崎市","活水高等学校",23030,"活水"]
[null,null,null,null,null,null,null,null,null,null,null,null,null,null,null,null,null,null,null,2,"私立",3,"高等学校　全日制",201,"長崎市","長崎女子高等学校",23040,"長崎女子"]
[null,null,null,null,null,null,null,null,null,null,null,null,null,null,null,null,null,null,null,2,"私立",3,"高等学校　全日制",201,"長崎市","玉成女子高等学校",23050,"玉成女子"]
[null,null,null,null,null,null,null,null,null,null,null,null,null,null,null,null,null,null,null,2,"私立",3,"高等学校　全日制",201,"長崎市","長崎女子商業高等学校",23060,"長崎女子商業"]
[null,null,null,null,null,null,null,null,null,null,null,null,null,null,null,null,null,null,null,2,"私立",3,"高等学校　全日制",201,"長崎市","聖母の騎士高等学校",23070,"聖母の騎士"]
[null,null,null,null,null,null,null,null,null,null,null,null,null,null,null,null,null,null,null,2,"私立",3,"高等学校　全日制",201,"長崎市","瓊浦高等学校",23080,"瓊浦"]
[null,null,null,null,null,null,null,null,null,null,null,null,null,null,null,null,null,null,null,2,"私立",3,"高等学校　全日制",201,"長崎市","純心女子高等学校",23090,"純心女子"]
[null,null,null,null,null,null,null,null,null,null,null,null,null,null,null,null,null,null,null,2,"私立",3,"高等学校　全日制",201,"長崎市","長崎総合科学大附属高等学校",23100,"長崎総合科学大附属"]
[null,null,null,null,null,null,null,null,null,null,null,null,null,null,null,null,null,null,null,2,"私立",3,"高等学校　全日制",202,"佐世保市","西海学園高等学校",23110,"西海学園"]
[null,null,null,null,null,null,null,null,null,null,null,null,null,null,null,null,null,null,null,2,"私立",3,"高等学校　全日制",202,"佐世保市","聖和女子学院高等学校",23120,"聖和女子学院"]
[null,null,null,null,null,null,null,null,null,null,null,null,null,null,null,null,null,null,null,2,"私立",3,"高等学校　全日制",202,"佐世保市","九州文化学園高等学校",23130,"九州文化学園"]
[null,null,null,null,null,null,null,null,null,null,null,null,null,null,null,null,null,null,null,2,"私立",3,"高等学校　全日制",202,"佐世保市","久田学園佐世保女子高等学校",23140,"久田学園佐世保女子"]
[null,null,null,null,null,null,null,null,null,null,null,null,null,null,null,null,null,null,null,2,"私立",3,"高等学校　全日制",202,"佐世保市","佐世保実業高等学校",23150,"佐世保実業"]
[null,null,null,null,null,null,null,null,null,null,null,null,null,null,null,null,null,null,null,2,"私立",3,"高等学校　全日制",203,"島原市","島原中央高等学校",23160,"島原中央"]
[null,null,null,null,null,null,null,null,null,null,null,null,null,null,null,null,null,null,null,2,"私立",3,"高等学校　全日制",204,"諫早市","創成館高等学校",23170,"創成館"]
[null,null,null,null,null,null,null,null,null,null,null,null,null,null,null,null,null,null,null,2,"私立",3,"高等学校　全日制",204,"諫早市","鎮西学院高等学校",23180,"鎮西学院"]
[null,null,null,null,null,null,null,null,null,null,null,null,null,null,null,null,null,null,null,2,"私立",3,"高等学校　全日制",204,"諫早市","長崎日本大学高等学校",23190,"長崎日本大学"]
[null,null,null,null,null,null,null,null,null,null,null,null,null,null,null,null,null,null,null,2,"私立",3,"高等学校　全日制",205,"大村市","向陽高等学校",23200,"向陽"]
[null,null,null,null,null,null,null,null,null,null,null,null,null,null,null,null,null,null,null,2,"私立",3,"高等学校　全日制",308,"時津町","青雲高等学校",23210,"青雲"]
[null,null,null,null,null,null,null,null,null,null,null,null,null,null,null,null,null,null,null,3,"国立",1,"小学校",201,"長崎市","長崎大学附属小学校",38080,"長崎大学附属"]
[null,null,null,null,null,null,null,null,null,null,null,null,null,null,null,null,null,null,null,3,"国立",2,"中学校",201,"長崎市","長崎大学附属中学校",38050,"長崎大学附属"]
[null,null,null,null,null,null,null,null,null,null,null,null,null,null,null,null,null,null,null,3,"国立",5,"特別支援　小学校",201,"長崎市","長崎大学附属養護学校",39940,"長崎大学附属　養護"]
[null,null,null,null,null,null,null,null,null,null,null,null,null,null,null,null,null,null,null,3,"国立",6,"特別支援　中学校",201,"長崎市","長崎大学附属養護学校",39940,"長崎大学附属　養護"]
[null,null,null,null,null,null,null,null,null,null,null,null,null,null,null,null,null,null,null,3,"国立",7,"特別支援　高等学校",201,"長崎市","長崎大学附属養護学校",39940,"長崎大学附属　養護"]

{"sheet":"ken","index":3,"n_rows":16,"n_cols":48,"rows_kept":16,"cut":false,"hidden":false,"merged":[[0,0,0,2],[1,0,1,2],[2,21,2,23],[2,36,2,44],[2,6,2,8],[2,9,2,11],[2,12,2,14],[2,15,2,17],[2,18,2,20],[2,33,2,35],[2,24,2,26],[2,27,2,29],[2,30,2,32]]}
["令和４年度版",null,null,null,"参照（例：T_長崎県データ集計、　2022_physical_consider_pref_nagasaki.xls　　[ken]シート）"]
["県平均（R０４年度）"]
[null,null,null,null,null,null,"握力",null,null,"上体",null,null,"長座",null,null,"反復",null,null,"持久走",null,null,"シャ",null,null,"50m",null,null,"立幅",null,null,"ソフ",null,null,"全体",null,null,"得点"]
["校種","校種名称","性別番号","性別","学年","学齢","標本数","平均値","標準偏差","標本数","平均値","標準偏差","標本数","平均値","標準偏差","標本数","平均値","標準偏差","標本数","平均値","標準偏差","標本数","平均値","標準偏差","標本数","平均値","標準偏差","標本数","平均値","標準偏差","標本数","平均値","標準偏差","標本数","平均値","標準偏差","握力","上体","長座","反復","持久","シャ","50m","立幅","ソフ","計"]
[1,"小学校",1,"男子",1,6,null,null,null,null,null,null,null,null,null,null,null,null,null,null,null,null,null,null,null,null,null,null,null,null,null,null,null,null,null,null,4,4,4,4,null,4,3,3,3,29,1,11]
[1,"小学校",1,"男子",2,7,null,null,null,null,null,null,null,null,null,null,null,null,null,null,null,null,null,null,null,null,null,null,null,null,null,null,null,null,null,null,4,5,4,5,null,5,4,4,4,35,2,21]
[1,"小学校",1,"男子",3,8,null,null,null,null,null,null,null,null,null,null,null,null,null,null,null,null,null,null,null,null,null,null,null,null,null,null,null,null,null,null,5,6,5,6,null,6,5,5,5,43,3,31]
[1,"小学校",1,"男子",4,9,5417,13.67,3.14,5439,16.399999999999999,5.79,5434,30.03,7.59,5402,35.44,7.7,0,0,0,5281,38.1,18.91,5394,9.83,1.03,5402,143.71,19.940000000000001,5330,18.25,7.07,4841,46.29,8.48,6,6,5,7,null,7,6,6,6,49,4,41]
[1,"小学校",1,"男子",5,10,5575,15.79,3.78,5547,18.12,5.94,5530,31.61,8.06,5521,39.64,7.67,0,0,0,5406,46.93,20.83,5523,9.48,1.03,5533,150.44999999999999,21.5,5462,21.45,8.06,5046,51.47,9.11,6,7,6,8,null,7,7,6,7,54,5,51]
[1,"小学校",1,"男子",6,11,5621,18.670000000000002,4.7699999999999996,5580,20.09,5.49,5575,33.51,8.02,5555,42.79,7.52,0,0,0,5395,56.07,22.35,5583,9.0299999999999994,0.98,5540,162.04,22.76,5490,25.13,9.19,4963,57.35,9.32,7,8,6,8,null,8,7,7,7,58,6,61]
[1,"小学校",2,"女子",1,6,null,null,null,null,null,null,null,null,null,null,null,null,null,null,null,null,null,null,null,null,null,null,null,null,null,null,null,null,null,null,3,4,4,4,null,4,3,3,3,28,1,12]
[1,"小学校",2,"女子",2,7,null,null,null,null,null,null,null,null,null,null,null,null,null,null,null,null,null,null,null,null,null,null,null,null,null,null,null,null,null,null,4,5,4,5,null,5,4,4,4,35,2,22]
[1,"小学校",2,"女子",3,8,null,null,null,null,null,null,null,null,null,null,null,null,null,null,null,null,null,null,null,null,null,null,null,null,null,null,null,null,null,null,5,6,5,6,null,6,5,5,5,43,3,32]
[1,"小学校",2,"女子",4,9,5207,13.17,3.12,5204,15.67,5.25,5215,33.54,7.8,5193,33.64,7.21,0,0,0,5056,30.68,14.79,5181,10.1,0.94,5152,135.02000000000001,19.25,5104,11.49,4.37,4701,47.2,8.4600000000000009,6,7,5,7,null,7,6,6,6,50,4,42]
[1,"小学校",2,"女子",5,10,5442,15.67,3.86,5417,17.39,5.09,5419,35.92,8.24,5409,38.29,7.13,0,0,0,5327,38.950000000000003,16.95,5369,9.67,0.9,5400,143.97,20.190000000000001,5317,13.93,5.29,5007,53.71,8.81,6,8,6,8,null,8,7,6,7,56,5,52]
[1,"小学校",2,"女子",6,11,5407,18.23,4.25,5363,18.420000000000002,5.04,5379,38.04,8.34,5361,40.76,6.94,0,0,0,5255,44.11,18.36,5365,9.34,0.87,5351,151.72999999999999,21.48,5264,15.79,6.09,4901,58.37,9,7,8,7,8,null,8,7,7,7,59,6,62]

{"sheet":"kenkijun","index":4,"n_rows":30,"n_cols":13,"rows_kept":30,"cut":false,"hidden":false,"merged":[]}
["県平均値からの入力基準値",null,null,null,{"$f":"ken!A1","v":"令和４年度版"},null,null,null,null,null,null,null,"偏差"]
[null,"男子",null,null,null,null,null,null,null,null,null,null,"倍率"]
["学年","握力","上体","長座","反復","持久走","シャ","50m","立幅","ソフ","全体","最高",1.7]
[1,{"$f":"IF((ken!H5+ken!I5*$M$3)<0,0,ken!H5+ken!I5*$M$3)","v":0},{"$f":"IF((ken!K5+ken!L5*$M$3)<0,0,ken!K5+ken!L5*$M$3)","v":0},{"$f":"IF((ken!N5+ken!O5*$M$3)<0,0,ken!N5+ken!O5*$M$3)","v":0},{"$f":"IF((ken!Q5+ken!R5*$M$3)<0,0,ken!Q5+ken!R5*$M$3)","v":0},null,{"$f":"IF((ken!W5+ken!X5*$M$3)<0,0,ken!W5+ken!X5*$M$3)","v":0},{"$f":"IF((ken!Z5-ken!AA5*$M$3)<0,0,ken!Z5-ken!AA5*$M$3)","v":0},{"$f":"IF((ken!AC5+ken!AD5*$M$3)<0,0,ken!AC5+ken!AD5*$M$3)","v":0},{"$f":"IF((ken!AF5+ken!AG5*$M$3)<0,0,ken!AF5+ken!AG5*$M$3)","v":0},{"$f":"IF((ken!AI5+ken!AJ5*$M$3)<0,0,ken!AI5+ken!AJ5*$M$3)","v":0}]
[2,{"$f":"IF((ken!H6+ken!I6*$M$3)<0,0,ken!H6+ken!I6*$M$3)","v":0},{"$f":"IF((ken!K6+ken!L6*$M$3)<0,0,ken!K6+ken!L6*$M$3)","v":0},{"$f":"IF((ken!N6+ken!O6*$M$3)<0,0,ken!N6+ken!O6*$M$3)","v":0},{"$f":"IF((ken!Q6+ken!R6*$M$3)<0,0,ken!Q6+ken!R6*$M$3)","v":0},null,{"$f":"IF((ken!W6+ken!X6*$M$3)<0,0,ken!W6+ken!X6*$M$3)","v":0},{"$f":"IF((ken!Z6-ken!AA6*$M$3)<0,0,ken!Z6-ken!AA6*$M$3)","v":0},{"$f":"IF((ken!AC6+ken!AD6*$M$3)<0,0,ken!AC6+ken!AD6*$M$3)","v":0},{"$f":"IF((ken!AF6+ken!AG6*$M$3)<0,0,ken!AF6+ken!AG6*$M$3)","v":0},{"$f":"IF((ken!AI6+ken!AJ6*$M$3)<0,0,ken!AI6+ken!AJ6*$M$3)","v":0}]
[3,{"$f":"IF((ken!H7+ken!I7*$M$3)<0,0,ken!H7+ken!I7*$M$3)","v":0},{"$f":"IF((ken!K7+ken!L7*$M$3)<0,0,ken!K7+ken!L7*$M$3)","v":0},{"$f":"IF((ken!N7+ken!O7*$M$3)<0,0,ken!N7+ken!O7*$M$3)","v":0},{"$f":"IF((ken!Q7+ken!R7*$M$3)<0,0,ken!Q7+ken!R7*$M$3)","v":0},null,{"$f":"IF((ken!W7+ken!X7*$M$3)<0,0,ken!W7+ken!X7*$M$3)","v":0},{"$f":"IF((ken!Z7-ken!AA7*$M$3)<0,0,ken!Z7-ken!AA7*$M$3)","v":0},{"$f":"IF((ken!AC7+ken!AD7*$M$3)<0,0,ken!AC7+ken!AD7*$M$3)","v":0},{"$f":"IF((ken!AF7+ken!AG7*$M$3)<0,0,ken!AF7+ken!AG7*$M$3)","v":0},{"$f":"IF((ken!AI7+ken!AJ7*$M$3)<0,0,ken!AI7+ken!AJ7*$M$3)","v":0}]
[4,{"$f":"IF((ken!H8+ken!I8*$M$3)<0,0,ken!H8+ken!I8*$M$3)","v":19.007999999999999},{"$f":"IF((ken!K8+ken!L8*$M$3)<0,0,ken!K8+ken!L8*$M$3)","v":26.242999999999999},{"$f":"IF((ken!N8+ken!O8*$M$3)<0,0,ken!N8+ken!O8*$M$3)","v":42.933},{"$f":"IF((ken!Q8+ken!R8*$M$3)<0,0,ken!Q8+ken!R8*$M$3)","v":48.53},null,{"$f":"IF((ken!W8+ken!X8*$M$3)<0,0,ken!W8+ken!X8*$M$3)","v":70.247},{"$f":"IF((ken!Z8-ken!AA8*$M$3)<0,0,ken!Z8-ken!AA8*$M$3)","v":8.0790000000000006},{"$f":"IF((ken!AC8+ken!AD8*$M$3)<0,0,ken!AC8+ken!AD8*$M$3)","v":177.608},{"$f":"IF((ken!AF8+ken!AG8*$M$3)<0,0,ken!AF8+ken!AG8*$M$3)","v":30.268999999999998},{"$f":"IF((ken!AI8+ken!AJ8*$M$3)<0,0,ken!AI8+ken!AJ8*$M$3)","v":60.706000000000003}]
[5,{"$f":"IF((ken!H9+ken!I9*$M$3)<0,0,ken!H9+ken!I9*$M$3)","v":22.215999999999998},{"$f":"IF((ken!K9+ken!L9*$M$3)<0,0,ken!K9+ken!L9*$M$3)","v":28.218000000000004},{"$f":"IF((ken!N9+ken!O9*$M$3)<0,0,ken!N9+ken!O9*$M$3)","v":45.311999999999998},{"$f":"IF((ken!Q9+ken!R9*$M$3)<0,0,ken!Q9+ken!R9*$M$3)","v":52.679000000000002},null,{"$f":"IF((ken!W9+ken!X9*$M$3)<0,0,ken!W9+ken!X9*$M$3)","v":82.340999999999994},{"$f":"IF((ken!Z9-ken!AA9*$M$3)<0,0,ken!Z9-ken!AA9*$M$3)","v":7.729000000000001},{"$f":"IF((ken!AC9+ken!AD9*$M$3)<0,0,ken!AC9+ken!AD9*$M$3)","v":187},{"$f":"IF((ken!AF9+ken!AG9*$M$3)<0,0,ken!AF9+ken!AG9*$M$3)","v":35.152000000000001},{"$f":"IF((ken!AI9+ken!AJ9*$M$3)<0,0,ken!AI9+ken!AJ9*$M$3)","v":66.956999999999994},null,"偏差"]
[6,{"$f":"IF((ken!H10+ken!I10*$M$3)<0,0,ken!H10+ken!I10*$M$3)","v":26.779},{"$f":"IF((ken!K10+ken!L10*$M$3)<0,0,ken!K10+ken!L10*$M$3)","v":29.423000000000002},{"$f":"IF((ken!N10+ken!O10*$M$3)<0,0,ken!N10+ken!O10*$M$3)","v":47.143999999999998},{"$f":"IF((ken!Q10+ken!R10*$M$3)<0,0,ken!Q10+ken!R10*$M$3)","v":55.573999999999998},null,{"$f":"IF((ken!W10+ken!X10*$M$3)<0,0,ken!W10+ken!X10*$M$3)","v":94.064999999999998},{"$f":"IF((ken!Z10-ken!AA10*$M$3)<0,0,ken!Z10-ken!AA10*$M$3)","v":7.363999999999999},{"$f":"IF((ken!AC10+ken!AD10*$M$3)<0,0,ken!AC10+ken!AD10*$M$3)","v":200.732},{"$f":"IF((ken!AF10+ken!AG10*$M$3)<0,0,ken!AF10+ken!AG10*$M$3)","v":40.753},{"$f":"IF((ken!AI10+ken!AJ10*$M$3)<0,0,ken!AI10+ken!AJ10*$M$3)","v":73.194000000000003},null,"倍率"]
[1,{"$f":"IF((ken!H5-ken!I5*$M$10)<0,0,ken!H5-ken!I5*$M$10)","v":0},{"$f":"IF((ken!K5-ken!L5*$M$10)<0,0,ken!K5-ken!L5*$M$10)","v":0},{"$f":"IF((ken!N5-ken!O5*$M$10)<0,0,ken!N5-ken!O5*$M$10)","v":0},{"$f":"IF((ken!Q5-ken!R5*$M$10)<0,0,ken!Q5-ken!R5*$M$10)","v":0},null,{"$f":"IF((ken!W5-ken!X5*$M$10)<0,0,ken!W5-ken!X5*$M$10)","v":0},{"$f":"IF((ken!Z5+ken!AA5*$M$10)<0,0,ken!Z5+ken!AA5*$M$10)","v":0},{"$f":"IF((ken!AC5-ken!AD5*$M$10)<0,0,ken!AC5-ken!AD5*$M$10)","v":0},{"$f":"IF((ken!AF5-ken!AG5*$M$10)<0,0,ken!AF5-ken!AG5*$M$10)","v":0},{"$f":"IF((ken!AI5-ken!AJ5*$M$10)<0,0,ken!AI5-ken!AJ5*$M$10)","v":0},"最低",2]
[2,{"$f":"IF((ken!H6-ken!I6*$M$10)<0,0,ken!H6-ken!I6*$M$10)","v":0},{"$f":"IF((ken!K6-ken!L6*$M$10)<0,0,ken!K6-ken!L6*$M$10)","v":0},{"$f":"IF((ken!N6-ken!O6*$M$10)<0,0,ken!N6-ken!O6*$M$10)","v":0},{"$f":"IF((ken!Q6-ken!R6*$M$10)<0,0,ken!Q6-ken!R6*$M$10)","v":0},null,{"$f":"IF((ken!W6-ken!X6*$M$10)<0,0,ken!W6-ken!X6*$M$10)","v":0},{"$f":"IF((ken!Z6+ken!AA6*$M$10)<0,0,ken!Z6+ken!AA6*$M$10)","v":0},{"$f":"IF((ken!AC6-ken!AD6*$M$10)<0,0,ken!AC6-ken!AD6*$M$10)","v":0},{"$f":"IF((ken!AF6-ken!AG6*$M$10)<0,0,ken!AF6-ken!AG6*$M$10)","v":0},{"$f":"IF((ken!AI6-ken!AJ6*$M$10)<0,0,ken!AI6-ken!AJ6*$M$10)","v":0}]
[3,{"$f":"IF((ken!H7-ken!I7*$M$10)<0,0,ken!H7-ken!I7*$M$10)","v":0},{"$f":"IF((ken!K7-ken!L7*$M$10)<0,0,ken!K7-ken!L7*$M$10)","v":0},{"$f":"IF((ken!N7-ken!O7*$M$10)<0,0,ken!N7-ken!O7*$M$10)","v":0},{"$f":"IF((ken!Q7-ken!R7*$M$10)<0,0,ken!Q7-ken!R7*$M$10)","v":0},null,{"$f":"IF((ken!W7-ken!X7*$M$10)<0,0,ken!W7-ken!X7*$M$10)","v":0},{"$f":"IF((ken!Z7+ken!AA7*$M$10)<0,0,ken!Z7+ken!AA7*$M$10)","v":0},{"$f":"IF((ken!AC7-ken!AD7*$M$10)<0,0,ken!AC7-ken!AD7*$M$10)","v":0},{"$f":"IF((ken!AF7-ken!AG7*$M$10)<0,0,ken!AF7-ken!AG7*$M$10)","v":0},{"$f":"IF((ken!AI7-ken!AJ7*$M$10)<0,0,ken!AI7-ken!AJ7*$M$10)","v":0}]
[4,{"$f":"IF((ken!H8-ken!I8*$M$10)<0,0,ken!H8-ken!I8*$M$10)","v":7.39},{"$f":"IF((ken!K8-ken!L8*$M$10)<0,0,ken!K8-ken!L8*$M$10)","v":4.8199999999999985},{"$f":"IF((ken!N8-ken!O8*$M$10)<0,0,ken!N8-ken!O8*$M$10)","v":14.850000000000001},{"$f":"IF((ken!Q8-ken!R8*$M$10)<0,0,ken!Q8-ken!R8*$M$10)","v":20.04},null,{"$f":"IF((ken!W8-ken!X8*$M$10)<0,0,ken!W8-ken!X8*$M$10)","v":0.28000000000000114},{"$f":"IF((ken!Z8+ken!AA8*$M$10)<0,0,ken!Z8+ken!AA8*$M$10)","v":11.89},{"$f":"IF((ken!AC8-ken!AD8*$M$10)<0,0,ken!AC8-ken!AD8*$M$10)","v":103.83000000000001},{"$f":"IF((ken!AF8-ken!AG8*$M$10)<0,0,ken!AF8-ken!AG8*$M$10)","v":4.1099999999999994},{"$f":"IF((ken!AI8-ken!AJ8*$M$10)<0,0,ken!AI8-ken!AJ8*$M$10)","v":29.33}]
[5,{"$f":"IF((ken!H9-ken!I9*$M$10)<0,0,ken!H9-ken!I9*$M$10)","v":8.23},{"$f":"IF((ken!K9-ken!L9*$M$10)<0,0,ken!K9-ken!L9*$M$10)","v":6.24},{"$f":"IF((ken!N9-ken!O9*$M$10)<0,0,ken!N9-ken!O9*$M$10)","v":15.489999999999998},{"$f":"IF((ken!Q9-ken!R9*$M$10)<0,0,ken!Q9-ken!R9*$M$10)","v":24.3},null,{"$f":"IF((ken!W9-ken!X9*$M$10)<0,0,ken!W9-ken!X9*$M$10)","v":5.2700000000000031},{"$f":"IF((ken!Z9+ken!AA9*$M$10)<0,0,ken!Z9+ken!AA9*$M$10)","v":11.540000000000001},{"$f":"IF((ken!AC9-ken!AD9*$M$10)<0,0,ken!AC9-ken!AD9*$M$10)","v":107.44999999999999},{"$f":"IF((ken!AF9-ken!AG9*$M$10)<0,0,ken!AF9-ken!AG9*$M$10)","v":5.3299999999999983},{"$f":"IF((ken!AI9-ken!AJ9*$M$10)<0,0,ken!AI9-ken!AJ9*$M$10)","v":33.25}]
[6,{"$f":"IF((ken!H10-ken!I10*$M$10)<0,0,ken!H10-ken!I10*$M$10)","v":9.1300000000000026},{"$f":"IF((ken!K10-ken!L10*$M$10)<0,0,ken!K10-ken!L10*$M$10)","v":9.11},{"$f":"IF((ken!N10-ken!O10*$M$10)<0,0,ken!N10-ken!O10*$M$10)","v":17.47},{"$f":"IF((ken!Q10-ken!R10*$M$10)<0,0,ken!Q10-ken!R10*$M$10)","v":27.75},null,{"$f":"IF((ken!W10-ken!X10*$M$10)<0,0,ken!W10-ken!X10*$M$10)","v":11.369999999999997},{"$f":"IF((ken!Z10+ken!AA10*$M$10)<0,0,ken!Z10+ken!AA10*$M$10)","v":10.989999999999998},{"$f":"IF((ken!AC10-ken!AD10*$M$10)<0,0,ken!AC10-ken!AD10*$M$10)","v":116.51999999999998},{"$f":"IF((ken!AF10-ken!AG10*$M$10)<0,0,ken!AF10-ken!AG10*$M$10)","v":6.75},{"$f":"IF((ken!AI10-ken!AJ10*$M$10)<0,0,ken!AI10-ken!AJ10*$M$10)","v":38.71}]
[1,2,3,4,5,6,7,8,9,10,11,null,"偏差"]
[null,"女子",null,null,null,null,null,null,null,null,null,null,"倍率"]
["学年","握力","上体","長座","反復","持久走","シャ","50m","立幅","ソフ","全体","最高",1.7]
[1,{"$f":"IF((ken!H11+ken!I11*$M$3)<0,0,ken!H11+ken!I11*$M$3)","v":0},{"$f":"IF((ken!K11+ken!L11*$M$3)<0,0,ken!K11+ken!L11*$M$3)","v":0},{"$f":"IF((ken!N11+ken!O11*$M$3)<0,0,ken!N11+ken!O11*$M$3)","v":0},{"$f":"IF((ken!Q11+ken!R11*$M$3)<0,0,ken!Q11+ken!R11*$M$3)","v":0},null,{"$f":"IF((ken!W11+ken!X11*$M$3)<0,0,ken!W11+ken!X11*$M$3)","v":0},{"$f":"IF((ken!Z11-ken!AA11*$M$3)<0,0,ken!Z11-ken!AA11*$M$3)","v":0},{"$f":"IF((ken!AC11+ken!AD11*$M$3)<0,0,ken!AC11+ken!AD11*$M$3)","v":0},{"$f":"IF((ken!AF11+ken!AG11*$M$3)<0,0,ken!AF11+ken!AG11*$M$3)","v":0},{"$f":"IF((ken!AI11+ken!AJ11*$M$3)<0,0,ken!AI11+ken!AJ11*$M$3)","v":0}]
[2,{"$f":"IF((ken!H12+ken!I12*$M$3)<0,0,ken!H12+ken!I12*$M$3)","v":0},{"$f":"IF((ken!K12+ken!L12*$M$3)<0,0,ken!K12+ken!L12*$M$3)","v":0},{"$f":"IF((ken!N12+ken!O12*$M$3)<0,0,ken!N12+ken!O12*$M$3)","v":0},{"$f":"IF((ken!Q12+ken!R12*$M$3)<0,0,ken!Q12+ken!R12*$M$3)","v":0},null,{"$f":"IF((ken!W12+ken!X12*$M$3)<0,0,ken!W12+ken!X12*$M$3)","v":0},{"$f":"IF((ken!Z12-ken!AA12*$M$3)<0,0,ken!Z12-ken!AA12*$M$3)","v":0},{"$f":"IF((ken!AC12+ken!AD12*$M$3)<0,0,ken!AC12+ken!AD12*$M$3)","v":0},{"$f":"IF((ken!AF12+ken!AG12*$M$3)<0,0,ken!AF12+ken!AG12*$M$3)","v":0},{"$f":"IF((ken!AI12+ken!AJ12*$M$3)<0,0,ken!AI12+ken!AJ12*$M$3)","v":0}]
[3,{"$f":"IF((ken!H13+ken!I13*$M$3)<0,0,ken!H13+ken!I13*$M$3)","v":0},{"$f":"IF((ken!K13+ken!L13*$M$3)<0,0,ken!K13+ken!L13*$M$3)","v":0},{"$f":"IF((ken!N13+ken!O13*$M$3)<0,0,ken!N13+ken!O13*$M$3)","v":0},{"$f":"IF((ken!Q13+ken!R13*$M$3)<0,0,ken!Q13+ken!R13*$M$3)","v":0},null,{"$f":"IF((ken!W13+ken!X13*$M$3)<0,0,ken!W13+ken!X13*$M$3)","v":0},{"$f":"IF((ken!Z13-ken!AA13*$M$3)<0,0,ken!Z13-ken!AA13*$M$3)","v":0},{"$f":"IF((ken!AC13+ken!AD13*$M$3)<0,0,ken!AC13+ken!AD13*$M$3)","v":0},{"$f":"IF((ken!AF13+ken!AG13*$M$3)<0,0,ken!AF13+ken!AG13*$M$3)","v":0},{"$f":"IF((ken!AI13+ken!AJ13*$M$3)<0,0,ken!AI13+ken!AJ13*$M$3)","v":0}]
[4,{"$f":"IF((ken!H14+ken!I14*$M$3)<0,0,ken!H14+ken!I14*$M$3)","v":18.474},{"$f":"IF((ken!K14+ken!L14*$M$3)<0,0,ken!K14+ken!L14*$M$3)","v":24.594999999999999},{"$f":"IF((ken!N14+ken!O14*$M$3)<0,0,ken!N14+ken!O14*$M$3)","v":46.8},{"$f":"IF((ken!Q14+ken!R14*$M$3)<0,0,ken!Q14+ken!R14*$M$3)","v":45.896999999999998},null,{"$f":"IF((ken!W14+ken!X14*$M$3)<0,0,ken!W14+ken!X14*$M$3)","v":55.822999999999993},{"$f":"IF((ken!Z14-ken!AA14*$M$3)<0,0,ken!Z14-ken!AA14*$M$3)","v":8.5019999999999989},{"$f":"IF((ken!AC14+ken!AD14*$M$3)<0,0,ken!AC14+ken!AD14*$M$3)","v":167.745},{"$f":"IF((ken!AF14+ken!AG14*$M$3)<0,0,ken!AF14+ken!AG14*$M$3)","v":18.919},{"$f":"IF((ken!AI14+ken!AJ14*$M$3)<0,0,ken!AI14+ken!AJ14*$M$3)","v":61.582000000000008}]
[5,{"$f":"IF((ken!H15+ken!I15*$M$3)<0,0,ken!H15+ken!I15*$M$3)","v":22.231999999999999},{"$f":"IF((ken!K15+ken!L15*$M$3)<0,0,ken!K15+ken!L15*$M$3)","v":26.042999999999999},{"$f":"IF((ken!N15+ken!O15*$M$3)<0,0,ken!N15+ken!O15*$M$3)","v":49.927999999999997},{"$f":"IF((ken!Q15+ken!R15*$M$3)<0,0,ken!Q15+ken!R15*$M$3)","v":50.411000000000001},null,{"$f":"IF((ken!W15+ken!X15*$M$3)<0,0,ken!W15+ken!X15*$M$3)","v":67.765000000000001},{"$f":"IF((ken!Z15-ken!AA15*$M$3)<0,0,ken!Z15-ken!AA15*$M$3)","v":8.14},{"$f":"IF((ken!AC15+ken!AD15*$M$3)<0,0,ken!AC15+ken!AD15*$M$3)","v":178.29300000000001},{"$f":"IF((ken!AF15+ken!AG15*$M$3)<0,0,ken!AF15+ken!AG15*$M$3)","v":22.923000000000002},{"$f":"IF((ken!AI15+ken!AJ15*$M$3)<0,0,ken!AI15+ken!AJ15*$M$3)","v":68.686999999999998},null,"偏差"]
[6,{"$f":"IF((ken!H16+ken!I16*$M$3)<0,0,ken!H16+ken!I16*$M$3)","v":25.454999999999998},{"$f":"IF((ken!K16+ken!L16*$M$3)<0,0,ken!K16+ken!L16*$M$3)","v":26.988},{"$f":"IF((ken!N16+ken!O16*$M$3)<0,0,ken!N16+ken!O16*$M$3)","v":52.217999999999996},{"$f":"IF((ken!Q16+ken!R16*$M$3)<0,0,ken!Q16+ken!R16*$M$3)","v":52.558},null,{"$f":"IF((ken!W16+ken!X16*$M$3)<0,0,ken!W16+ken!X16*$M$3)","v":75.322000000000003},{"$f":"IF((ken!Z16-ken!AA16*$M$3)<0,0,ken!Z16-ken!AA16*$M$3)","v":7.8609999999999998},{"$f":"IF((ken!AC16+ken!AD16*$M$3)<0,0,ken!AC16+ken!AD16*$M$3)","v":188.24599999999998},{"$f":"IF((ken!AF16+ken!AG16*$M$3)<0,0,ken!AF16+ken!AG16*$M$3)","v":26.143000000000001},{"$f":"IF((ken!AI16+ken!AJ16*$M$3)<0,0,ken!AI16+ken!AJ16*$M$3)","v":73.67},null,"倍率"]
[1,{"$f":"IF((ken!H11-ken!I11*$M$10)<0,0,ken!H11-ken!I11*$M$10)","v":0},{"$f":"IF((ken!K11-ken!L11*$M$10)<0,0,ken!K11-ken!L11*$M$10)","v":0},{"$f":"IF((ken!N11-ken!O11*$M$10)<0,0,ken!N11-ken!O11*$M$10)","v":0},{"$f":"IF((ken!Q11-ken!R11*$M$10)<0,0,ken!Q11-ken!R11*$M$10)","v":0},null,{"$f":"IF((ken!W11-ken!X11*$M$10)<0,0,ken!W11-ken!X11*$M$10)","v":0},{"$f":"IF((ken!Z11+ken!AA11*$M$10)<0,0,ken!Z11+ken!AA11*$M$10)","v":0},{"$f":"IF((ken!AC11-ken!AD11*$M$10)<0,0,ken!AC11-ken!AD11*$M$10)","v":0},{"$f":"IF((ken!AF11-ken!AG11*$M$10)<0,0,ken!AF11-ken!AG11*$M$10)","v":0},{"$f":"IF((ken!AI11-ken!AJ11*$M$10)<0,0,ken!AI11-ken!AJ11*$M$10)","v":0},"最低",2]
[2,{"$f":"IF((ken!H12-ken!I12*$M$10)<0,0,ken!H12-ken!I12*$M$10)","v":0},{"$f":"IF((ken!K12-ken!L12*$M$10)<0,0,ken!K12-ken!L12*$M$10)","v":0},{"$f":"IF((ken!N12-ken!O12*$M$10)<0,0,ken!N12-ken!O12*$M$10)","v":0},{"$f":"IF((ken!Q12-ken!R12*$M$10)<0,0,ken!Q12-ken!R12*$M$10)","v":0},null,{"$f":"IF((ken!W12-ken!X12*$M$10)<0,0,ken!W12-ken!X12*$M$10)","v":0},{"$f":"IF((ken!Z12+ken!AA12*$M$10)<0,0,ken!Z12+ken!AA12*$M$10)","v":0},{"$f":"IF((ken!AC12-ken!AD12*$M$10)<0,0,ken!AC12-ken!AD12*$M$10)","v":0},{"$f":"IF((ken!AF12-ken!AG12*$M$10)<0,0,ken!AF12-ken!AG12*$M$10)","v":0},{"$f":"IF((ken!AI12-ken!AJ12*$M$10)<0,0,ken!AI12-ken!AJ12*$M$10)","v":0}]
[3,{"$f":"IF((ken!H13-ken!I13*$M$10)<0,0,ken!H13-ken!I13*$M$10)","v":0},{"$f":"IF((ken!K13-ken!L13*$M$10)<0,0,ken!K13-ken!L13*$M$10)","v":0},{"$f":"IF((ken!N13-ken!O13*$M$10)<0,0,ken!N13-ken!O13*$M$10)","v":0},{"$f":"IF((ken!Q13-ken!R13*$M$10)<0,0,ken!Q13-ken!R13*$M$10)","v":0},null,{"$f":"IF((ken!W13-ken!X13*$M$10)<0,0,ken!W13-ken!X13*$M$10)","v":0},{"$f":"IF((ken!Z13+ken!AA13*$M$10)<0,0,ken!Z13+ken!AA13*$M$10)","v":0},{"$f":"IF((ken!AC13-ken!AD13*$M$10)<0,0,ken!AC13-ken!AD13*$M$10)","v":0},{"$f":"IF((ken!AF13-ken!AG13*$M$10)<0,0,ken!AF13-ken!AG13*$M$10)","v":0},{"$f":"IF((ken!AI13-ken!AJ13*$M$10)<0,0,ken!AI13-ken!AJ13*$M$10)","v":0}]
[4,{"$f":"IF((ken!H14-ken!I14*$M$10)<0,0,ken!H14-ken!I14*$M$10)","v":6.93},{"$f":"IF((ken!K14-ken!L14*$M$10)<0,0,ken!K14-ken!L14*$M$10)","v":5.17},{"$f":"IF((ken!N14-ken!O14*$M$10)<0,0,ken!N14-ken!O14*$M$10)","v":17.939999999999998},{"$f":"IF((ken!Q14-ken!R14*$M$10)<0,0,ken!Q14-ken!R14*$M$10)","v":19.22},null,{"$f":"IF((ken!W14-ken!X14*$M$10)<0,0,ken!W14-ken!X14*$M$10)","v":1.1000000000000014},{"$f":"IF((ken!Z14+ken!AA14*$M$10)<0,0,ken!Z14+ken!AA14*$M$10)","v":11.98},{"$f":"IF((ken!AC14-ken!AD14*$M$10)<0,0,ken!AC14-ken!AD14*$M$10)","v":96.52000000000001},{"$f":"IF((ken!AF14-ken!AG14*$M$10)<0,0,ken!AF14-ken!AG14*$M$10)","v":2.75},{"$f":"IF((ken!AI14-ken!AJ14*$M$10)<0,0,ken!AI14-ken!AJ14*$M$10)","v":30.28}]
[5,{"$f":"IF((ken!H15-ken!I15*$M$10)<0,0,ken!H15-ken!I15*$M$10)","v":7.95},{"$f":"IF((ken!K15-ken!L15*$M$10)<0,0,ken!K15-ken!L15*$M$10)","v":7.2100000000000009},{"$f":"IF((ken!N15-ken!O15*$M$10)<0,0,ken!N15-ken!O15*$M$10)","v":19.440000000000001},{"$f":"IF((ken!Q15-ken!R15*$M$10)<0,0,ken!Q15-ken!R15*$M$10)","v":24.03},null,{"$f":"IF((ken!W15-ken!X15*$M$10)<0,0,ken!W15-ken!X15*$M$10)","v":5.0500000000000043},{"$f":"IF((ken!Z15+ken!AA15*$M$10)<0,0,ken!Z15+ken!AA15*$M$10)","v":11.47},{"$f":"IF((ken!AC15-ken!AD15*$M$10)<0,0,ken!AC15-ken!AD15*$M$10)","v":103.59},{"$f":"IF((ken!AF15-ken!AG15*$M$10)<0,0,ken!AF15-ken!AG15*$M$10)","v":3.3499999999999996},{"$f":"IF((ken!AI15-ken!AJ15*$M$10)<0,0,ken!AI15-ken!AJ15*$M$10)","v":36.090000000000003}]
[6,{"$f":"IF((ken!H16-ken!I16*$M$10)<0,0,ken!H16-ken!I16*$M$10)","v":9.73},{"$f":"IF((ken!K16-ken!L16*$M$10)<0,0,ken!K16-ken!L16*$M$10)","v":8.3400000000000016},{"$f":"IF((ken!N16-ken!O16*$M$10)<0,0,ken!N16-ken!O16*$M$10)","v":21.36},{"$f":"IF((ken!Q16-ken!R16*$M$10)<0,0,ken!Q16-ken!R16*$M$10)","v":26.879999999999995},null,{"$f":"IF((ken!W16-ken!X16*$M$10)<0,0,ken!W16-ken!X16*$M$10)","v":7.3900000000000006},{"$f":"IF((ken!Z16+ken!AA16*$M$10)<0,0,ken!Z16+ken!AA16*$M$10)","v":11.08},{"$f":"IF((ken!AC16-ken!AD16*$M$10)<0,0,ken!AC16-ken!AD16*$M$10)","v":108.76999999999998},{"$f":"IF((ken!AF16-ken!AG16*$M$10)<0,0,ken!AF16-ken!AG16*$M$10)","v":3.6099999999999994},{"$f":"IF((ken!AI16-ken!AJ16*$M$10)<0,0,ken!AI16-ken!AJ16*$M$10)","v":40.369999999999997}]